{"text_format":"1","workbook":"xlsx","n_sheets":4,"sheets":["TABLAS  INIFED","DATOS Y PRESENTACION","TABLAS TOPOGRAFIA","REGISTROS"],"not_rendered":{"charts":0,"images":2,"macros":1,"external_links":1,"defined_names":0,"comments":0,"pivot_tables":0},"unopened":[],"bounds":{"document_bytes":16777216,"sheet_cells":100000,"rows_first":2000,"rows_last":500,"rows_between":2000,"halvings":0,"cell_chars":16384,"cell_head_chars":4096},"cells_cut":0,"cells_raw":0,"read":"whole","date_system":"1900"}

{"sheet":"TABLAS  INIFED","index":0,"n_rows":1609,"n_cols":16,"rows_kept":1609,"cut":false,"hidden":false,"merged":[[836,1,836,2],[850,1,850,2],[626,1,626,2],[640,1,640,2],[687,1,687,2],[702,1,702,2],[766,1,766,2],[782,1,782,2],[569,1,569,2],[274,1,274,2],[392,1,392,2],[412,1,412,2],[467,1,467,2],[485,1,485,2],[553,1,553,2]]}
["1.1. COSTOS PARAMÉTRICOS DE CONSTRUCCIÓN."]
[]
[]
["Tabla 1.1.A. Análisis de costos de infraestructura física educativa por nivel y modalidad.",null,0.2742]
[null,null,"2020-06-01","2013-12-01","FACTOR INTERCIUDAD"]
["NIVEL EDUCATIVO","MODALIDAD","COSTO / M2",null,{"$f":"+'DATOS Y PRESENTACION'!D24","v":0.96970000000000001}]
[]
["BÁSICO","BASICO Preescolar",{"$f":"+D8*($C$4+1)*$E$6","v":7104.652505},5750]
[null,"BASICO Primaria",{"$f":"+D9*($C$4+1)*$E$6","v":8278.464657999999},6700]
[null,"BASICO Telesecundaria",{"$f":"+D10*($C$4+1)*$E$6","v":6919.313744},5600]
[null,"BASICO Secundaria General",8896.2605280000007,7200]
[null,"BASICO Secundaria Técnica",8896.2605280000007,7200]
[null,null,0]
["MEDIO SUPERIOR","MEDIO SUPERIOR Bachillerato General",8927.1503214999993,7225]
[null,"MEDIO SUPERIOR CBTA",10459.2840791,8465]
[null,"MEDIO SUPERIOR CBTIS",10459.2840791,8465]
[null,"MEDIO SUPERIRO CETIS",8581.1846342999997,6945]
[null,"MEDIO SUPERIOR CET del Mar",10033.004928800001,8120]
[null,"MEDIO SUPERIOR CONALEP",9945.2779152599996,8049]
[null,null,0]
["SUPERIOR","SUPERIOR Institutos Tecnológicos.",14827.10088,12000]
[null,"SUPERIOR Universidades Tecnológicas.",14827.10088,12000]
[null,"SUPERIOR Universidades Politécnicas.",14827.10088,12000]
[null,null,0]
["EDUCACIÓN EXTRAESCOLAR Y DE CAPACITACION","EXTRAESCOLAR Y CAPACITACION Centro de Desarrollo Infantil.",9168.090710800001,7420]
[null,"EXTRAESCOLAR Y CAPACITACION Audición y Lenguaje.",8426.7356667999993,6820]
[null,"EXTRAESCOLAR Y CAPACITACION Deficientes Mentales.",8105.4818144000001,6560]
[null,"EXTRAESCOLAR Y CAPACITACION Audición y Deficientes Mentales.",8425.5000750599993,6819]
[null,"EXTRAESCOLAR Y CAPACITACION Centro Psicopedagógico.",8988.9299085000002,7275]
[null,"EXTRAESCOLAR Y CAPACITACION Capacitación para el Trabajo de Educacion especial",7648.3128705999998,6190]
[null,"ESTRAESCOLAR Y CAPACITACION Centro Múltiple Único.",9168.090710800001,7420]
[null,"EXTRAESCOLAR Y CAPACITACION Centro de Estimulación Temprana.",9563.4800676000013,7740]
[null,"EXTRAESCOLAR Y CAPACITACION Centro de Capacitación para el Trabajo.",7648.3128705999998,6190]
[]
["1.2. FACTORES DE SUPERFICIE."]
["El monto de la remuneración por servicios profesionales disminuye a razón de la mayor dimensión de",null,{"$f":"+G37","v":0}]
["superficie proyectada.","FACTOR DE SUPERFICIE",{"$f":"VLOOKUP(C36,B41:C87,2,FALSE)","v":{"$error":"#N/A"}},{"$f":"+'DATOS Y PRESENTACION'!D16","v":0},"M2 DE CONSTRUCCION",null,{"$f":"IF(D45=0,_xlfn.CEILING.MATH($D$37,100),IF(D45=1,_xlfn.CEILING.MATH($D$37,200),IF(D45=2,_xlfn.CEILING.MATH($D$37,1000),IF(D45=3,_xlfn.CEILING.MATH($D$37,2000),IF(D45=4,_xlfn.CEILING.MATH($D$37,5000),IF(D45=5,_xlfn.CEILING.MATH($D$37,10000),\" \"))))))","v":0}]
[]
["RANGOS DE SUPERFICIE M2",null,"FACTOR DE SUPERFICIE",{"$f":"+IF(D37>400,1,\" \")","v":" "}]
[null,null,null,{"$f":"+IF(D37>4000,1,\" \")","v":" "}]
["Hasta 100 ",100,0.12,{"$f":"+IF(D37>10000,1,\" \")","v":" "}]
["101 – 200",200,0.1091,{"$f":"+IF(D37>30000,1,\" \")","v":" "}]
["201 – 300",300,9.9299999999999999E-2,{"$f":"+IF(D37>50000,1,\" \")","v":" "}]
["301 – 400",400,9.2399999999999996E-2,{"$f":"+IF(D37>100000,1,\" \")","v":" "}]
["401 – 600",600,9.0700000000000003E-2,{"$f":"SUM(D38:D44)","v":0},{"$f":"IF(D45=6,_xlfn.CEILING.MATH(D37,10000))","v":false}]
["601 – 800",800,8.5500000000000007E-2]
["801 – 1,000",1000,8.2100000000000006E-2]
["1,001 – 1,200",1200,8.0600000000000005E-2]
["1,201 – 1,400",1400,7.9100000000000004E-2]
["1,401 – 1,600",1600,7.7499999999999999E-2]
["1,601 – 1,800",1800,7.5999999999999998E-2]
["1,801 – 2,000",2000,7.4499999999999997E-2]
["2,001 – 2,200",2200,7.3200000000000001E-2]
["2,201 – 2,400",2400,7.1800000000000003E-2]
["2,401 – 2,600",2600,7.0499999999999993E-2]
["2,601 – 2,800",2800,6.9099999999999995E-2]
["2,801 – 3,000",3000,6.7799999999999999E-2]
["3,001 – 3,200",3200,6.6600000000000006E-2]
["3,201 – 3,400",3400,6.54E-2]
["3,401 – 3,600",3600,6.4100000000000004E-2]
["3,601 – 3,800",3800,6.2899999999999998E-2]
["3,801 – 4,000",4000,6.1699999999999998E-2]
["4,001 – 5,000",5000,6.08E-2]
["5,001 – 6,000",6000,5.9799999999999999E-2]
["6,001 – 7,000",7000,5.8900000000000001E-2]
["7,001 – 8,000",8000,5.79E-2]
["8,001 – 9,000",9000,5.7000000000000002E-2]
["9,001 – 10,000",10000,5.6000000000000001E-2]
["10,001 – 12,000",12000,5.5E-2]
["12,001 – 14,000",14000,5.3999999999999999E-2]
["14,001 – 16,000",16000,5.2999999999999999E-2]
["16,001 – 18,000",18000,5.1999999999999998E-2]
["18,001 – 20,000",20000,5.0999999999999997E-2]
["20,001 – 22,000",22000,4.9799999999999997E-2]
["22,001 – 24,000",24000,4.8599999999999997E-2]
["24,001 – 26,000",26000,4.7500000000000001E-2]
["26,001 – 28,000",28000,4.6300000000000001E-2]
["28,001 – 30,000",30000,4.5100000000000001E-2]
["30,001 – 35,000",35000,4.36E-2]
["35,001 – 40,000",40000,4.2099999999999999E-2]
["40,001 – 45,000",45000,4.19E-2]
["45,001 – 50,000",50000,4.1799999999999997E-2]
["50,001 – 60,000",60000,4.1399999999999999E-2]
["60,001 – 70,000",70000,4.1099999999999998E-2]
["70,001 – 80,000",80000,4.07E-2]
["80,001 – 90,000",90000,4.0399999999999998E-2]
["90,001 – 100,000",100000,0.04]
[]
[]
[]
[]
[]
[]
[]
[]
[]
[]
[]
[]
[]
[]
[]
[]
[]
[]
[]
[]
[]
[]
[]
[]
[]
[]
[]
[]
[]
["1 Universidad Nacional Autónoma de México. Dirección General de Obras y Conservación. Arancel para el Pago de honorarios."]
["Universidad Nacional Autónoma de México. México, D.F. Capitulo 9, página 21."]
[]
[]
[]
["1.3. FACTORES DE ESPECIALIDAD."]
["Tabla 1.3.A. Porcentajes para determinar el factor de especialidad."]
["CONCEPTO","FACTOR DE ESPECIALIDAD"]
[]
[]
["Proyecto Arquitectónico.",0.58899999999999997]
["Ingeniería Civil (estructuras).",0.13039999999999999]
["Ingeniería Eléctrica.",0.10630000000000001]
["Ingeniería Hidráulica y Sanitaria.",5.1200000000000002E-2]
["Instalación de Protección Contra Incendio.",3.5499999999999997E-2]
["Instalación de Gases.",1.2800000000000001E-2]
["Ingeniería de Aire Acondicionado (extracción y ventilación mecánica).",2.3599999999999999E-2]
["Ingeniería de Telecomunicaciones.",5.1200000000000002E-2]
["TOTAL:",{"$f":"SUM(B127:B134)","v":0.99999999999999989}]
[]
[]
[]
["1.4. FACTORES PARA PROYECTOS Y SERVICIOS FORÁNEOS POR ENTIDAD FEDERATIVA Y TIPO DE CLIMA."]
["Para los siguientes servicios que se realicen al interior de la República Mexicana, se aplicará el factor"]
["de servicios foráneos (Ff) establecido en la Tabla 1.4.A. Factores promedio por entidad federativa y"]
["tipo de clima."]
["2.1.9.3. Levantamiento Topográfico."]
["2.2. Dirección Arquitectónica de Obra."]
["2.3. Supervisión de Obra."]
["2.4. Supervisión de Proyecto."]
["2.5. Servicios de consultoría y asesoría profesional."]
[]
["Tabla 1.4.A. Factores promedio por entidad federativa y tipo de clima"]
["ENTIDAD FEDERATIVA"]
["Aguascalientes. Altiplano. 1.19","Altiplano",1.19]
["Baja California.","Altiplano",1.38]
["Baja California.","Extremoso",1.45]
["Baja California Sur.","Tropical",1.3]
["Baja California Sur.","Extremoso",1.3]
["Campeche.","Tropical",1.35]
["Coahuila.","Altiplano",1.1100000000000001]
["Coahuila.","Extremoso",1.21]
["Colima.","Tropical",1.1499999999999999]
["Chiapas.","Altiplano",1.28]
["Chiapas.","Tropical",1.25]
["Chihuahua.","Extremoso",1.25]
["Ciudad de México y zona metropolitana del Estado de México.","Altiplano",1]
["Durango.","Extremoso",1.2]
["Estado de México (Excepto zona metropolitana).","Altiplano",1.1100000000000001]
["Guanajuato.","Altiplano",1.1499999999999999]
["Guerrero.","Altiplano",1.27]
["Guerrero.","Tropical",1.28]
["Hidalgo.","Altiplano",1.1200000000000001]
["Hidalgo.","Tropical",1.21]
["Jalisco.","Altiplano",1.1499999999999999]
["Jalisco.","Tropical",1.2]
["Michoacán.","Altiplano",1.18]
["Michoacán.","Tropical",1.3]
["Morelos.","Altiplano",1.1000000000000001]
["Morelos.","Tropical",1.17]
["Nayarit.","Tropical",1.17]
["Nuevo León.","Altiplano",1.1499999999999999]
["Nuevo León.","Extremoso",1.2]
["Oaxaca.","Altiplano",1.17]
["Oaxaca.","Tropical",1.18]
["Puebla.","Altiplano",1.17]
["Puebla.","Tropical",1.22]
["Querétaro.","Altiplano",1.1299999999999999]
["Quintana Roo.","Tropical",1.32]
["San Luis Potosí.","Altiplano",1.1299999999999999]
["San Luis Potosí.","Tropical",1.2]
["San Luis Potosí.","Extremoso",1.2]
["Sinaloa.","Tropical",1.3]
["Sonora.","Tropical",1.3]
["Sonora.","Extremoso",1.32]
["Tabasco.","Tropical",1.64]
["Tamaulipas.","Tropical",1.3]
["Tamaulipas.","Extremoso",1.4]
["Tlaxcala.","Altiplano",1.1599999999999999]
["Veracruz.","Altiplano",1.2]
["Veracruz.","Tropical",1.3]
["Yucatán.","Tropical",1.25]
["Zacatecas.","Altiplano",1.25]
["Zacatecas.","Extremoso",1.32]
[]
["Fuente: Secretaría de Desarrollo Social. Tabulador general de precios unitarios 2010. SEDESOL. México, D.F. 2010."]
[]
["2. CÁLCULO DE HONORARIOS."]
["1.1. PROYECTO EJECUTIVO."]
["El proyecto ejecutivo es la suma de los costos de las especialidades aplicando el factor"]
["correspondiente especificado en el punto 1.3.A Factores de especialidad de este arancel."]
["El proyecto ejecutivo se integrará, de manera enunciativa y no limitativa, por las siguientes"]
["especialidades:"]
["2.1.1. Proyecto arquitectónico."]
["2.1.2. Proyecto estructural."]
["2.1.3. Proyecto de instalaciones eléctricas."]
["2.1.4. Proyecto de instalaciones hidráulicas y sanitarias."]
["2.1.5. Proyecto de instalaciones contra incendios."]
["2.1.6. Proyecto de instalaciones de gases."]
["2.1.7. Proyecto aire acondicionado."]
["2.1.8. Proyecto de telecomunicaciones."]
["2.1.9. Estudios técnicos especializados."]
["Para efectos de este arancel, el proyecto ejecutivo se clasificará en las siguientes etapas por"]
["especialidad:"]
["a. Anteproyecto."]
["b. Proyecto definitivo."]
["c. Estudios complementarios."]
["a. Anteproyecto."]
["La fase de anteproyecto comprende el conjunto de gráficos y documentos que proporcionan la idea"]
["general del proyecto de obra, respondiendo a las condiciones establecidas en el programa"]
["arquitectónico, las características del terreno seleccionado, el entorno y los reglamentos a los cuales"]
["debe sujetarse."]
["b. Proyecto definitivo."]
["En la etapa de proyecto definitivo se especifican a detalle todos los elementos, sistemas"]
["constructivos, materiales, equipos y mobiliario que permitan la ejecución de la obra."]
["c. Estudios complementarios."]
["Consisten en los estudios y actividades físicas o analíticas que se requerirán para fundamentar las"]
["especificaciones constructivas del proyecto ejecutivo de acuerdo con las condiciones del sitio, la"]
["reglamentación y normatividad aplicable en la zona."]
[]
["1.1.1. PROYECTO ARQUITECTÓNICO."]
["El proyecto arquitectónico debe entenderse como el conjunto de documentos, cálculos,"]
["especificaciones y gráficos que expresan las soluciones arquitectónicas requeridas para satisfacer las"]
["necesidades definidas por el programa arquitectónico."]
["Para su elaboración se seguirán los criterios consignados en la normatividad que sea aplicable."]
["Fórmula para el cálculo de los honorarios del proyecto arquitectónico:"]
["H = (CO)(FS)(FE)(FA)"]
["Donde:"]
["H= Honorarios."]
["CO= Costo estimado de la obra igual a (m2 de proyecto) ($/m2 de construcción)."]
["FS= Factor de superficie."]
["FE= Factor por especialidad."]
["FA= Factor de alcance."]
["Tabla 2.1.1.A. Alcances del proyecto arquitectónico por etapa."]
[]
["ETAPAS DEL PROYECTO ARQUITECTÓNICO","FACTORES DE ALCANCE"]
[null,"OBRA NUEVA Y AMPLIACIÓN","REMODELACION"]
[]
["a. Anteproyecto.",0.38,0.57999999999999996]
["Estudios preliminares. 0.05 0.05",0.05,0.05]
["Levantamiento de estado actual. No aplica 0.20","No aplica",0.2]
["Programa de necesidades. 0.03 0.03",0.03,0.03]
["Planteamiento general. 0.02 0.02",0.02,0.02]
["Anteproyecto. 0.23 0.23",0.23,0.23]
["Complementos. 0.05 0.05",0.05,0.05]
[]
["b. Proyecto definitivo. 0.62 0.67",0.62,0.67]
["Planos básicos. 0.22 0.22",0.22,0.22]
["Desarrollo proyectual. 0.27 0.32",0.27,0.32]
["Complementos. 0.13 0.13",0.13,0.13]
[]
["Subtotal:",{"$f":"+B266+B265+B264+B261+B260+B259+B258+B256","v":1},{"$f":"+C266+C265+C264+C261+C260+C259+C258+C257+C256","v":1.25}]
[]
["c. Estudios complementarios.","Variable","Variable"]
[]
[]
[]
[]
[null,"FACTORES DE ALCANCE"]
["ETAPAS DEL PROYECTO ARQUITECTÓNICO","OBRA NUEVA Y AMPLIACION","REMODELACIÓN"]
[]
[]
[]
[]
["a. Anteproyecto. 0.38 0.58",0.38,0.57999999999999996,{"$f":"+B282+B287+B295+B300+B304+B314","v":0.38},{"$f":"+C282+C287+C295+C300+C304+C314","v":0.58000000000000007}]
["Estudios preliminares.",0.05,0.05]
["Condiciones del sitio Investigación de datos técnicos y disposiciones legales en la localidad.",0.03,0.03]
["Reporte de visita.",0.01,0.01]
["Expediente fotográfico.",0.01,0.01]
[]
["Levantamiento de estado actual.",0,0.2]
["Planta de conjunto.","NO APLICA",0.02]
["Plantas arquitectónicas generales.","NO APLICA",0.06]
["Cortes generales.","NO APLICA",0.03]
["Fachadas generales.","NO APLICA",0.03]
["Cortes por fachada.","NO APLICA",0.03]
["Etapas de construcción y obras de apoyo.","NO APLICA",0.03]
[]
["Programa arquitectónico.",0.03,0.03]
["Análisis de requerimientos y superficies.",0.01,0.01]
["Análisis funcional.",0.01,0.01]
["Recomendaciones.",0.01,0.01]
[]
["Planteamiento general.",0.02,0.02]
["Premisas técnicas y compositivas.",0.01,0.01]
["Zonificación y partido.",0.01,0.01]
[]
["Anteproyecto.",0.23,0.23]
["Planta de localización.",0.02,0.02]
["Planta de conjunto.",0.03,0.03]
["Plantas arquitectónicas generales.",0.04,0.04]
["Análisis de estudio bioclimático.",0.03,0.03]
["Cortes generales.",0.03,0.03]
["Fachadas generales.",0.03,0.03]
["Criterio de acabados.",0.03,0.03]
["Estimación paramétrica de costo.",0.02,0.02]
[]
["Complementos.",0.05,0.05]
["Fundamentación de acciones de proyecto.",0.01,0.01]
["Índices de mediciones (superficie).",0.01,0.01]
["Perspectivas.",0.02,0.02]
["Álbum de anteproyecto.",0.01,0.01]
[]
[]
["b. Proyecto definitivo. 0.62 0.67",0.62,0.67,{"$f":"+B322+B333+B349","v":0.61999999999999988},{"$f":"+C322+C333+C349","v":0.66999999999999993}]
["Planos básicos. 0.22 0.22",{"$f":"SUM(B323:B331)","v":0.21999999999999997},{"$f":"SUM(C323:C331)","v":0.21999999999999997}]
["Planta de conjunto. 0.02 0.02",0.02,0.02]
["Plantas arquitectónicas generales. 0.04 0.04",0.04,0.04]
["Plantas por secciones. 0.04 0.04",0.04,0.04]
["Plantas de azoteas. 0.02 0.02",0.02,0.02]
["Cortes generales. 0.01 0.01",0.01,0.01]
["Cortes por fachada. 0.03 0.03",0.03,0.03]
["Fachadas generales. 0.02 0.02",0.02,0.02]
["Fachadas interiores. 0.02 0.02",0.02,0.02]
["Alzados interiores. 0.02 0.02",0.02,0.02]
[]
["Desarrollo proyectual. 0.27 0.32",{"$f":"SUM(B334:B347)","v":0.26999999999999996},{"$f":"SUM(C334:C347)","v":0.31999999999999995}]
["Planos de estado actual. No aplica 0.02","NO APLICA",0.02]
["Planta de trazo. 0.02 0.02",0.02,0.02]
["Plantas de demoliciones y desmontajes. No aplica 0.03","NO APLICA",0.03]
["Plantas de localización de elementos. 0.01 0.01",0.01,0.01]
["Plantas de albañilería y detalles. 0.02 0.02",0.02,0.02]
["Plantas, fachadas y cortes de acabados. 0.02 0.02",0.02,0.02]
["Plantas de mobiliario y equipo. 0.04 0.04",0.04,0.04]
["Planta de plafones y detalles. 0.02 0.02",0.02,0.02]
["Detalles generales y específicos. 0.02 0.02",0.02,0.02]
["Detalles de baños y locales especiales. 0.02 0.02",0.02,0.02]
["Cancelería. 0.02 0.02",0.02,0.02]
["Carpintería. 0.02 0.02",0.02,0.02]
["Señalización. 0.02 0.02",0.02,0.02]
["Obras exteriores y jardinería. 0.04 0.04",0.04,0.04]
[]
["Complementos. 0.13 0.13",{"$f":"SUM(B350:B352)","v":0.13},{"$f":"SUM(C350:C352)","v":0.13}]
["Memoria descriptiva. 0.01 0.01",0.01,0.01]
["Guías de dotación de mobiliario y equipo. 0.02 0.02",0.02,0.02]
["Catálogo de conceptos y números generadores",0.1,0.1]
[]
[]
[]
["1.1.2. PROYECTO ESTRUCTURAL."]
["Para efectos de este arancel las estructuras se han clasificado por tipos, de conformidad con las"]
["Normas Técnicas Complementarias2 del Reglamento de Construcciones para el Distrito Federal:"]
["Tipo A:"]
["Son aquellas clasificadas como ligeras o medianas, de poca extensión y con excavaciones"]
["someras."]
["Tipo A.1:"]
["Son aquellas estructuras del tipo A que no satisfacen las Condiciones de Regularidad de las"]
["Normas Técnicas Complementarias para Diseño por Sismo del Reglamento de Construcciones"]
["para el Distrito Federal."]
["Tipo B:"]
["Son aquellas clasificadas como pesadas, extensas o con excavaciones profundas."]
["Tipo B.1:"]
["Son aquellas estructuras del tipo B que no satisfacen las Condiciones de Regularidad de las"]
["Normas Técnicas Complementarias para Diseño por Sismo del Reglamento de Construcciones"]
["para el Distrito Federal."]
["Fórmula para el cálculo de los honorarios del proyecto estructural:"]
["H = (CO)(FS)(FE)(FA)(G)"]
["Donde:"]
["H= Honorarios."]
["CO= Costo estimado de la obra igual a (m2 de proyecto) ($/m2 de construcción)."]
["FS= Factor de superficie."]
["FE= Factor por especialidad."]
["FA= Factor de alcance."]
["G= Grado de dificultad3."]
[]
["G Tipo A= 1.00","Tipo A",1]
["G Tipo A.1= 1.20","Tipo A.1",1.2]
["G Tipo B= 1.35","Tipo B",1.35]
["G Tipo B.1= 1.50","Tipo B.1",1.5]
[]
["Gobierno del Distrito Federal. Normas Técnicas Complementarias para Diseño por Sismo."]
["<http://cgservicios.df.gob.mx/prontuario/vigente/739.htm>"]
["3 Colegio de Arquitectos de la Ciudad de México, A.C. Arancel Único de Servicios Profesionales. México, D.F. 2002."]
[]
[]
["Tabla 2.1.2.A. Alcances del proyecto estructural por etapas."]
["ETAPAS DEL PROYECTO ESTRUCTURAL","FACTORES DE ALCANCE"]
[null,"OBRA NUEVA Y AMPLIACIÓN","REMODELACIÓN"]
[]
["a. Anteproyecto. 0.22 0.00",0.22,0]
["Estudios preliminares. 0.05 No aplica",0.05,"NO APLICA"]
["Criterios generales de estructuración. 0.12 No aplica",0.12,"NO APLICA"]
["Anteproyecto. 0.05 No aplica",0.05,"NO APLICA"]
[]
["b. Proyecto definitivo. 0.78 0.00",0.78,0]
["Planos estructurales. 0.28 No aplica",0.28000000000000003,"NO APLICA"]
["Memorias de diseño y cálculo. 0.38 No aplica",0.38,"NO APLICA"]
["Complementos. 0.12 No aplica",0.12,"NO APLICA"]
["Subtotal: 1.00 0.00",{"$f":"+B401+B396","v":1},{"$f":"+C401+C396","v":0}]
["c. Estudios complementarios. Variable Variable","VARIABLE","VARIABLE"]
[]
[]
[]
["ETAPAS DEL PROYECTO ESTRUCTURAL"]
[]
["Tabla 2.1.2.B. Alcances de las etapas del proyecto estructural."]
["ETAPAS DEL PROYECTO ESTRUCTURAL","FACTORES DE ALCANCE"]
[null,"OBRA NUEVA Y AMPLIACIÓN","REMODELACIÓN"]
[]
["a. Anteproyecto. 0.22 No aplica",{"$f":"+B417+B421+B425","v":0.22000000000000003},"NO APLICA"]
["Estudios preliminares. 0.05 0.00",{"$f":"SUM(B418:B420)","v":0.05},{"$f":"SUM(C418:C420)","v":0}]
["Análisis de la información. 0.02 No aplica",0.02,"NO APLICA"]
["Inspección del sitio. 0.02 No aplica",0.02,"NO APLICA"]
["Premisas técnicas y constructivas. 0.01 No aplica",0.01,"NO APLICA"]
["Criterios generales de estructuración. 0.12 0.00",{"$f":"SUM(B422:B424)","v":0.12000000000000001},{"$f":"SUM(C422:C424)","v":0}]
["Análisis de las variables. 0.05 No aplica",0.05,"NO APLICA"]
["Dimensionamiento y geometría de componentes.",0.05,"NO APLICA"]
["Memoria técnica de anteproyecto. 0.02 No aplica",0.02,"NO APLICA"]
["Anteproyecto. 0.05 0.00",{"$f":"SUM(B426:B430)","v":0.05},{"$f":"SUM(C426:C430)","v":0}]
["Cimentación. 0.01 No aplica",0.01,"NO APLICA"]
["Elementos portantes verticales. 0.01 No aplica",0.01,"NO APLICA"]
["Elementos portantes horizontales. 0.01 No aplica",0.01,"NO APLICA"]
["Entrepisos y cubiertas. 0.01 No aplica",0.01,"NO APLICA"]
["Cortes esquemáticos. 0.01 No aplica",0.01,"NO APLICA"]
[]
["b. Proyecto definitivo. 0.78 No aplica",{"$f":"+B433+B440+B444","v":0.77999999999999992},"NO APLICA"]
["Planos estructurales. 0.28 0.00",{"$f":"SUM(B434:B439)","v":0.28000000000000003},{"$f":"SUM(C434:C439)","v":0}]
["Proyecto de cimentación. 0.06 No aplica",0.06,"NO APLICA"]
["Proyecto de elementos portantes verticales. 0.06 No aplica",0.06,"NO APLICA"]
["Proyecto de elementos portantes horizontales. 0.06 No aplica",0.06,"NO APLICA"]
["Proyecto de entrepisos y cubiertas. 0.06 No aplica",0.06,"NO APLICA"]
["Cortes transversales y longitudinales. 0.02 No aplica",0.02,"NO APLICA"]
["Detalles constructivos. 0.02 No aplica",0.02,"NO APLICA"]
["Memorias de diseño y cálculo. 0.38 0.00",{"$f":"SUM(B441:B443)","v":0.37999999999999995},{"$f":"SUM(C441:C443)","v":0}]
["Análisis de las variables con métodos exactos. 0.15 No aplica",0.15,"NO APLICA"]
["Dimensionamiento definitivo de componentes. 0.18 No aplica",0.18,"NO APLICA"]
["Memoria técnica del proyecto. 0.05 No aplica",0.05,"NO APLICA"]
["Complementos. 0.12 0.00",{"$f":"SUM(B445:B446)","v":0.12000000000000001},{"$f":"SUM(C445:C446)","v":0}]
["Especificaciones y descripción del proceso constructivo.",0.02,"NO APLICA"]
["Catálogo de conceptos y números generadores.",0.1,"NO APLICA"]
[]
["Anteproyecto + Proyecto definitivo 1.00 0.00",{"$f":"+B432+B416","v":1},"NO APLICA"]
[]
[]
[]
["1.1.3. PROYECTO DE INSTALACIONES ELÉCTRICAS."]
["Las instalaciones destinadas a la utilización de la energía eléctrica ofrecerán condiciones adecuadas"]
["de seguridad para las personas y los inmuebles educativos en lo referente a protección contra choque"]
["eléctrico, efectos térmicos, sobrecorrientes, corrientes de falla, sobretensiones, fenómenos"]
["atmosféricos e incendios, entre otros."]
["Fórmula para el cálculo de los honorarios del proyecto de instalaciones eléctricas:"]
["H = (CO)(FS)(FE)(FA)"]
["Donde:"]
["H= Honorarios."]
["CO= Costo estimado de la obra igual a (m2 de proyecto) ($/m2 de construcción)."]
["FS= Factor de superficie."]
["FE= Factor por especialidad."]
["FA= Factor de alcance."]
[]
[]
["Tabla 2.1.3.A. Alcances del proyecto de instalaciones eléctricas por etapas."]
["ETAPAS DEL PROYECTO DE INSTALACIONES ELECTRICAS","FACTORES DE ALCANCE"]
[null,"OBRA NUEVA Y AMPLIACIÓN","REMODELACIÓN"]
[]
["a. Anteproyecto. 0.26 0.41",{"$f":"SUM(B472:B475)","v":0.26},{"$f":"SUM(C472:C475)","v":0.41}]
["Estudios preliminares. 0.08 0.08",0.08,0.08]
["Levantamiento de estado actual. No aplica 0.14","NO APLICA",0.14000000000000001]
["Planos. 0.15 0.15",0.15,0.15]
["Complementos. 0.03 0.04",0.03,0.04]
[]
["b. Proyecto definitivo. 0.74 0.84",{"$f":"SUM(B478:B479)","v":0.74},{"$f":"SUM(C478:C479)","v":0.84000000000000008}]
["Planos básicos. 0.54 0.64",0.54,0.64]
["Complementos. 0.20 0.20",0.2,0.2]
[]
["Subtotal: 1.00 1.25",{"$f":"+B477+B471","v":1},{"$f":"+C477+C471","v":1.25}]
[]
[]
["Tabla 2.1.3.B. Alcances de las etapas del proyecto de instalaciones eléctricas."]
[]
["ETAPAS DEL PROYECTO DE INSTALACIONES ELECTRICAS","FACTORES DE ALCANCE"]
[null,"OBRA NUEVA Y AMPLIACIÓN","REMODELACIÓN"]
[]
["a. Anteproyecto. 0.26 0.41",{"$f":"+B490+B494+B498+B510","v":0.26},{"$f":"+C490+C494+C498+C510","v":0.41000000000000003}]
["Estudios preliminares. 0.08 0.08",{"$f":"SUM(B491:B492)","v":0.08},{"$f":"SUM(C491:C492)","v":0.08}]
["Inspección del sitio. 0.04 0.04",0.04,0.04]
["Análisis de la información. 0.04 0.04",0.04,0.04]
[]
["Levantamiento de estado actual. 0.00 0.14",{"$f":"SUM(B495:B496)","v":0},{"$f":"SUM(C495:C496)","v":0.14000000000000001}]
["Trayectorias de las redes y salidas. No aplica 0.07","NO APLICA",7.0000000000000007E-2]
["Ubicación de equipos y tableros. No aplica. 0.07","NO APLICA",7.0000000000000007E-2]
[]
["Planos. 0.15 0.15",{"$f":"SUM(B499:B508)","v":0.15000000000000002},{"$f":"SUM(C499:C508)","v":0.15000000000000002},{"$f":"+C498+C494+C490","v":0.37000000000000005}]
["Propuesta de alumbrado. 0.02 0.02",0.02,0.02]
["Propuesta de alumbrado exterior. 0.01 0.01",0.01,0.01]
["Contactos y tableros. 0.02 0.02",0.02,0.02]
["Localización de salidas de fuerza para equipos",0.01,0.01]
["Localización de sistemas de tierras. 0.02 0.02",0.02,0.02]
["Localización de pararrayos. 0.02 0.02",0.02,0.02]
["Trayectoria de alimentadores en alta y baja tensión.",0.02,0.02]
["Cortes de alimentadores. 0.01 0.01",0.01,0.01]
["Dimensionamiento de espacios para equipo electrico.",0.01,0.01]
["Arreglo de equipos eléctricos en subestación y casa de maquinas",0.01,0.01]
[]
["Complementos. 0.03 0.04",{"$f":"SUM(B511:B513)","v":0.03},{"$f":"SUM(C511:C513)","v":0.04}]
["Memoria descriptiva. 0.01 0.02",0.01,0.02]
["Memoria de cálculo. 0.01 0.01",0.01,0.01]
["Selección de equipos y capacidad. 0.01 0.01",0.01,0.01]
[]
["b. Proyecto definitivo. 0.74 0.84",{"$f":"+B516+B532","v":0.74},{"$f":"+C516+C532","v":0.84000000000000008}]
["Planos básicos. 0.54 0.64",{"$f":"SUM(B517:B530)","v":0.54},{"$f":"SUM(C517:C530)","v":0.64000000000000012}]
["Planos de demoliciones y desmantelamientos.","NO APLICA",0.08]
["Proyecto de alumbrado por planta o nivel.* 0.05 0.06",0.05,0.06]
["Proyecto de alumbrado exterior.* 0.04 0.04",0.04,0.04]
["Contactos por planta o nivel.* 0.05 0.06",0.05,0.06]
["Planos de fuerza por planta o nivel. 0.04 0.04",0.04,0.04]
["Planos de fuerza en casas de equipos. 0.04 0.04",0.04,0.04]
["Proyecto de sistema de tierras. 0.03 0.03",0.03,0.03]
["Proyecto de sistema de pararrayos. 0.03 0.03",0.03,0.03]
["Alimentadores generales en alta y baja tensión.",0.05,0.05]
["Corte vertical de alimentadores. 0.02 0.02",0.02,0.02]
["Detalles constructivos. 0.05 0.05",0.05,0.05]
["Arreglo de equipos eléctricos en subestación y casa de maquinas",0.04,0.04]
["Diagrama unifilar. 0.05 0.05",0.05,0.05]
["Cuadro de cargas. 0.05 0.05",0.05,0.05]
[]
["Complementos. 0.20 0.20",{"$f":"SUM(B533:B536)","v":0.2},{"$f":"SUM(C533:C536)","v":0.2}]
["Memoria descriptiva. 0.02 0.02",0.02,0.02]
["Memoria de cálculo. 0.04 0.04",0.04,0.04]
["Especificación de equipos. 0.04 0.04",0.04,0.04]
["Catálogo de conceptos y números generadores.",0.1,0.1]
[]
["Anteproyecto + Proyecto definitivo 1.00 1.25",{"$f":"+B515+B489","v":1},{"$f":"+C515+C489","v":1.25}]
[]
[]
["1.1.4. PROYECTO DE INSTALACIONES HIDRÁULICAS Y SANITARIAS."]
["Fórmula para el cálculo de los honorarios del proyecto de instalaciones hidráulicas y"]
["sanitarias:"]
["H = (CO)(FS)(FE)(FA)"]
["Donde:"]
["H= Honorarios."]
["CO= Costo estimado de la obra igual a (m2 de proyecto) ($/m2 de construcción)."]
["FS= Factor de superficie."]
["FE= Factor por especialidad."]
["FA= Factor de alcance."]
[]
["Tabla 2.1.4.A. Alcances del proyecto de instalaciones hidráulicas y sanitarias por etapas."]
[]
["ETAPAS DEL PROYECTO DE INSTALACIONES HIDRÁULICAS Y SANITARIAS.","FACTORES DE ALCANCE"]
[null,"OBRA NUEVA Y AMPLIACIÓN","REMODELACIÓN"]
[]
["a. Anteproyecto. 0.26 0.39",{"$f":"SUM(B558:B561)","v":0.26},{"$f":"SUM(C558:C561)","v":0.39}]
["Estudios preliminares. 0.08 0.08",0.08,0.08]
["Levantamiento de estado actual. No aplica 0.13","NO APLICA",0.13]
["Planos. 0.15 0.15",0.15,0.15]
["Complementos. 0.03 0.03",0.03,0.03]
["b. Proyecto definitivo. 0.74 0.86",{"$f":"SUM(B563:B564)","v":0.74},{"$f":"SUM(C563:C564)","v":0.86}]
["Planos básicos. 0.58 0.70",0.57999999999999996,0.7]
["Complementos. 0.16 0.16",0.16,0.16]
[]
["Subtotal: 1.00 1.25",{"$f":"+B562+B557","v":1},{"$f":"+C562+C557","v":1.25}]
[]
[]
[]
["ETAPAS DEL PROYECTO DE INSTALACIONES HIDRÁULICAS Y SANITARIAS.","FACTORES DE ALCANCE"]
[null,"OBRA NUEVA Y AMPLIACIÓN","REMODELACIÓN"]
[]
[]
["a. Anteproyecto. 0.26 0.39",{"$f":"+B575+B578+B582+B588","v":0.26},{"$f":"+C575+C578+C582+C588","v":0.39}]
["Estudios preliminares. 0.08 0.08",{"$f":"SUM(B576:B577)","v":0.08},{"$f":"SUM(C576:C577)","v":0.08}]
["Inspección del sitio. 0.04 0.04",0.04,0.04]
["Análisis de la información. 0.04 0.04",0.04,0.04]
["Levantamiento de estado actual. 0.00 0.13",{"$f":"SUM(B579:B581)","v":0},{"$f":"SUM(C579:C581)","v":0.13}]
["Redes y salidas hidráulicas. No aplica 0.05","NO APLICA",0.05]
["Redes y registros sanitarios y pluviales. No aplica 0.05","NO APLICA",0.05]
["Equipos hidráulicos y sanitarios. No aplica 0.03","NO APLICA",0.03]
["Planos. 0.15 0.15",{"$f":"SUM(B583:B587)","v":0.15},{"$f":"SUM(C583:C587)","v":0.15}]
["Alimentaciones de agua fría y caliente. 0.06 0.06",0.06,0.06]
["Alimentaciones de riego. 0.01 0.01",0.01,0.01]
["Alimentaciones de vapor. 0.01 0.01",0.01,0.01]
["Desagües de aguas negras y pluviales. 0.04 0.04",0.04,0.04]
["Casas de máquinas. 0.03 0.03",0.03,0.03]
["Complementos. 0.03 0.03",{"$f":"SUM(B589:B591)","v":0.03},{"$f":"SUM(C589:C591)","v":0.03}]
["Memoria descriptiva. 0.01 0.01",0.01,0.01]
["Memoria de cálculo. 0.01 0.01",0.01,0.01]
["Capacidad de cisternas, cárcamos y equipo. 0.01 0.01",0.01,0.01]
[]
["b. Proyecto definitivo. 0.74 0.86",{"$f":"+B594+B607","v":0.7400000000000001},{"$f":"+C594+C607","v":0.86}]
["Planos básicos. 0.58 0.70",{"$f":"SUM(B595:B605)","v":0.58000000000000007},{"$f":"SUM(C595:C605)","v":0.7}]
["Planos de demoliciones y desmantelamientos. No aplica 0.12","NO APLICA",0.12]
["Redes de agua fría y caliente. 0.12 0.12",0.12,0.12]
["Redes de riego. 0.04 0.04",0.04,0.04]
["Redes de vapor. 0.04 0.04",0.04,0.04]
["Redes de aguas negras y pluviales. 0.08 0.08",0.08,0.08]
["Isométricos hidráulicos. 0.04 0.04",0.04,0.04]
["Isométricos sanitarios. 0.04 0.04",0.04,0.04]
["Guías mecánicas de locales especiales. 0.08 0.08",0.08,0.08]
["Detalles constructivos. 0.04 0.04",0.04,0.04]
["Proyecto de casa de máquinas. 0.06 0.06",0.06,0.06]
["Proyecto para tratamiento de aguas residuales.",0.04,0.04]
[]
["Complementos. 0.16 0.16",{"$f":"SUM(B608:B610)","v":0.16},{"$f":"SUM(C608:C610)","v":0.16}]
["Memoria descriptiva y de cálculo. 0.04 0.04",0.04,0.04]
["Especificación de equipos. 0.02 0.02",0.02,0.02]
["Catálogo de conceptos y números generadores.",0.1,0.1]
[]
["Anteproyecto + Proyecto definitivo 1.00 1.25",{"$f":"+B593+B574","v":1},{"$f":"+C593+C574","v":1.25}]
[]
[]
[]
["1.1.5. PROYECTO DE INSTALACIONES CONTRA INCENDIOS."]
["Fórmula para el cálculo de los honorarios del proyecto de instalaciones contra incendios:"]
["H = (CO)(FS)(FE)(FA)"]
["Donde:"]
["H= Honorarios."]
["CO= Costo estimado de la obra igual a (m2 de proyecto) ($/m2 de construcción)."]
["FS= Factor de superficie."]
["FE= Factor por especialidad."]
["FA= Factor de alcance."]
[]
["Tabla 2.1.5.A. Alcances del proyecto de instalaciones contra incendios por etapas."]
["ETAPAS DEL PROYECTO DE INSTALACIONES CONTRA INCENDIOS.","FACTORES DE ALCANCE"]
[null,"OBRA NUEVA Y AMPLIACIÓN","REMODELACIÓN"]
[]
["a. Anteproyecto. 0.26 0.41",{"$f":"SUM(B631:B634)","v":0.26},{"$f":"SUM(C631:C634)","v":0.41000000000000003}]
["Estudios preliminares. 0.08 0.08",0.08,0.08]
["Levantamiento de estado actual. 0.00 0.15",0,0.15]
["Planos. 0.15 0.15",0.15,0.15]
["Complementos. 0.03 0.03",0.03,0.03]
["b. Proyecto definitivo. 0.74 0.84",{"$f":"SUM(B636:B637)","v":0.74},{"$f":"SUM(C636:C637)","v":0.74}]
["Planos básicos. 0.54 0.64",0.54,0.54]
["Complementos. 0.20 0.20",0.2,0.2]
[]
["Subtotal: 1.00 1.25",{"$f":"+B635+B630","v":1},{"$f":"+C635+C630","v":1.1499999999999999}]
[]
["ETAPAS DEL PROYECTO DE INSTALACIONES CONTRA INCENDIOS.","FACTORES DE ALCANCE"]
[null,"OBRA NUEVA Y AMPLIACIÓN","REMODELACIÓN"]
["a. Anteproyecto. 0.26 0.41",{"$f":"+B644+B647+B650+B654","v":0.26},{"$f":"+C644+C647+C650+C654","v":0.41000000000000003}]
["Estudios preliminares. 0.08 0.08",{"$f":"SUM(B645:B646)","v":0.08},{"$f":"SUM(C645:C646)","v":0.08}]
["Inspección del sitio. 0.04 0.04",0.04,0.04]
["Análisis de la información. 0.04 0.04",0.04,0.04]
["Levantamiento de estado actual. 0.00 0.15",{"$f":"SUM(B648:B649)","v":0},{"$f":"SUM(C648:C649)","v":0.15}]
["Redes y salidas. No aplica 0.075","NO APLICA",7.4999999999999997E-2]
["Válvulas de control y equipo. No aplica 0.075","NO APLICA",7.4999999999999997E-2]
["Planos. 0.15 0.15",{"$f":"SUM(B651:B653)","v":0.15000000000000002},{"$f":"SUM(C651:C653)","v":0.15000000000000002}]
["Alimentaciones de red de instalaciones contra incendio.",0.05,0.05]
["Casa de máquinas. 0.05 0.05",0.05,0.05]
["Cisternas de almacenamiento. 0.05 0.05",0.05,0.05]
["Complementos. 0.03 0.03",{"$f":"SUM(B655:B657)","v":0.03},{"$f":"SUM(C655:C657)","v":0.03}]
["Memoria descriptiva. 0.01 0.01",0.01,0.01]
["Memoria de cálculo. 0.01 0.01",0.01,0.01]
["Selección de equipos y capacidad. 0.01 0.01",0.01,0.01]
["b. Proyecto definitivo. 0.74 0.84",{"$f":"+B659+B667","v":0.74},{"$f":"+C659+C667","v":0.84000000000000008}]
["Planos básicos. 0.54 0.64",{"$f":"SUM(B660:B666)","v":0.54},{"$f":"SUM(C660:C666)","v":0.64}]
["Planos de demoliciones y desmantelamientos. No aplica 0.10","NO APLICA",0.1]
["Redes contra incendios. 0.15 0.15",0.15,0.15]
["Isométricos hidráulicos. 0.05 0.05",0.05,0.05]
["Guías mecánicas. 0.15 0.15",0.15,0.15]
["Detalles constructivos. 0.04 0.04",0.04,0.04]
["Proyecto de casa de máquinas. 0.10 0.10",0.1,0.1]
["Proyecto de cisterna de almacenamiento. 0.05 0.05",0.05,0.05]
["Complementos. 0.20 0.20",{"$f":"SUM(B668:B671)","v":0.2},{"$f":"SUM(C668:C671)","v":0.2}]
["Memoria descriptiva. 0.02 0.02",0.02,0.02]
["Memoria de cálculo. 0.04 0.04",0.04,0.04]
["Especificación de equipos. 0.04 0.04",0.04,0.04]
["Catálogo de conceptos y números generadores.",0.1,0.1]
[]
["Anteproyecto + Proyecto definitivo 1.00 1.25",{"$f":"+B658+B643","v":1},{"$f":"+C658+C643","v":1.25}]
[]
[]
["1.1.6. PROYECTO DE INSTALACIONES DE GASES."]
["Fórmula para el cálculo de los honorarios del proyecto de instalaciones de gases:"]
["H = (CO)(FS)(FE)(FA)"]
["Donde:"]
["H= Honorarios."]
["CO= Costo estimado de la obra igual a (m2 de proyecto) ($/m2 de construcción)."]
["FS= Factor de superficie."]
["FE= Factor por especialidad."]
["FA= Factor de alcance."]
[]
["Tabla 2.1.6.A. Alcances del proyecto de instalaciones de gases por etapas."]
[]
["ETAPAS DEL PROYECTO DE INSTALACIONES DE GAS","FACTORES DE ALCANCE"]
[null,"OBRA NUEVA Y AMPLIACIÓN","REMODELACIÓN"]
[]
["a. Anteproyecto. 0.26 0.41",{"$f":"SUM(B692:B695)","v":0.26},{"$f":"SUM(C692:C695)","v":0.41000000000000003}]
["Estudios preliminares. 0.08 0.08",0.08,0.08]
["Levantamiento de estado actual. 0.00 0.15",0,0.15]
["Planos. 0.15 0.15",0.15,0.15]
["Complementos. 0.03 0.03",0.03,0.03]
["b. Proyecto definitivo. 0.74 0.84",{"$f":"SUM(B697:B698)","v":0.74},{"$f":"SUM(C697:C698)","v":0.84000000000000008}]
["Planos básicos. 0.54 0.64",0.54,0.64]
["Complementos. 0.20 0.20",0.2,0.2]
[]
["Subtotal: 1.00 1.25",{"$f":"+B696+B691","v":1},{"$f":"+C696+C691","v":1.25}]
[]
[]
["ETAPAS DEL PROYECTO DE INSTALACIONES DE GAS","FACTORES DE ALCANCE"]
[null,"OBRA NUEVA Y AMPLIACIÓN","REMODELACIÓN"]
[]
["a. Anteproyecto. 0.26 0.41",{"$f":"+B707+B710+B713+B717","v":0.26},{"$f":"+C707+C710+C713+C717","v":0.41000000000000003}]
["Estudios preliminares. 0.08 0.08",{"$f":"SUM(B708:B709)","v":0.08},{"$f":"SUM(C708:C709)","v":0.08}]
["Inspección del sitio. 0.04 0.04",0.04,0.04]
["Análisis de la información. 0.04 0.04",0.04,0.04]
["Levantamiento de estado actual. 0.00 0.15",{"$f":"SUM(B711:B712)","v":0},{"$f":"SUM(C711:C712)","v":0.15}]
["Redes y salidas de gas. No aplica 0.075","NO APLICA",7.4999999999999997E-2]
["Válvulas de control y equipo. No aplica 0.075","NO APLICA",7.4999999999999997E-2]
["Planos. 0.15 0.15",{"$f":"SUM(B714:B716)","v":0.15000000000000002},{"$f":"SUM(C714:C716)","v":0.15000000000000002}]
["Redes de distribución de gas. 0.05 0.05",0.05,0.05]
["Casa de máquinas. 0.05 0.05",0.05,0.05]
["Cuarto de tanques de almacenamiento. 0.05 0.05",0.05,0.05]
["Complementos. 0.03 0.03",{"$f":"SUM(B718:B720)","v":0.03},{"$f":"SUM(C718:C720)","v":0.03}]
["Memoria descriptiva. 0.01 0.01",0.01,0.01]
["Memoria de cálculo. 0.01 0.01",0.01,0.01]
["Selección de equipos y capacidad. 0.01 0.01",0.01,0.01]
[]
["b. Proyecto definitivo. 0.74 0.84",{"$f":"+B723+B733","v":0.74},{"$f":"+C723+C733","v":0.84000000000000008}]
["Planos básicos. 0.54 0.64",{"$f":"SUM(B724:B731)","v":0.54},{"$f":"SUM(C724:C731)","v":0.64}]
["Planos de demoliciones y desmantelamientos. No aplica 0.10","NO APLICA",0.1]
["Redes de alimentación y distribución de gas. 0.15 0.15",0.15,0.15]
["Isométricos. 0.05 0.05",0.05,0.05]
["Guías mecánicas. 0.15 0.15",0.15,0.15]
["Detalles constructivos. 0.04 0.04",0.04,0.04]
["Proyecto de casa de máquinas. 0.10 0.10",0.1,0.1]
["Proyecto de cuarto de tanques de almacenamiento",0.05,0.05]
[]
[]
["Complementos. 0.20 0.20",{"$f":"SUM(B734:B737)","v":0.2},{"$f":"SUM(C734:C737)","v":0.2}]
["Memoria descriptiva. 0.02 0.02",0.02,0.02]
["Memoria de cálculo. 0.04 0.04",0.04,0.04]
["Especificación de equipos. 0.04 0.04",0.04,0.04]
["Catálogo de conceptos y números generadores",0.1,0.1]
[]
["Anteproyecto + Proyecto definitivo 1.00 1.25",{"$f":"+B722+B706","v":1},{"$f":"+C722+C706","v":1.25}]
[]
[]
["1.1.7. PROYECTO DE INSTALACIONES DE AIRE ACONDICIONADO."]
["Para efectos de este arancel, los proyectos de aire acondicionado se han clasificado en los siguientes tipos, de acuerdo con su grado de dificultad:"]
["Tipo A:"]
["Sistemas que proporcionan únicamente ventilación mecánica para inyección y/o extracción."]
["Tipo B:"]
["Sistemas que proporcionan enfriamiento de aire para climas templados o durante el verano."]
["Tipo C:"]
["Sistemas que requieren de refrigeración y/o calefacción, humidificación y filtración y que contarán con un balance térmico."]
[]
["Fórmula para el cálculo de los honorarios del proyecto de instalaciones de aire"]
["acondicionado:"]
["H = (CO)(FS)(FE)(FA)(G)"]
["Donde:"]
["H= Honorarios."]
["CO= Costo estimado de la obra igual a (m2 de proyecto) ($/m2 de construcción)."]
["FS= Factor de superficie."]
["FE= Factor por especialidad."]
["FA= Factor de alcance."]
["G= Grado de dificultad4."]
["G Tipo A= 1.00"]
["G Tipo B= 1.33"]
["G Tipo C= 4.00"]
[]
["Tabla 2.1.7.A. Alcances del proyecto de aire acondicionado por etapas."]
[]
["ETAPAS DEL PROYECTO DE INSTALACIONES DE AIRE ACONDICIONADO","FACTORES DE ALCANCE"]
[null,"OBRA NUEVA Y AMPLIACIÓN","REMODELACIÓN"]
[]
["a. Anteproyecto. 0.24 0.39",{"$f":"SUM(B771:B774)","v":0.24000000000000002},{"$f":"SUM(C771:C774)","v":0.39}]
["Estudios preliminares. 0.08 0.08",0.08,0.08]
["Levantamiento de estado actual. 0.00 0.15",0,0.15]
["Planos. 0.13 0.13",0.13,0.13]
["Complementos. 0.03 0.03",0.03,0.03]
[]
["b. Proyecto definitivo. 0.76 0.86",{"$f":"SUM(B777:B778)","v":0.76},{"$f":"SUM(C777:C778)","v":0.8600000000000001}]
["Planos básicos. 0.56 0.66",0.56000000000000005,0.66]
["Complementos. 0.20 0.20",0.2,0.2]
[]
["Subtotal: 1.00 1.25",{"$f":"+B776+B770","v":1},{"$f":"+C776+C770","v":1.25}]
[]
[]
["ETAPAS DEL PROYECTO DE INSTALACIONES DE AIRE ACONDICIONADO","FACTORES DE ALCANCE"]
[null,"OBRA NUEVA Y AMPLIACIÓN","REMODELACIÓN"]
[]
["a. Anteproyecto. 0.24 0.39",{"$f":"+B787+B790+B793+B797","v":0.24000000000000002},{"$f":"+C787+C790+C793+C797","v":0.39}]
["Estudios preliminares. 0.08 0.08",{"$f":"SUM(B788:B789)","v":0.08},{"$f":"SUM(C788:C789)","v":0.08}]
["Inspección del sitio. 0.04 0.04",0.04,0.04]
["Análisis de la información. 0.04 0.04",0.04,0.04]
["Levantamiento de estado actual. 0.00 0.15",{"$f":"SUM(B791:B792)","v":0},{"$f":"SUM(C791:C792)","v":0.15}]
["Trayectoria y ubicación de redes y salidas. No aplica 0.075","NO APLICA",7.4999999999999997E-2]
["Ubicación de equipo y controles. No aplica 0.075","NO APLICA",7.4999999999999997E-2]
["Planos. 0.13 0.13",{"$f":"SUM(B794:B796)","v":0.13},{"$f":"SUM(C794:C796)","v":0.13}]
["Análisis del sistema a desarrollar. 0.06 0.06",0.06,0.06]
["Plano de trayectorias de ductos y tuberías. 0.04 0.04",0.04,0.04]
["Estudio de instalación de equipo. 0.03 0.03",0.03,0.03]
["Complementos. 0.03 0.03",{"$f":"SUM(B798:B799)","v":0.03},{"$f":"SUM(C798:C799)","v":0.03}]
["Memoria descriptiva. 0.02 0.02",0.02,0.02]
["Selección de equipos y capacidad. 0.01 0.01",0.01,0.01]
[]
["b. Proyecto definitivo. 0.76 0.86",{"$f":"+B802+B816","v":0.76},{"$f":"+C802+C816","v":0.8600000000000001}]
["Planos básicos. 0.56 0.66",{"$f":"SUM(B803:B815)","v":0.56000000000000005},{"$f":"SUM(C803:C815)","v":0.66}]
["Planos de demoliciones y desmantelamientos. No aplica 0.05","NO APLICA",0.05]
["Plano de trayectorias de ductos y tuberías. 0.05 0.07",0.05,7.0000000000000007E-2]
["Plano de localización del equipo. 0.05 0.07",0.05,7.0000000000000007E-2]
["Red de ductos y balance térmico. 0.05 0.05",0.05,0.05]
["Red de tuberías. 0.04 0.05",0.04,0.05]
["Isométricos y flujos. 0.04 0.04",0.04,0.04]
["Alimentadores eléctricos al equipo. 0.05 0.05",0.05,0.05]
["Instalación eléctrica con diagrama unifilar y cuadros de cargas.",0.04,0.04]
["Instalación hidráulica y sanitaria con isométricos. 0.05 0.05",0.05,0.05]
["Cuadro de equipos. 0.05 0.05",0.05,0.05]
["Detalles de control. 0.05 0.05",0.05,0.05]
["Detalles constructivos y de instalación. 0.04 0.04",0.04,0.04]
["Guías mecánicas. 0.05 0.05",0.05,0.05]
["Complementos. 0.20 0.20",{"$f":"SUM(B817:B820)","v":0.2},{"$f":"SUM(C817:C820)","v":0.2}]
["Memoria descriptiva. 0.02 0.02",0.02,0.02]
["Memoria de cálculo. 0.04 0.04",0.04,0.04]
["Especificación de equipos. 0.04 0.04",0.04,0.04]
["Catálogo de conceptos y números generadores. 0.10 0.10",0.1,0.1]
["Anteproyecto + Proyecto definitivo 1.00 1.25",{"$f":"+B801+B786","v":1},{"$f":"+C801+C786","v":1.25}]
[]
[]
[]
["1.1.8. PROYECTO DE INSTALACIONES DE TELECOMUNICACIONES."]
["Fórmula para el cálculo de los honorarios del proyecto de instalaciones de"]
["telecomunicaciones:"]
["H = (CO)(FS)(FE)(FA)"]
["Donde:"]
["H= Honorarios."]
["CO= Costo estimado de la obra igual a (m2 de proyecto) ($/m2 de construcción)."]
["FS= Factor de superficie."]
["FE= Factor por especialidad."]
["FA= Factor de alcance."]
[]
["Tabla 2.1.8.A. Alcances del proyecto de telecomunicaciones por etapas."]
["ETAPAS DEL PROYECTO DE INSTALACIONES DE AIRE ACONDICIONADO","FACTORES DE ALCANCE"]
[null,"OBRA NUEVA Y AMPLIACIÓN","REMODELACIÓN"]
[]
["a. Anteproyecto. 0.25 0.40",{"$f":"SUM(B841:B844)","v":0.25},{"$f":"SUM(C841:C844)","v":0.4}]
["Estudios preliminares. 0.08 0.08",0.08,0.08]
["Levantamiento de estado actual. No aplica 0.15","NO APLICA",0.15]
["Planos. 0.14 0.14",0.14000000000000001,0.14000000000000001]
["Complementos. 0.03 0.03",0.03,0.03]
["b. Proyecto definitivo. 0.75 0.85",{"$f":"SUM(B846:B847)","v":0.75},{"$f":"SUM(C846:C847)","v":0.85000000000000009}]
["Planos básicos. 0.55 0.65",0.55000000000000004,0.65]
["Complementos. 0.20 0.20",0.2,0.2]
["Subtotal: 1.00 1.25",{"$f":"+B845+B840","v":1},{"$f":"+C845+C840","v":1.25}]
[]
[]
["ETAPAS DEL PROYECTO DE INSTALACIONES DE AIRE ACONDICIONADO","FACTORES DE ALCANCE"]
[null,"OBRA NUEVA Y AMPLIACIÓN","REMODELACIÓN"]
[]
["a. Anteproyecto. 0.25 0.40",{"$f":"+B855+B858+B861+B866","v":0.25},{"$f":"+C855+C858+C861+C866","v":0.4}]
["Estudios preliminares. 0.08 0.08",{"$f":"SUM(B856:B857)","v":0.08},{"$f":"SUM(C856:C857)","v":0.08}]
["Inspección de sitio. 0.04 0.04",0.04,0.04]
["Análisis de la información. 0.04 0.04",0.04,0.04]
["Levantamiento de estado actual. 0.00 0.15",{"$f":"SUM(B859:B860)","v":0},{"$f":"SUM(C859:C860)","v":0.15}]
["Trayectoria de redes y ubicación de salidas. No aplica 0.075","NO APLICA",7.4999999999999997E-2]
["Ubicación de equipo, tableros y controles. No aplica 0.075","NO APLICA",7.4999999999999997E-2]
["Planos. 0.14 0.14",{"$f":"SUM(B862:B865)","v":0.14000000000000001},{"$f":"SUM(C862:C865)","v":0.14000000000000001}]
["Planta de conjunto. 0.04 0.04",0.04,0.04]
["Propuesta de sistema de telefonía, intercomunicacion, redes de cómpito e instalaciones especiales.",0.04,0.04]
["Estudio de instalación de equipo. 0.03 0.03",0.03,0.03]
["Cuarto de telecomunicaciones. 0.03 0.03",0.03,0.03]
["Complementos. 0.03 0.03",{"$f":"SUM(B867:B868)","v":0.03},{"$f":"SUM(C867:C868)","v":0.03}]
["Memoria descriptiva. 0.01 0.01",0.01,0.01]
["Selección de equipos y capacidad. 0.02 0.02",0.02,0.02]
[]
["b. Proyecto definitivo. 0.75 0.85",{"$f":"+B871+B881","v":0.75},{"$f":"+C871+C881","v":0.85000000000000009}]
["Planos básicos. 0.55 0.65",{"$f":"SUM(B872:B880)","v":0.55000000000000004},{"$f":"SUM(C872:C880)","v":0.65}]
["Planos de demoliciones y desmantelamientos. No aplica 0.07","NO APLICA",7.0000000000000007E-2]
["Planta de conjunto. Alimentadores generales. 0.05 0.06",0.05,0.06]
["Red interna y externa para el sistema de telefonia.",0.08,0.1]
["Red interna y externa de cableado estructurado y fibra óptica.",0.08,0.08]
["Red interna y externa de intercomunicación. 0.08 0.08",0.08,0.08]
["Selección de equipo y capacidad. 0.07 0.07",7.0000000000000007E-2,7.0000000000000007E-2]
["Ubicación de equipo y registros. 0.05 0.05",0.05,0.05]
["Detalles constructivos y de instalación. 0.05 0.05",0.05,0.05]
["Cuarto de telecomunicaciones. 0.09 0.09",0.09,0.09]
["Complementos. 0.20 0.20",{"$f":"SUM(B882:B885)","v":0.2},{"$f":"SUM(C882:C885)","v":0.2}]
["Memoria descriptiva. 0.02 0.02",0.02,0.02]
["Memoria de cálculo. 0.04 0.04",0.04,0.04]
["Especificación de equipos. 0.04 0.04",0.04,0.04]
["Catálogo de conceptos y números generadores.",0.1,0.1]
["Anteproyecto + Proyecto definitivo 1.00 1.25",{"$f":"+B870+B854","v":1},{"$f":"+C870+C854","v":1.25}]
[]
[]
["1.1.9. ESTUDIOS TÉCNICOS ESPECIALIZADOS."]
["Para los efectos de este arancel, se entenderá por estudios técnicos especializados aquellos trabajos"]
["preliminares que se realicen para proporcionar y complementar los datos necesarios para la toma de"]
["decisión en la solución de un proyecto arquitectónico, estructural y/o de ingenierías."]
["1.1.9.1. GUÍAS MECÁNICAS."]
["Cuando en el proyecto arquitectónico existan locales que por sus características funcionales y"]
["operativas requieran de mobiliario y equipo especiales con instalaciones particulares, dichos"]
["locales, incluyendo sus anexos, deberán estudiarse y desarrollarse arquitectónicamente a una"]
["escala mayor que la utilizada en los planos básicos y de edificación:"]
["Obra nueva y ampliación."]
[]
["a) Si la superficie del proyecto de guía mecánica es entre 10 m² y 300 m²."]
["H = [2.711(e–.00185(X))](0.0040372*$/m²)X"]
["Donde:"]
["H= Honorarios."]
["e= 2.71828182"]
["X= Superficie de proyecto de guía mecánica."]
["$/m2= Costo por m² de construcción."]
[]
["b) Si la superficie de proyecto de guía mecánica es igual o menor de 10 m²:"]
["H = 2.662(0.0040372*$/m²)X"]
["c) Si la superficie de proyecto de guía mecánica es igual o mayor de 301 m²:"]
["H = 1.557(0.0040372*$/m²)X"]
["Remodelación o adaptación (que aproveche elementos existentes)."]
["Se aplicará el arancel de obra nueva incrementando un 25% por acciones de levantamiento e"]
["investigación del estado actual."]
[]
[]
[]
["1.1.9.2. PRESUPUESTO BASE."]
["Es la formulación del análisis de precios unitarios detallado para cada concepto que interviene en"]
["la edificación, incluyendo la cotización del catálogo de conceptos y volúmenes de obra."]
["El presupuesto base deberá elaborarse para cada una de las especialidades listadas en el"]
["numeral 1.3.A. Factores de especialidad de este arancel y aplicando los Factores de Alcance"]
["correspondientes para cada caso."]
["ARANCELES PROFESIONALES"]
["APLICABLES A LA INFE."]
[34]
["El cálculo para su pago se hará con la siguiente fórmula:"]
["H = (CO)(FS)(FE)(FA)(0.025)"]
["Donde:"]
["H= Honorarios."]
["CO= Costo estimado de la obra igual a (m2 de proyecto) ($/m2 de construcción)."]
["FS= Factor de superficie."]
["FE= Suma del factor por especialidad."]
["FA= Factor de alcance."]
[]
[]
["1.1.9.3. LEVANTAMIENTO TOPOGRÁFICO."]
["Son los estudios y operaciones necesarias para obtener los datos de la configuración del terreno"]
["(Planimetría y Altimetría) y su representación en planos."]
["Para el pago de estos trabajos se considerarán tres actividades con distinto factor de cálculo:"]
[]
["ACTIVIDAD FACTOR DE CÁLCULO"]
["a. Trabajo de campo."]
["Se paga por día brigada. 0.4956",0.49559999999999998]
[]
["b. Trabajo de gabinete."]
["Se paga por día gabinete. 0.5097",0.50970000000000004]
[]
["c. Elaboración de planos."]
["Se paga por pieza. 0.2946",0.29459999999999997]
[]
["Para el cálculo de su pago se aplicará la siguiente fórmula:"]
["H= (FC)($/m²)(Cr)(Ff)"]
["Donde:"]
["H= Honorarios."]
["$/m2= Costo por metro cuadrado."]
["FC= Factor de cálculo."]
["Cr= Cantidad de días o unidades requeridas para el desarrollo de las actividades."]
["Ff= Factor de servicios foráneos."]
[]
[]
[]
["1.1.9.4. MODELO TRIDIMENSIONAL Y ANIMACIÓN VIRTUAL POR COMPUTADORA."]
["La imagen se desarrollará en software renderizado 3D, con estudio de iluminación global,"]
["policromático, con acabados, brillos, figura humana y ambientación detallada en mobiliario,"]
["cancelerías, carpinterías, mobiliario urbano, señalización e imagen, vehículos y vegetación real."]
["Se entenderá por escenario al volumen tridimensional para la elaboración de perspectivas o"]
["tomas fotográficas, en el cual se integran por la geometría, pruebas de materiales (texturas y"]
["acabados), pruebas de iluminación (natural y artificial) y pruebas de ambientación."]
["Para el cálculo del pago se aplicará la siguiente fórmula:"]
["ARANCELES PROFESIONALES"]
["APLICABLES A LA INFE."]
[35]
["H = CE + CF"]
["Donde:"]
["H= Honorarios."]
["CE= Costo de escenario"]
["CF= Costo de fotos."]
[]
["Para el obtener el costo de escenario (CE), se aplicará la siguiente fórmula:"]
["CE = (ND) (0.20) (B) (FT)"]
["Donde:"]
["CE= Costo de escenario base."]
["ND= Número de días."]
["FT= Factor de escenario."]
[]
["B= Costo paramétrico promedio."]
["Para obtener el costo paramétrico promedio (B), se aplicarán los indicadores establecidos en el"]
["capítulo 1, numeral 1.1 costos paramétricos de construcción de esté arancel."]
["Se entenderá como costo paramétrico mayor ($/m²mayor), el costo más alto establecido en este"]
["arancel."]
["Se entenderá como costo paramétrico del nivel educativo ($/m² Nivel Educativo), el costo para"]
["el cual se esté calculando el servicio."]
["Para obtener el costo paramétrico promedio (B), se aplicará la siguiente fórmula:"]
["B= ($/m²mayor + $/m² Nivel Educativo)"]
[2]
["Para obtener el costo de número de fotos (CF), se aplicará la siguiente fórmula:"]
["CF = (CE) (FR) (NF)"]
["Donde:"]
["CF= Costo de número de fotos."]
["CE= Costo de escenario base."]
["FT= Factor de escenario."]
["NF= Número de fotos."]
["FR= Factor de render."]
["Para obtener el factor de render (FR), se aplicará la siguiente fórmula:"]
["FR= 6160"]
["(ND) (B) (FT)"]
["Donde:"]
["FR= Factor de render."]
["ND= Número de días."]
["B= Costo paramétrico promedio."]
["FT= Factor de escenario."]
[]
["ALCANCES PARA MODELOS TRIDIMENSIONALES Y ANIMACIÓN."]
["NO. DE ESCENARIO.","NO. DE DÍAS (ND)","FACTOR DE ESCENARIO (FT)","NO. DE FOTOS (NF)"]
[" 1 - 2",10,1," 3- 6"]
[" 3 - 4",20,0.75," 9 - 12"]
[" 5 - X*",30,0.5," -"]
[]
["* Solo se aplicará para animación máximo 3 minutos."]
[]
[]
["ANIMACIÓN VIRTUAL."]
["La imagen se desarrollará en software renderizado 3D, con estudio de iluminación global, con"]
["calidad mínima de 24 a 30 (fps) cuadros por segundo, con formato de salida DVD de 720 x 480"]
["(tamaño de Imagen); edición de audio y vídeo y formato Avi (Windows Media) policromático con"]
["acabados, brillos y musicalizado, figura humana y ambientación detallada en mobiliario,"]
["cancelerías, carpinterías, mobiliario urbano, señalización e imagen, vehículos y vegetación real."]
["Su pago por minuto de animación estará sujeto a la aplicación del cálculo del escenario base"]
["(CE) y al costo de animación (CA)."]
["Para el cálculo del pago de animación virtual se aplicará la siguiente fórmula:"]
["H = CE + CA"]
["Donde:"]
["H= Honorarios."]
["CE= Costo de escenario base."]
["CA= Costo de animación."]
["Para obtener el costo de animación (CA), se aplicará la siguiente fórmula:"]
["CA = (0.4278) (Min)2 (B)"]
["Donde:"]
["CA= Costo de animación."]
["Min= 0.4278"]
["B= Costo paramétrico promedio."]
["1.1.9.5. LÁMINAS DE PRESENTACIÓN."]
["Las láminas de presentación tendrán un tamaño de 90 x 120 cm, con impresión en papel"]
["fotográfico adherido a lámina de arcel."]
["Su pago estará sujeto a la aplicación del factor de cálculo, correspondiente a la tipología de su"]
["clasificación de acuerdo con su complejidad."]
["ARANCELES PROFESIONALES"]
["APLICABLES A LA INFE."]
[37]
["Tipo A:"]
["Contenido de textos, gráficos 2D, fotografías y dibujos arquitectónicos, monocromático y a color."]
["Tipo B:"]
["Contenido de textos, gráficos 3D, fotografías y dibujos arquitectónicos perspectivas e importación"]
["de render."]
["Para el cálculo del pago se aplicará la siguiente fórmula:"]
["H = FC ($/m²)"]
["Donde:"]
["H= Honorarios."]
["$/m2= Costo por metro cuadrado."]
["FC= Factor de cálculo."]
[]
["TIPOLOGÍA","FACTOR DE CÁLCULO"]
["Tipo A",1]
["Tipo B",1.5]
[]
[]
["1.1.9.6. REPORTE FOTOGRÁFICO DIGITALIZADO."]
["Su pago estará sujeto a un mínimo de 30 fotografías a color de 4” x 6”."]
["El reporte incluirá fotografías panorámicas por áreas y tomas desde los vértices, a las que se"]
["anexarán croquis indicando los puntos y direcciones de las tomas."]
["El reporte se entregará en hojas tamaño carta, en formato vertical, con un máximo de dos"]
["fotografías por hoja, con pie de foto y plano de ubicación de cada una, acompañadas de una"]
["breve descripción de lo que representa cada fotografía."]
["H = (NF) [(70) BA / B]"]
["Donde:"]
["H= Honorarios."]
["NF= Número de fotos."]
["B= Costo paramétrico promedio."]
["BA= Costo paramétrico promedio del año inmediato anterior."]
["Para obtener el costo paramétrico promedio (B) y el inmediato anterior (BA), se aplicarán los"]
["indicadores establecidos en el capítulo 1, numeral 1.1 costos paramétricos de construcción de"]
["este arancel."]
["Se entenderá como costo paramétrico mayor ($/m²mayor), el costo más alto establecido en este"]
["arancel."]
["Se entenderá como costo paramétrico del nivel educativo ($/m² Nivel Educativo), el costo del"]
["nivel educativo para el cual se esté calculando el servicio."]
[38]
["Para obtener el costo paramétrico promedio (B) y el inmediato anterior (BA), se aplicará la siguiente fórmula:"]
["B o BN= ($/m²mayor + $/m² Nivel Educativo) / 2"]
[]
[]
["1.1.9.7. ELABORACIÓN DE MAQUETAS."]
["La maqueta considerada para este arancel es a detalle, elaborada con plástico estireno o similar"]
["con una base de madera y cubierta con capelo de acrílico transparente; asimismo, debe ser,"]
["monocromática, representando texturas, transparencias, oscuros y brillos; incluyendo: terreno,"]
["colindancias, vialidades perimetrales, obras exteriores (plazas, circulaciones, jardines,"]
["estacionamiento) y edificios. Asimismo considera la escala humana, vehículos, vegetación"]
["existente y propuesta, mobiliario urbano e imagen corporativa."]
["Su pago estará sujeto a la aplicación del factor de cálculo, correspondiente a la tipología de su"]
["clasificación de acuerdo con su complejidad y dimensión."]
["H = FC ($/m²)"]
["Donde:"]
["H= Honorarios."]
["$/m2= Costo por metro cuadrado."]
["FC= Factor de cálculo."]
["Tipo A:"]
["De dimensión menor de base de madera de 1.08 m² (90 x 120 cm)."]
["Tipo B:"]
["De dimensión entre a 1.08 m² (90 x 120 cm) a 1.44 m² (120 x 120 cm)."]
["Tipo C:"]
["De dimensión mayor de 1.44 m² (120 x 120 cm)."]
["Tipo D:"]
["Maqueta desmontable al 100% de la superficie construida con mobiliario interior de dimensión de"]
["base menor a 1.08 m²; o desmontable al 50% de la superficie construida de dimensión de base"]
["de 1.08 m² a 1.44 m²; o desmontable al 30% de la superficie construida mayor de 1.44m²."]
[]
["TIPOLOGÍA","FACTOR DE CÁLCULO"]
["Tipo A",5.9074999999999998]
["Tipo B",8.6643000000000008]
["Tipo C",11.421099999999999]
["Tipo D",14.178000000000001]
[]
[]
["1.1.9.8. PRUEBAS GEOTÉCNICAS.5"]
["Conjunto de procedimientos y métodos, tanto de campo como de laboratorio, mediante los"]
["cuales se determinan la posición del nivel freático, el tipo de materiales y las propiedades"]
["mecánicas esfuerzo-deformación (bajo condiciones estáticas y dinámicas) de los estratos del"]
["subsuelo para el diseño y construcción de obras."]
["Su pago estará sujeto a la aplicación del factor de cálculo correspondiente a la tipología de su"]
["clasificación."]
["H = FC ($/m²)"]
["Donde:"]
["H= Honorarios."]
["$/m2= Costo por metro cuadrado."]
["FC= Factor de cálculo."]
[]
["Tabla 2.1.9.9.A. Sondeos en campo."]
[]
["TIPO DE EXPLORACION","FACTOR DE CALCULO"]
["I. Exploración del subsuelo."]
["1. El metro de sondeo de penetración estándar. Incluyendo pruebas índice de laboratorio (Ver Nota 1 de Apéndice). ",0.16170000000000001]
["2. El metro de sondeo inalterado Shelby, Incluyendo ensayes índice de laboratorio (Ver Nota 1 de Apéndice). 0.2275 ",0.22700000000000001]
["3. El metro de sondeo inalterado a cielo abierto, incluyendo ensayes de laboratorio."]
["3.1. Excavado con pico y pala. 0.1467",0.1467]
["3.2. Excavado con auxilio de cuña y marro. 0.2709",0.27089999999999997]
["4. El metro de sondeo inalterado Denison, incluyendo ensayes índice de laboratorio (Ver Nota 1). 0.2709",0.27089999999999997]
[]
[" - Diametro B."]
["5. El metro de perforación y muestreo utilizando barriles con broca de diamante o carburo de tungsteno en rocas poco fracturadas (Ver Notas 2 y 3)."]
["5.1. En tobas o rocas arcillosas, no cementadas. 0.0996",9.9599999999999994E-2]
["5.2. En rocas calcáreas o arcillosas. 0.1349",0.13489999999999999]
["5.3. En rocas ferromagnecianas. 0.2195",0.2195]
["5.4. En rocas cuarzosas. 0.3255",0.32550000000000001]
[" - Diametro N."]
["5.5. En tobas y rocas arcillosas no cementadas. 0.1285",0.1285]
["5.6. En rocas calcáreas o arcillosas cementadas. 0.1553",0.15529999999999999]
["5.7. En rocas ferromagnecianas. 0.2543",0.25430000000000003]
["5.8. En rocas cuarzosas. 0.3812",0.38119999999999998]
["6. El metro de perforación y muestreo utilizando barriles con broca de diamante o carburo de tungsteno, en rocas muy fracturadas (Ver Notas 2 y 3)."]
[" - Diametro B."]
["6.1. En tobas y rocas arcillosas no cementadas 0.2163",0.21629999999999999]
["6.2. En rocas calcáreas o arcillosas cementadas. 0.2698",0.26979999999999998]
["6.3. En rocas ferromagnecianas. 0.4476",0.4476]
["6.4. En rocas cuarzosas. 0.5675",0.5675]
["6.5. En acarreos de grava y boleo. 0.3511",0.35110000000000002]
[" - Diametro N."]
["6.6. En tobas y rocas arcillosas no cementadas. 0.2495",0.2495]
["6.7. En rocas calcáreas o arcillosas cementadas. 0.3137",0.31369999999999998]
["6.8. En rocas ferromagnecianas. 0.5258",0.52580000000000005]
["6.9. En rocas cuarzosas. 0.6918",0.69179999999999997]
["6.10. En acarreos de grava y boleo. 0.3119",0.31190000000000001]
["7. El metro de perforación sin muestreo, con trepano, broca tricónica, etc., en diámetro de 7.5 cm (3´´) se excluye el empleo de ademe."]
["7.1. En suelos no cementados, excepto acarreos. 0.0562",5.62E-2]
["7.2. En suelos duros o cementados, o en tobas o en tobas o rocas arcillosas, no cementadas. 0.0899",8.9899999999999994E-2]
["7.3. En acarreos de grava y boleo. 0.0675",6.7500000000000004E-2]
["Nota: El último concepto se logra con los P.U. de los conceptos de perforación y muestreo de tobas y rocas en diámetro N, reducidos en un 25%."]
["8. El metro de ademe metálico recuperable."]
[" - Diametro B."]
["8.1. En tobas y rocas arcillosas no cementadas 0.0610",6.0999999999999999E-2]
["8.2. En rocas calcáreas o arcillosas cementadas. 0.0894",8.9399999999999993E-2]
["8.3. En rocas ferromagnecianas. 0.1563",0.15629999999999999]
["8.4. En rocas cuarzosas. 0.3234",0.32340000000000002]
[" - Diametro N."]
["8.5. En tobas y rocas arcillosas no cementadas. 0.0707",7.0699999999999999E-2]
["8.6. En rocas calcáreas o arcillosas cementadas. 0.1071",0.1071]
["8.7. En rocas ferromagnecianas. 0.1809",0.18090000000000001]
["8.8. En rocas cuarzosas. 0.4176",0.41760000000000003]
["8.9. En acarreos de grava y boleo. 0.0883",8.8300000000000003E-2]
["9. Suministro e instalación de piezómetros, incluyendo la medición durante los trabajos de campo."]
["- Piezómetro abiertos:"]
["9.1. Perforación en 7.5 cm de diámetro."]
["Nota: Se pagará de acuerdo al concepto de perforación sin muestreo."]
["9.2. Ademe metálico recuperable, en diámetro N."]
["Nota: Se pagará de acuerdo al concepto de ademe metálico recuperable."]
["9.3. Suministro e instalación por metro. 0.0380",3.7999999999999999E-2]
["9.4. Registro de protección. 0.0800",0.8]
["9.5. Perforación en 7.5 cm de diámetro."]
["Nota: Este concepto se pagará de acuerdo al concepto de perforación sin sondeo."]
["9.6. Ademe metálico recuperable."]
["Nota: Se pagará de acuerdo al concepto de ademe metálico recuperable."]
["9.7. Suministro y calibración de celda tipo CFE de 5 cm de diámetro.",0.31369999999999998]
["9.8. Suministro e instalación de tuberías por metro. 0.2668",0.26879999999999998]
["9.9. Registro de protección. 0.0803",8.0299999999999996E-2]
["10. Abastecimiento de agua para perforación."]
["Importe establecido por el INFED."]
["11. El día/brigada de viáticos (alimentación y hospedaje) de la brigada de exploración de campo, constituida por cuatro personas/equipo, incluyendo los días no laborables."]
["11.1. Áreas fronterizas, turísticas o petroleras. 0.1649",0.16489999999999999]
["11.2. Otras áreas. 0.1242",0.1242]
["12. Transporte de personal y equipo de perforación al lugar y viceversa."]
["12.1. Transporte de personal."]
["Nota: Se pagará al valor de los boletos de transporte terrestre con un indirecto"]
["del 23%."]
["12.2. Tarifa fija por transporte de equipo. 0.4017",0.4017]
["12.3. Tarifa por kilometraje de transporte y equipo."]
["Nota: Se pagará al valor del flete con un indirecto del 23%."]
[]
["5 Instituto Mexicano del Seguro Social. Subdirección General de Obras y Patrimonio Inmobiliario. Arancel para el pago de proyectos de Arquitectura e Ingeniería. Instituto Mexicano del Seguro Social."]
[]
["2.1.9.9.1. Diámetros B y N."]
["Se refiere a los tamaños de brocas de perforación más usuales cuyas dimensiones son las"]
["siguientes: Brocas B, de manera comercial BX, diámetro interior o de núcleo de 42 mm ó 1.654”,"]
["diámetro exterior o de perforación de 58.9 mm ó 2.318”."]
["Brocas N, de manera comercial NX, diámetro interior o de núcleo de 54.7 mm ó 2.154”, diámetro"]
["exterior o de perforación de 75.7 mm ó 2.980”."]
[]
["2.1.9.9.2. Notas para los conceptos de acarreos de grava y boleo."]
["Se refiere a que puede existir un tipo de terreno compuesto por estos dos elementos, ya sean"]
["provocados o de manera natural. En caso de que el estudio se tenga que efectuar en un terreno"]
["de estas características se incrementará un 25% al costo del concepto de “tobas y rocas” más el"]
["factor de acarreos de grava y boleo."]
[]
["2.1.9.9.3. Ensayes índice."]
["Los ensayes índice de laboratorio consisten en: Clasificación manual y visual en húmedo y en"]
["seco de acuerdo al contenido natural de agua, límites de plasticidad líquida y plástica,"]
["granulometría con mallas y/o determinación del porcentaje de finos."]
["Dado que el tipo y número de ensayes índice varía en forma notable con la naturaleza del suelo"]
["y consecuentemente con el tipo de muestreo, no es factible establecer un programa único de"]
["ensayes; no obstante para los fines del arancel en la tabla siguiente se consignan los ensayes"]
["que en promedio se realizan en los diversos estudios (Tabla 1)."]
[]
[]
["Tabla 2.1.9.9.3.A. Tipo y cantidad de ensayes índice."]
[]
["TIPO DE MUESTRA","CLASIFICACION Y CONTENIDO DE AGUA","LIMITES PLASTICOS","GRANULOMETRIA","FINOS"]
["Alterada.","3 juegos/m","1 juego/ 5m","1 prueba/7m","1/prueba/m"]
["Inalterada","4 juegos/m","1 juego/4m","1 prueba/4m","1/prueba/m"]
["Inalterada","1 juego/m","1 juego /2m",null,"1/prueba/m"]
[]
[]
["2.1.9.9.4. Clasificación de las rocas por dureza y abrasividad."]
["Para los fines de este arancel, la clasificación de las rocas atendiendo a su dureza y abrasividad"]
["es la siguiente:"]
["a. Tobas y rocas arcillosas no cementadas:"]
["Con esta denominación se agrupa a todas aquellas rocas que no contienen cantos rodados y"]
["cuyo cementante es escaso y consiste de arcilla o carbonatos de calcio y de magnesio, P.E.,"]
["escoria volcánica (tezontle), limolita, argilita, tobas lutitas (con resistencia en compresión axial"]
["mayor de 50 Kg/cm²)."]
["b. Rocas calcáreas o arcillosas cementadas:"]
["Este grupo comprende a las siguientes rocas: caliza, coquina, traventino, pizarra,"]
["conglomerado calcáreo con clásticos del mismo material y lutitas duras (con resistencia en"]
["compresión axial mayor de 50 Kg/cm²)."]
["c. Rocas ferromagnesianas:"]
["Bajo esta denominación se identifica a: basalto, grabo, riolita, andesita, diorita peridotita,"]
["monzonita, traquita, tobas volcánicas bien cementadas (con resistencia en compresión axial"]
["mayor de 50 Kg/cm²) y conglomerados con clásticos de las rocas mencionadas."]
["d. Rocas cuarzosas:"]
["Este grupo abarca a: granito, pegmatita, grandirita, felsita, arenisca, obsidiana mármol,"]
["exquisito, gneiss y conglomerados con clásticos de las rocas mencionadas, se excluyen las"]
["rocas solidificadas o aquellas en que el contenido de cuarzo es excepcionalmente alto, P.E."]
["cuarcita, cuarzodiorita, pizarra cuarcífera y pedernal en cuyo caso, los precios unitarios"]
["deberán establecerse en cada problema específico."]
["2.1.9.9.5. Clasificación de las rocas por su fractura."]
["Para los fines del arancel, la clasificación de las rocas atendiendo a su fractura se definen a"]
["continuación:"]
["a. Rocas poco fracturadas:"]
["El término se refiere a aquellas rocas cuyo parámetro R.Q.D.6 es de 75% o mayor."]
["b. Rocas muy fracturadas:"]
["Son aquellas en que el parámetro R.Q.D. es 50% o menor. Para casos intermedios, habrá que"]
["interpolar los precios unitarios correspondientes."]
["6 El índice RQD (Rock Quality Designation) se define como el porcentaje de recuperación de testigos de más de 10 cm de longitud"]
["(en su eje) sin tener en cuenta las roturas frescas del proceso de perforación respecto de la longitud total del sondeo."]
[]
[]
[]
["Tabla 2.1.9.9.B. Pruebas de laboratorio."]
["TIPO DE PRUEBA","FACTOR DE CALCULO"]
["II. Pruebas de laboratorio."]
["1. Clasificación visual y al tacto en humedad, en seco y contenido natural del agua.",4.5999999999999999E-3]
["2. Límites de plasticidad líquido y plástico. 0.0257",2.5700000000000001E-2]
["3. Límite de contracción volumétrica. 0.0178",1.78E-2]
["4. Contracción lineal. 0.0100",0.01]
["5. Densidad de Sólidos. 0.0114",1.14E-2]
["6. Determinación del porcentaje de finos por lavado. 0.0114",1.14E-2]
["7. Granulometría con mallas. 0.0307",3.0700000000000002E-2]
["8. Granulometría con hidrómetro. 0.0635",6.3500000000000001E-2]
["9. Pesos volumétricos húmedo y seco. 0.0121",1.21E-2]
["10. Resistencia con tacómetro. 0.0025",2.5000000000000001E-3]
["11. Compresión axial no confinada."]
["11.1. 1 Ensaye Normal. 0.0264",2.64E-2]
["11.2. Ensaye cíclico. 0.0400",0.04]
["12. Compresión Triaxial no consolidada, no drenada (probetas)."]
["12.1. Ensaye Normal. 0.1071",0.1071]
["12.2. Ensaye cíclico. 0.1499",0.14990000000000001]
["13. Compresión Triaxial no consolidada no drenada (3 probetas)."]
["13.1. Ensaye Normal. 0.2042",0.20419999999999999]
["13.2. Ensaye cíclico. 0.2463",0.24629999999999999]
["14. Corte directo no consolidado, no drenado (3 probetas). 0.1582",0.15820000000000001]
["15. Consolidación unidimensional, con seis incrementos en carga y seis incrementos en descarga.",0.17699999999999999]
["16. Saturación bajo carga (3 probetas) 0.1735",0.17349999999999999]
["17. Permeabilidad."]
["17.1. Con parámetro de carga constante. 0.0578",5.7799999999999997E-2]
["17.2. Con parámetro de carga variable. 0.0657",6.5699999999999995E-2]
["18. Pesos Volumétricos húmedo y seco en el lugar método de cono y arena. 0.0229",2.29E-2]
["19. Compactación proctor estándar. 0.0585",5.8500000000000003E-2]
["20. Compactación proctor. 0.0592",5.9200000000000003E-2]
["21. Valor relativo de soporte."]
["21.1. En especímenes inalterados. 0.0650",6.5000000000000002E-2]
["21.2. En especímenes compactos. 0.0692",6.9199999999999998E-2]
[]
[]
["Tabla 2.1.9.9.C. Servicios de Ingeniería."]
["DESCRIPCIÓN DEL SERVICIO"]
[]
["III. Servicios de Ingeniería."]
["1. Elaboración de los programas de exploración y muestreo del subsuelo."]
["2. Visita al sitio para conocer la problemática general, en su caso, modificar o complementar el"]
["programa original de exploración."]
["3. Selección del número, tipo y procedimiento de las pruebas de laboratorio por realizar en los"]
["diversos suelos explorados."]
["4. Definición del origen, composición y propiedades del subsuelo."]
["5. Análisis de alternativas de cimentación y en su caso recomendaciones para taludes, empujes"]
["en muros, pisos y control del comportamiento de la obra durante y posterior a su"]
["construcción."]
["6. Elaboración de especificaciones generales sobre el procedimiento constructivo de las"]
["cimentaciones."]
[]
["El pago de los servicios de ingeniería estará sujeto a la aplicación de los siguientes criterios:"]
["A. Cuando ST sea menor a 4.5*$/m2 de construcción:"]
["SI= [(0.4*$/m²)+(0.4*ST)-(0.396*$/m²)]"]
["B. Cuando ST sea mayor a: 4.5*$/m² de construcción:"]
["SI= [(1.98*$/m²)+(0.2*ST)-(4.5*$/m²)]"]
["Donde:"]
["SI= Importe de servicios de ingeniería en miles de pesos."]
["ST= Importe de exploración y ensayes de laboratorio en miles de pesos."]
[]
[]
["1.1.9.9. PROYECTOS DE PLANTAS DE TRATAMIENTO DE AGUAS RESIDUALES."]
["Cuando las condiciones de infraestructura de servicios públicos en la localidad obliga a que las"]
["aguas residuales de algún inmueble educativo se vierta al subsuelo (por medio de pozos de"]
["absorción) o bien a algún cuerpo receptor aprobado por las autoridades correspondientes (mar,"]
["río, arroyo, barranca), se requiere dar un tratamiento secundario a esas aguas a través de un"]
["proceso físico, químico o combinado. El arancel por diseño de estas plantas se calculará con la"]
["siguiente fórmula:"]
["H= FC ($/m²)"]
["Donde:"]
["H= Honorarios."]
["$/m2= Costo por metro cuadrado."]
["FC= 5.138"]
[]
["1.1.9.10. SISTEMA INTEGRAL DE SEGURIDAD."]
["Consiste en los proyectos de diseño relacionados con la ingeniería de telecomunicaciones para"]
["los sistemas específicos de seguridad integral:"]
[]
["H = (CO)(FS)(FE)(FC)"]
["Donde:"]
["H= Honorarios."]
["CO= Costo de la obra igual a (m² de proyecto) ($/m² de construcción)."]
["FS= Factor de superficie."]
["FE= Factor de especialidad."]
["FC= Factor de cálculo."]
[]
["PROYECTO","FACTOR DE CALCULO"]
["Circuito cerrado de televisión. 0.20",0.2]
["Detección de humos. 0.15",0.15]
["Alarmas. 0.20",0.2]
["Control de acceso. 0.10",0.1]
[]
[]
["1.1.9.11. PROYECTO DE AUTOMATIZACIÓN Y CONTROL DE EQUIPOS."]
["Es el uso de sistemas o elementos computarizados y electromecánicos programados para"]
["verificar el funcionamiento y proceso de equipos de servicios."]
["H = (CO)(FS)(FE)(FC)"]
["Donde:"]
["H= Honorarios."]
["CO= Costo de la obra igual a (m² de proyecto) ($/m² de construcción)."]
["FS= Factor de superficie."]
["FE= Factor de especialidad."]
["FC= 0.25"]
[]
["1.1.9.12. COORDINACIÓN GLOBAL DEL PROYECTO."]
["Consiste en la dirección (generalmente por parte del arquitecto diseñador) del proceso y la"]
["ejecución de los proyectos de ingeniería y su integración con el proyecto arquitectónico"]
["autorizado, que contemplen la solución integral de todas las áreas que intervienen."]
["El costo se encuentra implícito en el proyecto ejecutivo, salvo que las instalaciones se contraten"]
["de forma independiente, en cuyo caso el costo se calculará de la siguiente forma:"]
["H = (CO)(FS)(FC)"]
["Donde:"]
["H= Honorarios."]
["CO= Costo de la obra igual a (m² de proyecto) ($/m² de construcción)."]
["FS= Factor de superficie."]
["FC= 0.04"]
[]
["1.2. DIRECCIÓN ARQUITECTÓNICA DE OBRA."]
["La dirección arquitectónica tiene por objeto asegurar el seguimiento del proyecto ejecutivo"]
["arquitectónico y de ingenierías durante el proceso constructivo."]
["Su costo se calculará de la siguiente forma:"]
["H= (CP)(Fd)(FA)(Ff)"]
["Donde:"]
["H= Honorarios."]
["CP= Costo del proyecto."]
["Fd= Factor de dirección (25%)."]
["FA= Factor de alcance de proyecto."]
["Ff= Factor de servicios foráneos."]
[]
["CONCEPTO","ALCANCE DEL PROYECTO"]
["a. Visitas al sitio de la obra para verificar el apego al contenido, intención y especificaciones del proyecto. 0.1500",0.15]
["b. Aprobación o rechazo de la obra ejecutada por los contratistas, señalando aquella cuyos materiales y trabajos no se ajusten al proyecto y especificaciones. 0.0500",0.05]
["c. Llevar a cabo reuniones de trabajo con la constructora y la supervisión. 0.0500",0.05]
["d. Información periódica al INIFED sobre el avance y calidad de los trabajos ejecutados de acuerdo con el calendario de obra. 0.1500",0.15]
["e. Coordinación de los trabajos de los diferentes técnicos especialistas. 0.1500",0.15]
["f. Dirección de la obra en los aspectos técnicos, estéticos, urbanísticos y medioambientales, de conformidad con el proyecto. 0.1500",0.15]
["g. Proporcionar de manera oportuna las soluciones técnicas relacionadas con"]
["el proyecto ejecutivo que permitan el desarrollo de la obra. 0.1500",0.15]
["h. Integrar una carpeta de la obra con las minutas de trabajo, documentación técnica y administrativa, soluciones arquitectónicas y de ingeniería. 0.1500",0.15]
[]
["TOTAL: 1.0000",{"$f":"SUM(B1417:B1425)","v":1}]
[]
[]
["1.3. SUPERVISIÓN DE OBRA."]
["Consiste en revisar, controlar y administrar los trabajos a ejecutar conforme a lo establecido en la"]
["Ley de Obras Públicas y Servicios Relacionados con las Mismas y su Reglamento."]
["El alcance de estos trabajos no será menor a lo dispuesto en los artículos 53 de la Ley de Obras"]
["Públicas y Servicios Relacionados con las Mismas y en los artículos 115, 116 y 117 de su"]
["Reglamento."]
["Para el cálculo del costo de supervisión de obra se aplicará la siguiente fórmula:"]
["Cuando se cuente con el costo de obra y período de ejecución de contrato."]
["Cs = 12.96 Co / 1.046 Pd"]
[]
["Donde:"]
["Cs= Costo de supervisión."]
["Co= Costo de la obra contratado."]
["Pd= Periodo de ejecución de la obra (días)."]
[]
["Cuando el costo de la obra se determine con base en el numeral 1.1. “Costos Paramétricos de Construcción” de este Arancel:"]
["Cs=[(0.17) ($/m2) - 0.10 ($/m2)] (Ff)"]
["Donde:"]
["Cs= Costo de supervisión."]
["$/m2 = Costo paramétrico del nivel educativo."]
["Ff= Factor de servicios foráneos."]
[]
[]
["1.3.1. CÁLCULO DE FACTOR DE SALARIO REAL (FSR)."]
["Se deberá entender al factor de salario real (FSR), la relación de los días realmente pagados en un periodo anual, de enero a diciembre, dividido entre los días efectivamente laborados durante el mismo periodo, de acuerdo con la siguiente expresión:"]
["FSR = [ 0.246137 + (0.139 SM + EXC)/SBC ] X (1.2715) + 1.2715"]
[]
["Donde:"]
["FSR= Factor de salario real."]
["SB= Salario base."]
["SBC= Salario base de cotización (equivale al número de veces el salario mínimo que aplique al personal)."]
["SM7= $ 64.76 (salario mínimo vigente).",123.22]
["EXC= Excedente de 3 salarios mínimos por ley IMSS."]
["Para el cálculo de excedente (F)."]
["F = (SBC – 3 SM) 0.08"]
["Si F ≤ 0 ∴ EXC = 0"]
["Si F > 0 ∴ EXC = F"]
["Donde:"]
["F= Excedente."]
["SBC= Salario base de cotización."]
["SM= $ 64.76 (salario mínimo vigente)."]
[]
["Secretaría del Trabajo y Previsión Social, Comisión Nacional de los Salarios Mínimos (CONASAMI), vigente 1 de enero de 2013."]
["México, D.F. http://www.conasami.gob.mx/t_sal_mini_prof.html"]
[]
[]
["TOTAL DE DÍAS REALMENTE PAGADOS AL AÑO (TP)","TOTAL DE DÍAS REALMENTE PAGADOS AL AÑO (TP)"]
["Días calendario al año. 365.25",365.25]
["Aguinaldo. 15",15]
["Días por prima vacacional. 1.5",1.5]
["Total. 381.75",{"$f":"SUM(B1477:B1479)","v":381.75}]
[]
["TOTAL DE DÍAS NO LABORADOS AL AÑO","TOTAL DE DÍAS NO LABORADOS AL AÑO"]
["Días Domingo 52",52]
["Vacaciones 6",6]
["Días festivos por ley 7",7]
["Días por condiciones climatológicas 0",0]
["Días por costumbre 0",0]
["Días por permisos y/o enfermedad no profesional. 0",0]
["Días por sindicato 0",0]
["Días equivalentes por arrastre 0",0]
["Días no trabajados por guardia 0",0]
["Total. 65",{"$f":"SUM(B1483:B1491)","v":65}]
[]
["Total de días realmente laborados al año (TI) 300.25",{"$f":"+B1477-B1492","v":300.25}]
["Factor (TP/TI) 1.2715",{"$f":"+B1480/B1494","v":1.2714404662781016}]
[]
["Donde:"]
["TP= Total de días realmente pagados al año."]
["Tl= Total de días realmente laborados al año."]
["TP/Tl= Factor de cálculo."]
[]
["Para el cálculo de salario base (SB)."]
["SB = (0.9568) (SBC)"]
["Donde:"]
["SB= Salario base."]
["SBC= Salario base de cotización."]
["Para el cálculo de salario real (SR)."]
["El salario real es la remuneración al trabajador, la cual considera los días realmente laborados, así como las prestaciones establecidas por la ley."]
[]
["SR = (FSR) (SB)"]
["Donde:"]
["SR= Salario real."]
["FSR= Factor de salario real."]
["SB= Salario base."]
[]
[]
[]
["1.3.2. CÁLCULO DE DEPRECIACIÓN DE EQUIPO DE OFICINA"]
["La depreciación es el resultado de la disminución del valor original del equipo, como consecuencia de su uso, durante el tiempo de su vida económica. Se considerará que la depreciación es lineal cuando el equipo se deprecia en una misma cantidad por unidad de tiempo."]
[]
["Con base a la Guía de Vida Útil Estimada y Porcentajes de Depreciación8, así como el costo horario de depreciación de equipo9, el parámetro de estimación de vida útil del equipo de cómputo de tecnologías de la información no será mayor al 33.33%."]
[]
[]
["1.4. SUPERVISIÓN DE PROYECTO."]
["Consiste en la vigilancia de las etapas de trabajo de los proyectos ejecutivos o por especialidad (arquitectónicos, estructurales y de instalaciones de servicio) y la observancia de los alcances generales y particulares establecidos por el INIFED."]
["El alcance de estos trabajos no será menor a lo dispuesto en los artículos 53 de la Ley de Obras Públicas y Servicios Relacionados con las Mismas y en los artículos 115, 116 y 117 de su Reglamento."]
["Se pagarán como servicios de consultoría y asesoría profesional y el costo de este servicio nunca será superior al 30% del costo del proyecto."]
[]
["1.5. DIRECTOR RESPONSABLE DE OBRA (DRO)."]
["Persona física profesional, calificada y acreditada con registro por las autoridades correspondientes a la localidad, responsable de la observancia de la Ley, reglamentos y demás disposiciones aplicables en el acto que otorga su responsiva."]
["Corresponsable: profesional que solidariamente se responsabiliza con el DRO en alguna especialidad."]
["Alcances:"]
["· Dictamen ocular."]
["· Firma DRO y Corresponsables."]
["· Constancia de Seguridad Estructural."]
["Para el cálculo de su pago se aplicará la siguiente fórmula:"]
["Para cuando el dictamen solo requiera de un DRO, entonces N=0."]
["H = [ 0.0025 (S) + 15 +5(N) ] $/m2"]
[]
["Donde:"]
["H = Honorarios."]
["S= Superficie construida."]
["$/m2 = Costo paramétrico del nivel educativo."]
["N = Numero de corresponsables."]
[]
["8 Parámetros de Estimación de vida útil, Publicado en el Diario Oficial de la Federación, miércoles 15 de agosto de 2012, pág. 21."]
["9 Articulo 196, Reglamento de la Ley de Obras Publicas y Servicios Relacionados con las Mismas, publicado en el Diario Oficial de la Federación el 28 julio del 2010, pág. 68."]
[]
["1.6. SERVICIOS DE CONSULTORÍA Y ASESORÍA PROFESIONAL."]
["El cálculo del costo de la mano de obra del personal autorizado por el INIFED para su ejecución se pagará multiplicando el resultado por la constante 1.573 que corresponde al costo de materiales, indirectos y utilidad (Materiales: 9.3%, Indirectos: 30%, Utilidad: 18%)."]
["De acuerdo con los requerimientos y necesidades establecidos por el INIFED, los servicios de consultorías y asesorías profesionales incluyen de manera enunciativa y no limitativa, las siguientes actividades:"]
[]
["a. La supervisión del proyecto ejecutivo no será mayor al 30% de costo del proyecto."]
["b. Elaboración de normatividad técnica y criterios normativos."]
["c. Capacitación."]
["d. Certificación de la INFE."]
["e. Consultoría Técnica."]
[]
["Para los trabajos por gabinete se deberá comprobar al INIFED el personal requerido, así como un programa de trabajo calendarizado y tiempos de la intervención del personal técnico."]
[]
["A. Cálculo del costo de mano de obra del personal autorizado:"]
["CMO= (S)(NP)(T)(Ff)"]
["Donde:"]
["CMO= Costo de mano de obra por personal autorizado."]
["S= Sueldos y Salarios. (Estudios de gabinete)."]
["NP= Número de personal autorizado."]
["T= Tiempo autorizado."]
["Ff= Factores de servicios foráneos."]
["Para definir el personal considerado en el costo de mano de obra, deberán tomarse como base los descritos en la Tabla 2.5.1.A. Perfil de puesto."]
["Los casos que no se encuentren previstos en la misma, deberán consultarse con el INIFED para su aprobación."]
[]
[]
[]
["PUESTO","SUELDOS Y SALARIOS POR CATEGORIA"]
[null,"A","B","C"]
["Director general.",3936.89]
["Jefe de proyecto.",2826.28,2292.59]
["Proyectista.",1667.59,1391.92,1219.28]
["Técnico.",1095.6600000000001,943.61,770.9]
["Dibujante.",613.01,503.12]
["Capturista.",613.01,503.12]
[]
["B. Cálculo del costo de mano de obra aplicando el costo de materiales, indirectos y utilidad:"]
["H= (TCMO)(K)"]
["Donde:"]
["H= Honorarios de trabajo (horas/hombre)."]
["TCMO= Total de costo de mano de obra."]
["K= 1.573 constante por materiales, indirectos y utilidad."]
[]
[]
["1.6.1. RECURSOS HUMANOS PARA LOS SERVICIOS DE CONSULTORÍA Y ASESORÍA PROFESIONAL."]
["TABLA 2.5.1.A. Perfil de puesto."]
[]
["CATEGORÍA","NIVEL","ESCOLARIDAD","EXPERIENCIA","TOMA DE","EFECTO DE RIESGO","CAPACIDADES","V.S.M.","SALARIO BASE DE COTIZACION","SALARIO BASE","FACTOR DE SALARIO REAL","SALARIO REAL"]
[null,null,null,"RESPONSABILIDAD","DECISIONES",null,null,2013]
[]
["DIBUJANTE B",null,null,null,null,null,null,5,{"$f":"+H1597*'DATOS Y PRESENTACION'!$D$28","v":616.1},309.81,1.6605000000000001,514.44000000000005,null,{"$f":"+I1597/H1597","v":123.22},{"$f":"+J1597*K1597","v":514.43950500000005},{"$f":"+I1597/J1597","v":1.9886381976049838}]
["CAPTURISTA B",null,null,null,null,null,null,5,{"$f":"+H1598*'DATOS Y PRESENTACION'!$D$28","v":616.1},309.81,1.6605000000000001,514.44000000000005,null,{"$f":"+I1598/H1598","v":123.22}]
["DIBUJANTE A",null,null,null,null,null,null,6.12,{"$f":"+H1599*'DATOS Y PRESENTACION'!$D$28","v":754.10640000000001},379.21,1.6652,631.46,null,123.22]
["CAPTURISTA A",null,null,null,null,null,null,6.12,{"$f":"+H1600*'DATOS Y PRESENTACION'!$D$28","v":754.10640000000001},379.21,1.6652,631.46,null,123.22]
["PROFESIONISTA TECNICO C",null,null,null,null,null,null,7.73,{"$f":"+H1601*'DATOS Y PRESENTACION'!$D$28","v":952.49060000000009},478.96,1.6696,799.66,null,123.22]
["PROFESIONISTA TECNICO B",null,null,null,null,null,null,9.49,{"$f":"+H1602*'DATOS Y PRESENTACION'!$D$28","v":1169.3578},588.02,1.6727000000000001,983.55,null,123.22]
["PROFESIONISTA TECNICO A",null,null,null,null,null,null,11.04,{"$f":"+H1603*'DATOS Y PRESENTACION'!$D$28","v":1360.3488},684.06,1.6746000000000001,1145.5,null,123.22000000000001]
["PROYECTISTA C",null,null,null,null,null,null,12.3,{"$f":"+H1604*'DATOS Y PRESENTACION'!$D$28","v":1515.606},762.14,1.6757,1277.1500000000001,null,123.22]
["PROYECTISTA B",null,null,null,null,null,null,14.06,{"$f":"+H1605*'DATOS Y PRESENTACION'!$D$28","v":1732.4732000000001},871.2,1.68,1461.04,null,123.22]
["PROYECTISTA A",null,null,null,null,null,null,16.87,{"$f":"+H1606*'DATOS Y PRESENTACION'!$D$28","v":2078.7213999999999},1045.3,1.6786000000000001,1754.62,null,123.21999999999998]
["JEFE DE PROYECTOS B",null,null,null,null,null,null,23.24,{"$f":"+H1607*'DATOS Y PRESENTACION'!$D$28","v":2863.6327999999999},1440,1.6807000000000001,2420.15,null,123.22]
["JEFE DE PROYECTOS A",null,null,null,null,null,null,28.68,{"$f":"+H1608*'DATOS Y PRESENTACION'!$D$28","v":3533.9495999999999},1777.08,1.6817,2988.53,null,123.22]
["DIRECTOR GENERAL",null,null,null,null,null,null,40,{"$f":"+H1609*'DATOS Y PRESENTACION'!$D$28","v":4928.8},2478.4899999999998,1.6830000000000001,4171.24,null,123.22]

{"sheet":"DATOS Y PRESENTACION","index":1,"n_rows":513,"n_cols":10,"rows_kept":513,"cut":false,"hidden":false,"merged":[[77,2,77,5],[87,2,87,5],[4,2,4,5],[2,2,2,5],[59,2,59,5],[42,2,42,5],[48,2,48,5],[68,2,68,5]]}
[]
[]
[null,null,"ARANCELES PROFESIONALES DE HONORARIOS POR INTEGRACION DE DICTAMENES Y FUNCION PERICIAL PARA EL INIFEG EN EL ESTADO DE GUANAJUATO"]
[]
[null,null,"ANALISIS DE VERIFICACION NORMATIVA INIFED"]
[]
[null,null,"NOMBRE DE LA ESCUELA"]
[null,null,"UBICACIÓN"]
[null,null,"PROPIETARIO"]
[null,null,"NIVEL"]
[null,null,"MODALIDAD"]
[null,null,"GRUPOS"]
[null,null,"TIPO DE TRAMITE"]
[]
[null,null,"SUPERFICIE DE TERRENO",null,{"$f":"+IF(D15=\"\",\" \",\"M2\")","v":" "}]
[null,null,"SUPERFICIE DE AREA CONSTRUIDA",null,{"$f":"+IF(D16=\"\",\" \",\"M2\")","v":" "}]
[null,null,"SUPERFICIE DE PROYECTO DE GUIA MECANICA",null," "]
[]
[null,null,"COSTO POR M2 SEGÚN GENERO DE EDIFICIO",{"$f":"IF(D16=\"\",\" \",VLOOKUP(D11,'TABLAS  INIFED'!B6:C34,2,FALSE))","v":" "}]
[null,null,"COSTO ESTIMADO DE LA OBRA",{"$f":"IF(D16=\"\",\" \",+D19*D16)","v":" "}]
[null,null,"COSTO ESTIMADO DEL PROYECTO EJECUTIVO",{"$f":"+IF(D16=\"\",\" \",+D211)","v":" "},{"$f":"+D21/D20","v":{"$error":"#VALUE!"}}]
[null,null,"LOCALIZACION DEL INMUEBLE (CIUDAD)"]
[null,null,"FACTOR PARA PROYECTOS FORANEOS POR (CIUDAD)",{"$f":"+IF(D16=\"\",\" \",VLOOKUP(D22,'TABLAS  INIFED'!A151:C200,3,FALSE))","v":" "}]
[null,null,"FACTOR INTERCIUDAD PARAMETRICOS (ZONA BAJIO)",0.96970000000000001]
[null,null,"FACTOR DE SUPERFICIE",{"$f":"+IF(D16=\"\",\" \",'TABLAS  INIFED'!C37)","v":" "}]
[null,null,"FACTOR DE ALCANCE",1]
[]
[null,null,"SALARIO MINIMO",123.22]
[]
[null,null,"CLASIFICACION DE LA ESTRUCTURA DE MANERA SUPLETORIA SEGÚN LAS NORMAS TECNICAS PARA LA CIUDAD DE MEXICO",null,{"$f":"VLOOKUP(D30,'TABLAS  INIFED'!B382:C385,2,FALSE)","v":{"$error":"#N/A"}}]
[null,null,"Tipo A :Son aquellas clasificadas como ligeras o medianas, de poca extensión y con excavaciones"]
[null,null,"Tipo A.1 :Son aquellas estructuras del tipo A que no satisfacen las Condiciones de Regularidad de las"]
[null,null,"Tipo B :Son aquellas clasificadas como pesadas, extensas o con excavaciones profundas."]
[null,null,"Tipo B.1 :Son aquellas estructuras del tipo B que no satisfacen las Condiciones de Regularidad de las"]
[null,null,"CLASIFICACION DE INSTALACION DE AIRES ACONDICIONADOS",null,{"$f":"IF(D35=\"\",\" \",VLOOKUP(D35,H36:I38,2,FALSE))","v":" "}]
[null,null,"Tipo A :  Sistemas que proporcionan únicamente ventilación mecánica para inyección y/o extracción.",null,null,null,null,"Tipo A:",1]
[null,null,"Tipo B :  Sistemas que proporcionan enfriamiento de aire para climas templados o durante el verano.",null,null,null,null,"Tipo B:",1.33]
[null,null,"Tipo C : Sistemas que requieren de refrigeración y/o calefacción, humidificación y filtración y que contarán con un balance térmico.",null,null,null,null,"Tipo C:",4]
[]
[null,null,"DURACION DE LA OBRA EN DIAS"]
[null,null,"NUMERO DE CORRESPONSABLES "]
[]
[null,null,"Estudios Preliminares      (Validacion de Factibilidad Físico Documental del Plantel)"]
[null,null,"Condiciones del sitio. Investigación de datos técnicos y disposiciones legales en la localidad  Formula:  H=CO*FS*FE*0.03",0.03,null,{"$f":"+IF(D16=\"\",\" \",$D$20*$D$25*$D$113*D44)","v":" "},null,{"$f":"+$D$21*$D$25*$D$113*D44","v":{"$error":"#VALUE!"}}]
[null,null,"Reporte de visita",null,null,{"$f":"+IF(D16=\"\",\" \",$D$20*$D$25*$D$113*D45)","v":" "},null,{"$f":"+$D$21*$D$25*$D$113*D45","v":{"$error":"#VALUE!"}}]
[null,null,"Expediente fotográfico",null,null,{"$f":"+IF(D16=\"\",\" \",$D$20*$D$25*$D$113*D46)","v":" "},null,{"$error":"#VALUE!"}]
[null,null,"Total Estudios preliminares",{"$f":"SUM(D44:D46)","v":0.03},null,{"$f":"SUM(F44:F46)","v":0},null,{"$f":"SUM(H44:H46)","v":{"$error":"#VALUE!"}}]
[]
[null,null,"Levantamiento Topografico"]
[null,null,"Levantamiento topográfico                                        Fórmula :    H=(FC)($/m2)(CR)(Ft)"]
[null,null,"H= Honorarios"]
[null,null,"$/m2= Costo por metro cuadrado",{"$f":"+D19","v":" "}]
[null,null,"FC= Factor de cálculo"]
[null,null,"Cr= Cantidad de días o unidades requeridas para el desarrollo de las actividades"]
[null,null,"Ff= Factor de servicios foráneos","Ff=","Cr="]
[null,null,"Trabajo de Campo ( Día brigada)",0.49559999999999998,null,{"$f":"+IF(E56=\"\",\" \",$D$19*$D$24*E56*D56)","v":" "}]
[null,null,"Trabajo de gabinete ( Día gabinete)",0.50970000000000004,null,{"$f":"+IF(E57=\"\",\" \",$D$19*$D$24*E57*D57)","v":" "}]
[null,null,"Elaboración de planos)",0.29459999999999997,null,{"$f":"+IF(E58=\"\",\" \",$D$19*$D$24*E58*D58)","v":" "}]
[]
[null,null,"SI LA SUPERFICIE DEL TERRENO ES IGUAL, MENOR O CON UN EXCEDENTE NO MAYOR AL 25% AL AREA CONSTRUIDA NO SE COBRARAR POR LEVANTAMIENTO DE TERRENO, SI ES MAYOR  SE COBRARA LA DIFERENCIA DE LA SUPERFICIE"]
[null,null,"Levantamiento topográfico TERRENO                 Fórmula :    H=(FC)($/m2)(CR)(Ft)",{"$f":"+IF((D65)>0,D63-D62,\" \")","v":" "},{"$f":"+IF(D61=\"\",\" \",\"M2\")","v":"M2"},{"$f":"IF(D61=\" \",\" \",+'TABLAS TOPOGRAFIA'!G10)","v":" "}]
[null,null,"Area de construccion",{"$f":"+D16","v":0},"M2"]
[null,null,"Superficie de Terreno",{"$f":"+D15","v":0},"M2"]
[null,null,null,{"$f":"+D62*1.25","v":0}]
[null,null,null,{"$f":"+D63-D64","v":0}]
[null,null,"Georeferenciacion del levantamiento topografico",0.01,null,{"$f":"+IF(E66=\"\",0,D66*D21)","v":0}]
[null,null,"Total Levantamiento Topografico",null,null,{"$f":"IF(D16=\"\",0,+F66+F61+F58+F57+F56)","v":0}]
[]
[null,null,"Elaboracion de Planos Aquitectónicos"]
[null,null,"Elaboracion de Planos Aquitectónicos                 Fórmula :    H=(CO)(FS)(FE)(FA)",0.06,null,{"$f":"+IF(D16=\"\",\" \",$D$20*$D$25*$D$113*D70)","v":" "}]
[null,null,"Planta Azoteas de Conjunto",null,null,{"$f":"+IF(D16=\"\",\" \",$D$20*$D$25*$D$113*D71)","v":" "}]
[null,null,"Plantas arquitectónicas (tabla de edificios y área de espacios)"]
[null,null,"Plantas arquitectónicas (Análisis y detalles de cancelería)",null,null,{"$f":"+IF(D16=\"\",\" \",$D$20*$D$25*$D$113*D73)","v":" "}]
[null,null,"secciones Aquitectónicas (Cortes)",null,null,{"$f":"+IF(D16=\"\",\" \",$D$20*$D$25*$D$113*D74)","v":" "}]
[null,null,"Fachadas Arquitectónicas (todas las existente)",0.03,null,{"$f":"+IF(D16=\"\",\" \",$D$20*$D$25*$D$113*D75)","v":" "}]
[null,null,"Total  Elaboracion de Planos Aquitectónicos",null,null,{"$f":"SUM(F70:F75)","v":0}]
[]
[null,null,"Dicatamen Estructural y de Instalaciones electricas"]
[null,null,"Dictamen Estructural                                                    Fórmula= (CO)(FS)(FE)(FA)(G)","(FA)","(G) TIPO"]
[null,null,"Análisis Estructural",0.12,{"$f":"+IF(D16=\"\",\" \",E30)","v":" "},{"$f":"+IF(D16=\"\",\" \",$D$20*$D$25*$D$114*D80)","v":" "},null,null,null,"H= Honorarios."]
[null,null,"Criterios generales de  estructuración",0.12,{"$f":"+IF(D16=\"\",\" \",E30)","v":" "},{"$f":"+IF(D16=\"\",\" \",$D$20*$D$25*$D$114*D81)","v":" "},null,null,null,"CO= Costo estimado de la obra igual a (m2 de proyecto) ($/m2 de construcción)."]
[null,null,"Dictamen de Instalaciones Eléctricas                       Fórmula= H = (CO)(FS)(FE)(FA)",null,null,null,null,null,null,"FS= Factor de superficie."]
[null,null,"Análisis de Instalaciones Eléctricas  ",0.14000000000000001,null,{"$f":"+IF(D16=\"\",\" \",$D$20*$D$25*$D$115*D83)","v":" "},null,null,null,"FE= Factor por especialidad."]
[null,null,"Dictamen de Instalaciones Eléctricas  ",0.14000000000000001,null,{"$f":"+IF(D16=\"\",\" \",$D$20*$D$25*$D$115*D84)","v":" "},null,null,null,"FA= Factor de alcance."]
[]
[null,null,"Total  dictamen estructural y de Instalaciones Electricas",null,null,{"$f":"SUM(F80:F85)","v":0},null,null,null,"checar Instalaciones hidrosanitarias y especiales"]
[]
[null,null,"Integración de Expediente"]
[null,null,"Carpeta Documental"]
[null,null,"Impresión e integracion de dictamenes ",2.9999999999999997E-4,null,{"$f":"+IF(D16=\"\",\" \",D90*D20)","v":" "}]
[]
[]
[null,null,"Total Integración de Expediente",null,null,{"$f":"SUM(F89:F92)","v":0}]
[]
[]
[null,null,"Dctamen de validacion de la Norma INIFED"]
[null,null,{"$f":"+C47","v":"Total Estudios preliminares"},null,null,{"$f":"+F47","v":0}]
[null,null,{"$f":"+C67","v":"Total Levantamiento Topografico"},null,null,{"$f":"+F67","v":0}]
[null,null,{"$f":"+C76","v":"Total  Elaboracion de Planos Aquitectónicos"},null,null,{"$f":"+F76","v":0}]
[null,null,{"$f":"+C86","v":"Total  dictamen estructural y de Instalaciones Electricas"},null,null,{"$f":"+F86","v":0}]
[null,null,{"$f":"+C93","v":"Total Integración de Expediente"},null,null,{"$f":"+F93","v":0}]
[]
[null,null,"GRAN TOTAL Dictamen de validacion de la Norma INIFED",null,null,{"$f":"+F93+F86+F76+F67+F47","v":0}]
[null,null,"nota: EN CASO DE REQUERIRSE GESTIONES EXTRAS A LAS AQUÍ INDICADAS SE COBRARAN POR SEPARADO Y DE COMUN ACUERDO ENTRE LAS PARTES"]
[]
[]
[]
[]
[]
[]
[null,null,"2.1. PROYECTO EJECUTIVO.","FACTOR DE ESPECIALIDAD"]
[null,null,"Alcance del Proyecto:","FE"]
[null,null,"2.1.1. Proyecto Arquitectónico.",0.58899999999999997]
[null,null,"2.1.2. Proyecto Estructural.",0.13039999999999999]
[null,null,"2.1.3. Proyecto de Instalaciones Eléctricas.",0.10630000000000001]
[null,null,"2.1.4. Ingeniería Hidráulica y Sanitaria.",5.1200000000000002E-2]
[null,null,"2.1.5. Proyecto de Instalaciones Contra Incendios.",3.5499999999999997E-2]
[null,null,"2.1.6. Proyecto de Instalaciones de Gases.",1.2800000000000001E-2]
[null,null,"2.1.7. Proyecto de Aire Acondicionado.",2.3599999999999999E-2]
[null,null,"2.1.8. Proyecto de Telecomunicaciones",5.1200000000000002E-2]
[null,null,"TOTAL FACTOR",{"$f":"SUM(D113:D120)","v":0.99999999999999989}]
[]
[null,null,"2.1.1. Proyecto Arquitectónico."]
[null,null,"H=(CO)(FS)(FE)(FA)"]
[null,null,"CO= Costo estimado de la obra.",{"$f":"+D20","v":" "}]
[null,null,"FS= Factor de superficie. ",{"$f":"+D25","v":" "}]
[null,null,"FE= Factor de especialidad.",{"$f":"+D113","v":0.58899999999999997}]
[null,null,"FA= Factor de alcance. ",{"$f":"+D26","v":1}]
[]
[null,null,"HONORARIOS",{"$f":"+D125*D126*D127*D128","v":{"$error":"#VALUE!"}},{"$f":"+D130/D20","v":{"$error":"#VALUE!"}}]
[]
[]
[null,null,"2.1.2. Proyecto Estructural."]
[]
[null,null,"Estructura Tipo","TIPO A"]
[null,null,"Fórmula:",null,null,null,null,"Tipo A",1]
[null,null,"CO= Costo estimado de la obra.",{"$f":"+$D$20","v":" "},null,null,null,"Tipo A.1",1.2]
[null,null,"FS= Factor de superficie.",{"$f":"+$D$25","v":" "},null,null,null,"Tipo B",1.35]
[null,null,"FE= Factor de especialidad.",{"$f":"+$D$114","v":0.13039999999999999},null,null,null,"Tipo B.1",1.5]
[null,null,"FA= Factor de alcance.",{"$f":"+$D$26","v":1}]
[null,null,"Tipo A",{"$f":"+IF(C141=\"Tipo A\",1,IF(C141=\"Tipo A.1\",1.2,IF(C141=\"Tipo B\",1.35,IF(C141=\"Tipo B.1\",1.5,\" \"))))","v":1}]
[null,null,"H=(CO)(FS)(FE)(FA)(G)"]
[null,null,"HONORARIOS POR PROYECTO ESTRUCTURAL=",{"$f":"+D137*D138*D139*D140*D141","v":{"$error":"#VALUE!"}},{"$f":"+D143/D137","v":{"$error":"#VALUE!"}}]
[]
[null,null,"2.1.3. Proyecto de Instalaciones Eléctricas."]
[null,null,"H=(CO)(FS)(FE)(FA",{"$f":"+D147*D148*D149*D150","v":{"$error":"#VALUE!"}}]
[null,null,"CO= Costo estimado de la obra.",{"$f":"+$D$20","v":" "}]
[null,null,"FS= Factor de superficie.",{"$f":"+$D$25","v":" "}]
[null,null,"FE= Factor de especialidad.",{"$f":"+D115","v":0.10630000000000001}]
[null,null,"FA= Factor de alcance.",{"$f":"+$D$26","v":1}]
[]
[null,null,"HONORARIOS POR PROYECTO INSTALACIONES ELECTRICAS",{"$f":"+D146","v":{"$error":"#VALUE!"}},{"$f":"+D152/D147","v":{"$error":"#VALUE!"}}]
[]
[null,null,"2.1.4. Proyecto de Instalaciones Hidrosanitarias."]
[null,null,"H=(CO)(FS)(FE)(FA)",{"$f":"+D156*D157*D158*D159","v":{"$error":"#VALUE!"}}]
[null,null,"CO= Costo estimado de la obra.",{"$f":"+$D$20","v":" "}]
[null,null,"FS= Factor de superficie.",{"$f":"+$D$25","v":" "}]
[null,null,"FE= Factor de especialidad.",{"$f":"+D116","v":5.1200000000000002E-2}]
[null,null,"FA= Factor de alcance.",{"$f":"+$D$26","v":1}]
[]
[null,null,"HONORARIOS POR PROYECTO INSTALACIONES HIDROSANITARIAS",{"$f":"+D155","v":{"$error":"#VALUE!"}},{"$f":"+D161/D156","v":{"$error":"#VALUE!"}}]
[]
[null,null,"2.1.5. Proyecto de Instalaciones Contra Incendios."]
[null,null,"H=(CO)(FS)(FE)(FA)",{"$f":"+D165*D166*D167*D168","v":{"$error":"#VALUE!"}}]
[null,null,"CO= Costo estimado de la obra.",{"$f":"+$D$20","v":" "}]
[null,null,"FS= Factor de superficie.",{"$f":"+$D$25","v":" "}]
[null,null,"FE= Factor de especialidad.",{"$f":"+D117","v":3.5499999999999997E-2}]
[null,null,"FA= Factor de alcance.",{"$f":"+$D$26","v":1}]
[]
[null,null,"HONORARIOS POR PROYECTO INSTALACIONES CONTRAINCENDIOS",{"$f":"+D164","v":{"$error":"#VALUE!"}},{"$f":"+D170/D165","v":{"$error":"#VALUE!"}}]
[]
[null,null,"2.1.5. Proyecto de Instalaciones gas"]
[null,null,"H=(CO)(FS)(FE)(FA)",{"$f":"+D174*D175*D176*D177","v":{"$error":"#VALUE!"}}]
[null,null,"CO= Costo estimado de la obra.",{"$f":"+$D$20","v":" "}]
[null,null,"FS= Factor de superficie.",{"$f":"+$D$25","v":" "}]
[null,null,"FE= Factor de especialidad.",{"$f":"+D118","v":1.2800000000000001E-2}]
[null,null,"FA= Factor de alcance.",{"$f":"+$D$26","v":1}]
[]
[null,null,"HONORARIOS POR PROYECTO INSTALACIONES GAS",{"$f":"+D173","v":{"$error":"#VALUE!"}},{"$f":"+D179/D174","v":{"$error":"#VALUE!"}}]
[]
[null,null,"2.1.5. Proyecto de Instalaciones AIRE ACONDICIONADO",null,null,"Para efectos de este arancel, los proyectos de aire acondicionado se han clasificado en los siguientes tipos, de acuerdo con su grado de dificultad:"]
[null,null,"H=(CO)(FS)(FE)(FA)(G)",{"$f":"+D183*D184*D185*D186*D187","v":{"$error":"#VALUE!"}},null,"Tipo A:",null,1]
[null,null,"CO= Costo estimado de la obra.",{"$f":"+$D$20","v":" "},null,"Sistemas que proporcionan únicamente ventilación mecánica para inyección y/o extracción."]
[null,null,"FS= Factor de superficie.",{"$f":"+$D$25","v":" "},null,"Tipo B:",null,1.33]
[null,null,"FE= Factor de especialidad.",{"$f":"+D119","v":2.3599999999999999E-2},null,"Sistemas que proporcionan enfriamiento de aire para climas templados o durante el verano."]
[null,null,"FA= Factor de alcance.",{"$f":"+$D$26","v":1},null,"Tipo C:",null,4]
[null,null,"A",{"$f":"+IF(C187=\"A\",1,IF(C187=\"B\",1.33,IF(C187=\"C\",4,\" \")))","v":1},null,"Sistemas que requieren de refrigeración y/o calefacción, humidificación y filtración y que contarán con un balance térmico."]
[null,null,"HONORARIOS POR PROYECTO INSTALACINES AIRE ACONDICIONADO",{"$f":"+D182","v":{"$error":"#VALUE!"}},{"$f":"+D188/D183","v":{"$error":"#VALUE!"}}]
[]
[null,null,"2.1.5. Proyecto de Instalaciones TELECOMUNICACIONES"]
[null,null,"H=(CO)(FS)(FE)(FA)(G)",{"$f":"+D192*D193*D194*D195","v":{"$error":"#VALUE!"}}]
[null,null,"CO= Costo estimado de la obra.",{"$f":"+$D$20","v":" "}]
[null,null,"FS= Factor de superficie.",{"$f":"+$D$25","v":" "}]
[null,null,"FE= Factor de especialidad.",{"$f":"+D120","v":5.1200000000000002E-2}]
[null,null,"FA= Factor de alcance.",{"$f":"+$D$26","v":1}]
[]
[null,null,"HONORARIOS POR PROYECTO TELECOMUNICACIONES",{"$f":"+D191","v":{"$error":"#VALUE!"}},{"$f":"+D197/D192","v":{"$error":"#VALUE!"}}]
[]
[]
[null,null,"2.1. PROYECTO EJECUTIVO."]
[null,null,"Alcance del Proyecto:"]
[null,null,"2.1.1. Proyecto Arquitectónico.",{"$f":"+D130","v":{"$error":"#VALUE!"}},{"$f":"+D202/$D$20","v":{"$error":"#VALUE!"}},{"$f":"+D202/$D$211","v":{"$error":"#VALUE!"}}]
[null,null,"2.1.2. Proyecto Estructural.",{"$f":"+D143","v":{"$error":"#VALUE!"}},{"$f":"+D203/$D$20","v":{"$error":"#VALUE!"}},{"$f":"+D203/$D$211","v":{"$error":"#VALUE!"}}]
[null,null,"2.1.3. Proyecto de Instalaciones Eléctricas.",{"$f":"+D152","v":{"$error":"#VALUE!"}},{"$error":"#VALUE!"},{"$error":"#VALUE!"}]
[null,null,"2.1.4. Ingeniería Hidráulica y Sanitaria.",{"$f":"+D161","v":{"$error":"#VALUE!"}},{"$error":"#VALUE!"},{"$error":"#VALUE!"}]
[null,null,"2.1.5. Proyecto de Instalaciones Contra Incendios.",{"$f":"+D170","v":{"$error":"#VALUE!"}},{"$error":"#VALUE!"},{"$error":"#VALUE!"}]
[null,null,"2.1.6. Proyecto de Instalaciones de Gases.",{"$f":"+D179","v":{"$error":"#VALUE!"}},{"$error":"#VALUE!"},{"$error":"#VALUE!"}]
[null,null,"2.1.7. Proyecto de Aire Acondicionado.",{"$f":"+D188","v":{"$error":"#VALUE!"}},{"$error":"#VALUE!"},{"$error":"#VALUE!"}]
[null,null,"2.1.8. Proyecto de Telecomunicaciones",{"$f":"+D197","v":{"$error":"#VALUE!"}},{"$error":"#VALUE!"},{"$error":"#VALUE!"}]
[]
[null,null,"TOTAL PROYECTO EJECUTIVO",{"$f":"SUM(D202:D210)","v":{"$error":"#VALUE!"}},{"$f":"SUM(E202:E210)","v":{"$error":"#VALUE!"}},{"$f":"SUM(F202:F209)","v":{"$error":"#VALUE!"}}]
[]
[]
[]
[]
[]
[]
[]
[null,null,"2.1.9 ESTUDIOS TÉCNICOS ESPECIALIZADOS."]
[]
[null,null,"2.1.9.1. Guías Mecánicas."]
[null,null,"X = SUPERFICIE DE PROYECTO DE GUIA MECANICA",{"$f":"+D17","v":0},"M2",104]
[null,null,"$/M2 = COSTO POR M2 DE CONSTRUCCION",{"$f":"+D19","v":" "}]
[null,null,"CLASIFICACION DE SUPERFICIE DE GUIA MECANICA",{"$f":"+IF(D222<10.1,1,IF(D222<300,2,3))","v":1}]
[null,null,"a) Superficie del proyecto de Guía Mecánica entre 10 m² y 300 m²:",{"$f":"+((2.711*(D231^(-0.00185*D222))*(0.0040372*D223*D222)))","v":{"$error":"#VALUE!"}}]
[null,null,"b) Superficie del proyecto de Guía Mecánica menor a  10 m²",{"$f":"2.662*(0.0040372*D223*D222)","v":{"$error":"#VALUE!"}}]
[null,null,"c) Suerficie mayor a 300 m2",{"$f":"1.557*0.0040372*D223*D222","v":{"$error":"#VALUE!"}}]
[null,null,"2.711 (e–.00185(X))] (0.0040372*$/m²)X"]
[null,null,"2.662(0.0040372*$/m²)X"]
[null,null,"1.557(0.0040372*$/m²)X"]
[null,null,"e",2.7182818200000001]
[]
[null,null,"HONORARIOS POR PROYECTO GUIS MECANICAS",{"$f":"+IF(D224=1,D226,IF(D224=2,D225,D227))","v":{"$error":"#VALUE!"}}]
[]
[]
[null,null,"2.1.9.2. PRESUPUESTO BASE"]
[null,null,"H=(CO)(FS)(FE)(FA)(0.025)",{"$f":"+D238*D239*D240*D241*0.025","v":{"$error":"#VALUE!"}}]
[null,null,"CO= Costo estimado de la obra.",{"$f":"+$D$20","v":" "}]
[null,null,"FS= Factor de superficie.",{"$f":"+$D$25","v":" "}]
[null,null,"FE= Factor TOTAL de especialidad.",{"$f":"+D121","v":0.99999999999999989}]
[null,null,"FA= Factor de alcance.",{"$f":"+$D$26","v":1}]
[]
[null,null,"HONORARIOS POR PROYECTO INSTALACINES AIRE ACONDICIONADO",{"$f":"+D237","v":{"$error":"#VALUE!"}}]
[]
[]
[null,null,"2.1.9.3. Levantamiento Topográfico."]
[null,null,"Costo por metro cuadrado ($/m2): ",{"$f":"+D19","v":" "}]
[null,null,"Entidad Federativa:",{"$f":"+D22","v":0}]
[null,null," (Ff)= ",{"$f":"+D23","v":" "}]
[]
[null,null,"Actividad Factor de Cálculo Cantidad requerida","factor de calculo","cantidad requerida"]
[null,null,"a. Trabajo de campo."]
[null,null,"Día brigada:",0.49559999999999998,4,{"$f":"+E253*D253","v":1.9823999999999999}]
[null,null,"b. Trabajo de gabinete."]
[null,null,"Día gabinete: ",0.50970000000000004,4,{"$f":"+E255*D255","v":2.0388000000000002}]
[null,null,"c. Elaboración de planos."]
[null,null,"Pieza: ",0.29459999999999997,5,{"$f":"+E257*D257","v":1.4729999999999999}]
[]
[null,null,"H=(FC)($/m²)(CR)(Ff)"]
[null,null,"$/m2= Costo por metro cuadrado."]
[null,null,"FC= Factor de cálculo."]
[null,null,"Cr= Cantidad requerida. Dias brigada"]
[null,null,"2.1.9.3. Levantamiento Topográfico."]
[null,null,"H=(FC)($/m²)(CR)(Ff)"]
[null,null,"Ff= Factores de servicios foráneos."]
[null,null,"a. Trabajo de campo.",{"$f":"+D253*D247*E253*D249","v":{"$error":"#VALUE!"}}]
[null,null,"b. Trabajo de gabinete.",{"$f":"+D255*E255*D247*D249","v":{"$error":"#VALUE!"}}]
[null,null,"c. Elaboración de planos.",{"$f":"+E257*D257*D247*D249","v":{"$error":"#VALUE!"}}]
[]
[null,null,"2.1.9.3. Levantamiento Topográfico.",{"$f":"SUM(D266:D268)","v":{"$error":"#VALUE!"}}]
[]
[null,null,"2.1.9.4. Modelo tridimensional y animación virtual por computadora."]
[null,null,"Datos:"]
[null,null,"Número de escenarios: 5 a X","5 a X"]
[null,null,"Número de días: 30",30]
[null,null,"Número de fotos: 6",6]
[null,null,"Factor de escenario: 0.5",0.5]
[]
[null,null,"H= CE + CF"]
[null,null,"H= $28,800.00 $7,392.00"]
[null,null,"H= $36,192.00"]
[null,null,"H = Honorarios."]
[null,null,"CE = Costo de escenario."]
[null,null,"CF = Costo de foto."]
[]
[null,null,"Para el cálculo de escenario."]
[null,null,"CE = (ND) (0.20) (B) (FT)",{"$f":"+D289*D290*D291*D292","v":{"$error":"#VALUE!"}}]
[null,null,"CE = Costo de Escenario."]
[null,null,"ND = Número de Días. 30",30]
[null,null,null,0.2]
[null,null,"B = Promedio costo paramétrico.",{"$f":"+D297","v":{"$error":"#VALUE!"}}]
[null,null,"FT = Factor de escenario. 0.5",0.5]
[]
[]
[null,null,"Para el cálculo de costo paramétrico."]
[]
[null,null,"B= ($/m2 mayor + $/m2 Nivel Educativo) / 2",{"$f":"+(D298+D299)/2","v":{"$error":"#VALUE!"}}]
[null,null,"PARAMETRICO MAYOR",{"$f":"MAXA('TABLAS  INIFED'!C8:C33)","v":14827.10088}]
[null,null,"PARAMETRICO USADO SEGÚN CLASIFICACION",{"$f":"+D19","v":" "}]
[]
[]
[null,null,"Datos:"]
[null,null,"Número de escenarios: 1 a 2","1 a 2"]
[null,null,"Número de días: 30",30]
[null,null,"Número de Fotos: 6",6]
[null,null,"Factor de escenario: 0.5",0.5]
[null,null,"Para cálculo de foto."]
[null,null,"CF = (CE) (FR) (NF)",{"$f":"+D310*D311*D312","v":{"$error":"#VALUE!"}}]
[null,null,"CF = Costo de número de fotos."]
[null,null,"CE = Costo de escenario base. $28,800.00",{"$f":"+D287","v":{"$error":"#VALUE!"}}]
[null,null,"FR = Factor de render. 0.04278",{"$f":"+D314","v":{"$error":"#VALUE!"}}]
[null,null,"NF= Número de Fotos. 6",6]
[null,null,"Para el cálculo de factor de render (FR)."]
[null,null,"Fórmula:  FR  =  6160 / (ND) (B) (FT)",{"$f":"6160/(D316*D317*D318)","v":{"$error":"#VALUE!"}}]
[null,null,"FR = FACTOR DE RENDER CONSTANTE",6160]
[null,null,"ND = Número de días. 30",30]
[null,null,"B = Promedio costo paramétrico. $9,600.00",{"$f":"+D297","v":{"$error":"#VALUE!"}}]
[null,null,"FT = Factor de escenario. 0.5",0.5]
[null,null,"FR= 0.04278"]
[null,null,"Alcances para modelos tridimensionales y animación."]
[null,null,"NO. DE ESCENARIO","NO. DE DÍAS","FACTOR DE ESENARIO","NO. DE FOTOS"]
[null,null,null,"(ND)","(FT)","(NF)"]
[null,null," 1 - 2",10,1," 3-6"]
[null,null," 3 - 4",20,0.75," 9-12"]
[null,null," 5 - X*",30,0.5]
[]
[]
[]
[]
[]
[]
[]
[]
[]
[]
[]
[]
[]
[]
[]
[]
[]
[]
[null,null,"2.1.9.6. Reporte fotográfico digitalizado."]
[null,null,"DATOS"]
[null,null,"No. DE FOTOS",50]
[null,null,"H =NF [(70) BN / B]",{"$f":"+D348*((70*D351)/D355)","v":{"$error":"#VALUE!"}}]
[null,null,"NF = Número de fotos. 50",{"$f":"+D346","v":50}]
[null,null,"Constante. 70",70]
[null,null,"Para el cálculo de costo paramétrico BN año 2013."]
[null,null,"BN = Costo paramétrico promedio de los valores del año en que se aplique.",{"$f":"+D352","v":{"$error":"#VALUE!"}}]
[null,null,"BN = ($/m2 mayor + $/m2 Nivel Educativo) / 2",{"$f":"+(D353+D354)/2","v":{"$error":"#VALUE!"}}]
[null,null,"MAYOR",{"$f":"MAXA('TABLAS  INIFED'!C8:C33)","v":14827.10088}]
[null,null,"NIVEL EDUCATIVO",{"$f":"+D19","v":" "}]
[null,null,"B = Costo paramétrico promedio del año inmediato anterior. $15,600.00",{"$f":"+D351*0.9","v":{"$error":"#VALUE!"}},"APLICAR INPC PARA ACTUALIZAR EL VALOR"]
[null,null,"BN/B= $1.00",{"$f":"+D352/D355","v":{"$error":"#VALUE!"}}]
[null,null,"H = $3,500.00"]
[]
[]
[]
[]
[null,null,"2.1.9.7. Elaboración de Maquetas."]
[]
[null,null,"Costo por metro cuadrado ($/m2): $7,200.00",{"$f":"+D19","v":" "}]
[]
[null,null,"Tipología Factor de Cálculo","Tipología Factor de Cálculo"]
[null,null,"Tipo A",5.9074999999999998]
[null,null,"Tipo B",8.6643000000000008]
[null,null,"Tipo C",11.421099999999999]
[null,null,"Tipo D",14.178000000000001]
[]
[null,null,"H=(FC)($/m²)"]
[null,null,"$/m2= Costo por metro cuadrado."]
[null,null,"FC= Factor de cálculo."]
[null,null,"Tipo A ",{"$f":"+D367*D364","v":{"$error":"#VALUE!"}}]
[null,null,"Tipo B",{"$f":"+D368*D364","v":{"$error":"#VALUE!"}}]
[null,null,"Tipo C",{"$f":"+D369*D364","v":{"$error":"#VALUE!"}}]
[null,null,"Tipo D",{"$f":"+D370*D364","v":{"$error":"#VALUE!"}}]
[]
[]
[]
[]
[]
[]
[]
[]
[]
[]
[null,null,"2.1.9 ESTUDIOS TÉCNICOS ESPECIALIZADOS."]
[null,null,"Educación Básica"]
[null,null,"Secundaria General 18 grupos"]
[null,null,"2.1.9.9. Proyectos de plantas de tratamiento de aguas residuales."]
[]
[null,null,"$/m2 Costo por metro cuadrado ($/m2):",{"$f":"+D19","v":" "}]
[null,null,"FC = Factor de cálculo: 5.1380",5.1379999999999999]
[null,null,"H=(FC)($/m²)",{"$f":"+D395*D394","v":{"$error":"#VALUE!"}}]
[]
[]
[null,null,"2.1.9 ESTUDIOS TÉCNICOS ESPECIALIZADOS."]
[]
[null,null,"2.1.9.10. Sistema integral de seguridad."]
[null,null,"Costo estimado de la obra: $25,740,000.00",{"$f":"+D20","v":" "}]
[null,null,"Factor de superficie: 0.0654",{"$f":"+D25","v":" "}]
[null,null,"Factor de Especialidad: 0.0512",{"$f":"+D120","v":5.1200000000000002E-2}]
[]
[null,null,"Tipología Factor de Cálculo","FACTOR DE CALCULO"]
[null,null,"Circuito Cerrado de Televisión. 0.20",0.2]
[null,null,"Detección de humos. 0.15",0.15]
[null,null,"Alarmas. 0.20",0.2]
[null,null,"Control de accesos. 0.10",0.1]
[]
[null,null,"H=(CO)(FS)(FE)(FC)      TOTAL TELECOMUNICACIONES",{"$f":"SUM(D418:D421)","v":{"$error":"#VALUE!"}}]
[null,null,"CO= Costo estimado de la obra."]
[null,null,"FS= Factor de superficie."]
[null,null,"FE= Factor de especialidad."]
[null,null,"FC= Factor de cálculo."]
[]
[null,null,"Circuito Cerrado de Televisión",{"$f":"+D407*D402*D403*D404","v":{"$error":"#VALUE!"}}]
[null,null,"Detección de humos",{"$f":"+D408*D402*D403*D404","v":{"$error":"#VALUE!"}}]
[null,null,"Alarmas",{"$f":"+D409*D402*D403*D404","v":{"$error":"#VALUE!"}}]
[null,null,"Control de accesos",{"$f":"+D410*D402*D403*D404","v":{"$error":"#VALUE!"}}]
[]
[]
[]
[null,null,"2.1.9.12. Coordinación global del proyecto ejecutivo."]
[null,null,"Costo estimado de la obra: $25,740,000.00",{"$f":"+D20","v":" "}]
[null,null,"Factor de superficie: 0.0641",{"$f":"+D25","v":" "}]
[null,null,"Factor de cálculo: 0.04",0.04]
[null,null,8]
[null,null,"H=(CO)(FS)(FC)",{"$f":"+D426*D427*D428","v":{"$error":"#VALUE!"}},{"$f":"+D430/D426","v":{"$error":"#VALUE!"}}]
[]
[]
[null,null,"2.2. Dirección Arquitectónica de Obra."]
[null,null,"Datos:"]
[null,null,"CP= Costo de proyecto ejecutivo: $1,649,934.00",{"$f":"+D211","v":{"$error":"#VALUE!"}}]
[null,null,"Entidad Federativa:",{"$f":"+D22","v":0}]
[null,null,"Ff = Factores de servicios foráneos",{"$f":"+D23","v":" "}]
[null,null,"FA = Alcance de proyecto (FA)= 1.0000",{"$f":"+D26","v":1}]
[null,null,"Fd= Factor de dirección. 25%",0.25]
[null,null,"H= (CP) (Fd) (FA) (Ff)",{"$f":"+D435*D439*D438*D437","v":{"$error":"#VALUE!"}}]
[]
[]
[]
[null,null,"2.3. Supervisión de Obra. FORMULA 1"]
[null,null,"Datos:"]
[null,null,"Costo de la obra contratado",{"$f":"+D20","v":" "}]
[null,null,"supervisión a 4 meses ",{"$f":"+D40","v":0}]
[null,null,"Cs  = 12.96 Co/ 1.046Pd",{"$f":"+(12.96*D446)/(1.046*D447)","v":{"$error":"#VALUE!"}},{"$f":"+D448/D446","v":{"$error":"#VALUE!"}}]
[null,null,"Cs= Costo de supervisión"]
[null,null,"Co= Costo de obra contratado"]
[null,null,"Pd= Periodo de ejecución de la obra en días."]
[]
[null,null,"2.3. Supervisión de Obra. FORMULA 2"]
[null,null,"Cs= [(0.17) ($/m2) - 0.10 ($/m2)](Ff)",{"$f":"+((0.17*D20)-(0.1*D20))*D457","v":{"$error":"#VALUE!"}},{"$f":"+D454/D456","v":{"$error":"#VALUE!"}}]
[null,null,"Datos:"]
[null,null,"Costo de obra paramétrico",{"$f":"+D20","v":" "}]
[null,null,"Ff = Entidad Federativa:",{"$f":"+D23","v":" "}]
[null,null,{"$f":"+D22","v":0}]
[]
[null,null,"Cs= Costo de supervisión"]
[null,null,"Co= Costo de obra contratado"]
[null,null,"2.3. Supervisión de Obra."]
[null,null,"Cs ="]
[]
[null,null,"Distrito Federal (Ff)= 1.00"]
[]
[]
[null,null,"2.3.1. Cálculo de Factor de Salario Real"]
[null,null,"DATOS"]
[null,null,"DIBUJANTE B"]
[null,null,"VECES SALARIO MINIMO",{"$f":"VLOOKUP(C470,'TABLAS  INIFED'!A1597:M1611,8,FALSE)","v":5}]
[null,null,"FSR = [( (0.246137 + (0.139 SM + EXC)/SBC) ](1.2715)) + 1.2715",{"$f":"+(((0.246137+(((0.139*D476)+D480)/D475))*1.2715)+(1.2715))","v":1.6604988955000002},null,323.8]
[null,null,"FSR= Factor de salario real."]
[null,null,"SB= Salario base."]
[null,null,"SBC= Salario base de cotización (veces el salario mínimo de acuerdo al profesionista).",{"$f":"+D471*D476","v":323.8}]
[null,null,"SM=(salario mínimo vigente).",64.760000000000005,null,123.22]
[null,null,"EXC= Excedente de 3 salarios mínimos por ley IMSS.",{"$f":"+D476*3","v":194.28000000000003}]
[]
[null,null,"Para el cálculo de excedente (F)."]
[null,null,"F= (SBC - 3 SM) 0.08",{"$f":"+IF(C481>0,C481,0)","v":10.361599999999999}]
[null,null,{"$f":"+((D475-(3*D476))*0.08)","v":10.361599999999999}]
[null,null,"F= Excedente."]
[]
[]
[null,null,"2.5. Director responsable de obra (DRO)."]
[]
[null,null,"Datos:"]
[null,null,"Superficie construida:",{"$f":"+D16","v":0}]
[null,null,"Costo paramétrico nivel educativo: ",{"$f":"+D19","v":" "}]
[null,null,"Números de corresponsables: 0",{"$f":"+D41","v":0}]
[]
[null,null,"H=[(0.0025) (S) + 0.15 + 5(N)]($/m2)",{"$f":"+(((0.0025*D488)+0.15+(5*(D490)))*D489)","v":{"$error":"#VALUE!"}},{"$f":"+D492/D20","v":{"$error":"#VALUE!"}}]
[]
[null,null,"H= Honorarios."]
[null,null,"N= Número de corresponsables."]
[null,null,"S= Superficie construida."]
[null,null,"$/m2= Costo paramétrico del nivel educativo."]
[]
[null,null,"FACTORES INTERCIUDAD RESPECTO A LA CIUDAD DE MEXICO"]
[null,null,"CELAYA",0.98960000000000004]
[null,null,"IRAPUATO",0.98170000000000002]
[null,null,"GUANAJUATO",0.98340000000000005]
[null,null,"LEON",0.99360000000000004]
[null,null,"SALAMANCA"]
[null,null,"PENJAMO"]
[null,null,"CORTAZAR"]
[null,null,"SAN FRANCISCO DEL RINCON"]
[null,null,"YURIRIA"]
[null,null,"MOROLEON"]
[null,null,"URIANGATO"]
[null,null,"SILAO"]
[]
[null,null,"BAJIO",0.96970000000000001]

{"sheet":"TABLAS TOPOGRAFIA","index":2,"n_rows":2394,"n_cols":15,"rows_kept":2394,"cut":false,"hidden":true,"merged":[]}
[]
[null,"LEVANTAMIENTO TOPOGRAFICO ",null,null,null,null,null,null,"LEVANTAMIENTO CONSTRUCCION",null,null,null,"LEVANTAMIENTO INSTALACIONES"]
[null,"PLANIMETRIA",null,null,null,null,null,null,"M2",null,null,null,"M2"]
[]
[null,"MEMORIA DE CALCULO",null,null,null,{"$f":"+IF('[1]DATOS Y PRESENTACION'!D22=\"\",\" \",'[1]DATOS Y PRESENTACION'!D22)","v":" "}]
[null,"CUADRO DE CONSTRUCCION",null,null,null,"FACTOR 1",{"$f":"+IF(F5=\"IRREGULAR\",1.05,1)","v":1}]
[null,"PLANO",null,null,null,{"$f":"+IF('[1]DATOS Y PRESENTACION'!D24=\"\",\" \",'[1]DATOS Y PRESENTACION'!D24)","v":" "},null,null,"PLANO",null,null,null,"PLANO"]
[null,null,null,null,null,"FACTOR 2",{"$f":"+IF(F7=\"PENDIENTE LIGERA REGULAR\",1.03,IF(F7=\"PENDIENTE LIGERA IRREGULAR\",1.06,IF(F7=\"PENDIENTE FUERTE REGULAR\",1.09,IF(F7=\"PENDIENTE FUERTE IRREGULAR\",1.12,1))))","v":1}]
[null,"SUPERFICIE EN M2",null,{"$f":"IF($E$9=0,0,IF($E$9<200,200,IF($E$9<10000,CEILING($E$9,100),CEILING($E$9,10000))))","v":{"$error":"#VALUE!"}},{"$f":"+IF('DATOS Y PRESENTACION'!D61=\"\",0,'DATOS Y PRESENTACION'!D61)","v":" "},"CON FACTORES",null,null,"SUPERFICIE EN M2",{"$f":"CEILING(K9,100)","v":{"$error":"#VALUE!"}},{"$f":"+'[1]DATOS Y PRESENTACION'!I28","v":" "},null,"SUPERFICIE EN M2",{"$f":"+IF(O9=0,0,IF(O9<70,70,O9))","v":" "},{"$f":"+'[1]DATOS Y PRESENTACION'!I28","v":" "}]
[null,"SUPERFICIE EN HECTAREAS",null,{"$f":"+D9/10000","v":{"$error":"#VALUE!"}},{"$f":"+VLOOKUP(D10,B13:E300,4,FALSE)","v":{"$error":"#VALUE!"}},null,{"$f":"+E10*G8*G6","v":{"$error":"#VALUE!"}}]
[null,"HAS",null,null,null,null,"costo por m2"]
["m2","SUPERFICIE","COSTO POR HECTAREA",null,"IMPORTE","AUMENTO","AUMENTO",null,"SUPERFICIE","COSTO POR M2","IMPORTE",null,"SUPERFICIE","COSTO POR M2","IMPORTE"]
[0,0,null,null,0]
[150,{"$f":"+A14/10000","v":1.4999999999999999E-2},{"$f":"+E14/B14","v":66666.666666666672},null,1000,null,null,null,0,15,0,null,0,10,0]
[200,{"$f":"+A15/10000","v":0.02},{"$f":"+E15/B15","v":75000},null,{"$f":"+E14+F15","v":1500},500,{"$f":"+F15/100","v":5},null,70,15,{"$f":"+J15*I15","v":1050},null,70,15,{"$f":"+N15*M15","v":1050}]
[300,0.03,{"$f":"+E16/B16","v":66666.666666666672},null,2000,{"$f":"+F15","v":500},{"$f":"+F16/100","v":5},null,71,15,1065,null,71,15,1065]
[400,0.04,62500,null,2500,{"$f":"+F16","v":500},5,null,72,15,1080,null,72,15,1080]
[500,0.05,60000,null,3000,{"$f":"+F17","v":500},5,null,73,15,1095,null,73,15,1095]
[600,0.06,56666.666666666672,null,3400,{"$f":"+F18*0.8","v":400},4,null,74,15,1110,null,74,15,1110]
[700,7.0000000000000007E-2,54285.714285714283,null,3800,{"$f":"+F19","v":400},4,null,75,15,1125,null,75,15,1125]
[800,0.08,52500,null,4200,{"$f":"+F20","v":400},4,null,76,15,1140,null,76,15,1140]
[900,0.09,51111.111111111109,null,4600,{"$f":"+F21","v":400},4,null,77,15,1155,null,77,15,1155]
[1000,0.1,50000,null,5000,{"$f":"+F22","v":400},4,null,78,15,1170,null,78,15,1170]
[1100,0.11,46590.909090909088,null,5125,{"$f":"+F23*0.3125","v":125},1.25,null,79,15,1185,null,79,15,1185]
[1200,0.12,43750,null,5250,{"$f":"+F24","v":125},1.25,null,80,15,1200,null,80,15,1200]
[1300,0.13,41346.153846153844,null,5375,{"$f":"+F25","v":125},1.25,null,81,15,1215,null,81,15,1215]
[1400,0.14000000000000001,39285.714285714283,null,5500,125,1.25,null,82,15,1230,null,82,15,1230]
[1500,0.15,37500,null,5625,125,1.25,null,83,15,1245,null,83,15,1245]
[1600,0.16,35937.5,null,5750,125,1.25,null,84,15,1260,null,84,15,1260]
[1700,0.17,34558.823529411762,null,5875,125,1.25,null,85,15,1275,null,85,15,1275]
[1800,0.18,33333.333333333336,null,6000,125,{"$f":"+F31/100","v":1.25},null,86,15,1290,null,86,15,1290]
[1900,0.19,32236.842105263157,null,6125,125,1.25,null,87,15,1305,null,87,15,1305]
[2000,0.2,31250,null,6250,125,1.25,null,88,15,1320,null,88,15,1320]
[2100,0.21,30000,null,6300,{"$f":"+F33*0.4","v":50},0.5,null,89,15,1335,null,89,15,1335]
[2200,0.22,28863.636363636364,null,6350,{"$f":"+F34","v":50},0.5,null,90,15,1350,null,90,15,1350]
[2300,0.23,27826.086956521736,null,6400,{"$f":"+F35","v":50},0.5,null,91,15,1365,null,91,15,1365]
[2400,0.24,26875,null,6450,50,0.5,null,92,15,1380,null,92,15,1380]
[2500,0.25,26000,null,6500,50,0.5,null,93,15,1395,null,93,15,1395]
[2600,0.26,25192.307692307691,null,6550,50,0.5,null,94,15,1410,null,94,15,1410]
[2700,0.27,24444.444444444442,null,6600,50,0.5,null,95,15,1425,null,95,15,1425]
[2800,0.28000000000000003,23749.999999999996,null,6650,50,0.5,null,96,15,1440,null,96,15,1440]
[2900,0.28999999999999998,23103.448275862069,null,6700,50,0.5,null,97,15,1455,null,97,15,1455]
[3000,0.3,22500,null,6750,50,0.5,null,98,15,1470,null,98,15,1470]
[3100,0.31,21895.16129032258,null,6787.5,{"$f":"+F43*0.75","v":37.5},0.375,null,99,15,1485,null,99,15,1485]
[3200,0.32,21328.125,null,6825,{"$f":"+F44","v":37.5},0.375,null,100,15,1500,null,100,15,1500]
[3300,0.33,20795.454545454544,null,6862.5,{"$f":"+F45","v":37.5},0.375,null,101,15,1515,null,101,15,1515]
[3400,0.34,20294.117647058822,null,6900,37.5,0.375,null,102,15,1530,null,102,15,1530]
[3500,0.35,19821.428571428572,null,6937.5,37.5,0.375,null,103,15,1545,null,103,15,1545]
[3600,0.36,19375,null,6975,37.5,0.375,null,104,15,1560,null,104,15,1560]
[3700,0.37,18952.702702702703,null,7012.5,37.5,0.375,null,105,15,1575,null,105,15,1575]
[3800,0.38,18552.631578947367,null,7050,37.5,0.375,null,106,15,1590,null,106,15,1590]
[3900,0.39,18173.076923076922,null,7087.5,37.5,0.375,null,107,15,1605,null,107,15,1605]
[4000,0.4,17812.5,null,7125,37.5,0.375,null,108,15,1620,null,108,15,1620]
[4100,0.41,17469.512195121952,null,7162.5,37.5,0.375,null,109,15,1635,null,109,15,1635]
[4200,0.42,17142.857142857145,null,7200,37.5,0.375,null,110,15,1650,null,110,15,1650]
[4300,0.43,16831.39534883721,null,7237.5,37.5,0.375,null,111,15,1665,null,111,15,1665]
[4400,0.44,16534.090909090908,null,7275,37.5,0.375,null,112,15,1680,null,112,15,1680]
[4500,0.45,16250,null,7312.5,37.5,0.375,null,113,15,1695,null,113,15,1695]
[4600,0.46,15978.260869565216,null,7350,37.5,0.375,null,114,15,1710,null,114,15,1710]
[4700,0.47,15718.08510638298,null,7387.5,37.5,0.375,null,115,15,1725,null,115,15,1725]
[4800,0.48,15468.75,null,7425,37.5,0.375,null,116,15,1740,null,116,15,1740]
[4900,0.49,15229.591836734695,null,7462.5,37.5,0.375,null,117,15,1755,null,117,15,1755]
[5000,0.5,15000,null,7500,37.5,0.375,null,118,15,1770,null,118,15,1770]
[5100,0.51,14779.411764705883,null,7537.5,37.5,0.375,null,119,15,1785,null,119,15,1785]
[5200,0.52,14567.307692307691,null,7575,37.5,0.375,null,120,15,1800,null,120,15,1800]
[5300,0.53,14363.20754716981,null,7612.5,37.5,0.375,null,121,15,1815,null,121,15,1815]
[5400,0.54,14166.666666666666,null,7650,37.5,0.375,null,122,15,1830,null,122,15,1830]
[5500,0.55000000000000004,13977.272727272726,null,7687.5,37.5,0.375,null,123,15,1845,null,123,15,1845]
[5600,0.56000000000000005,13794.642857142855,null,7725,37.5,0.375,null,124,15,1860,null,124,15,1860]
[5700,0.56999999999999995,13618.42105263158,null,7762.5,37.5,0.375,null,125,15,1875,null,125,15,1875]
[5800,0.57999999999999996,13448.275862068966,null,7800,37.5,0.375,null,126,15,1890,null,126,15,1890]
[5900,0.59,13283.898305084747,null,7837.5,37.5,0.375,null,127,15,1905,null,127,15,1905]
[6000,0.6,13125,null,7875,37.5,0.375,null,128,15,1920,null,128,15,1920]
[6100,0.61,12971.311475409837,null,7912.5,37.5,0.375,null,129,15,1935,null,129,15,1935]
[6200,0.62,12822.58064516129,null,7950,37.5,0.375,null,130,15,1950,null,130,15,1950]
[6300,0.63,12678.571428571429,null,7987.5,37.5,0.375,null,131,15,1965,null,131,15,1965]
[6400,0.64,12539.0625,null,8025,37.5,0.375,null,132,15,1980,null,132,15,1980]
[6500,0.65,12403.846153846154,null,8062.5,37.5,0.375,null,133,15,1995,null,133,15,1995]
[6600,{"$f":"+A79/10000","v":0.66},12272.727272727272,null,{"$f":"+E78+F79","v":8100},37.5,0.375,null,134,15,{"$f":"+J79*I79","v":2010},null,134,15,{"$f":"+N79*M79","v":2010}]
[6700,0.67,{"$f":"+E80/B80","v":12145.5223880597},null,8137.5,37.5,{"$f":"+F80/100","v":0.375},null,135,15,2025,null,135,15,2025]
[6800,0.68,12022.058823529411,null,8175,37.5,0.375,null,136,15,2040,null,136,15,2040]
[6900,0.69,11902.17391304348,null,8212.5,37.5,0.375,null,137,15,2055,null,137,15,2055]
[7000,0.7,11785.714285714286,null,8250,37.5,0.375,null,138,15,2070,null,138,15,2070]
[7100,0.71,11672.535211267606,null,8287.5,37.5,0.375,null,139,15,2085,null,139,15,2085]
[7200,0.72,11562.5,null,8325,37.5,0.375,null,140,15,2100,null,140,15,2100]
[7300,0.73,11455.479452054795,null,8362.5,37.5,0.375,null,141,15,2115,null,141,15,2115]
[7400,0.74,11351.351351351352,null,8400,37.5,0.375,null,142,15,2130,null,142,15,2130]
[7500,0.75,11250,null,8437.5,37.5,0.375,null,143,15,2145,null,143,15,2145]
[7600,0.76,11151.315789473683,null,8475,37.5,0.375,null,144,15,2160,null,144,15,2160]
[7700,0.77,11055.194805194806,null,8512.5,37.5,0.375,null,145,15,2175,null,145,15,2175]
[7800,0.78,10961.538461538461,null,8550,37.5,0.375,null,146,15,2190,null,146,15,2190]
[7900,0.79,10870.253164556962,null,8587.5,37.5,0.375,null,147,15,2205,null,147,15,2205]
[8000,0.8,10781.25,null,8625,37.5,0.375,null,148,15,2220,null,148,15,2220]
[8100,0.81,10694.444444444443,null,8662.5,37.5,0.375,null,149,15,2235,null,149,15,2235]
[8200,0.82,10609.756097560976,null,8700,37.5,0.375,null,150,15,2250,null,150,15,2250]
[8300,0.83,10527.10843373494,null,8737.5,37.5,0.375,null,151,15,2265,null,151,15,2265]
[8400,0.84,10446.428571428572,null,8775,37.5,0.375,null,152,15,2280,null,152,15,2280]
[8500,0.85,10367.64705882353,null,8812.5,37.5,0.375,null,153,15,2295,null,153,15,2295]
[8600,0.86,10290.697674418605,null,8850,37.5,0.375,null,154,15,2310,null,154,15,2310]
[8700,0.87,10215.51724137931,null,8887.5,37.5,0.375,null,155,15,2325,null,155,15,2325]
[8800,0.88,10142.045454545454,null,8925,37.5,0.375,null,156,15,2340,null,156,15,2340]
[8900,0.89,10070.224719101123,null,8962.5,37.5,0.375,null,157,15,2355,null,157,15,2355]
[9000,0.9,10000,null,9000,37.5,0.375,null,158,15,2370,null,158,15,2370]
[9100,0.91,9931.3186813186803,null,9037.5,37.5,0.375,null,159,15,2385,null,159,15,2385]
[9200,0.92,9864.1304347826081,null,9075,37.5,0.375,null,160,15,2400,null,160,15,2400]
[9300,0.93,9798.3870967741932,null,9112.5,37.5,0.375,null,161,15,2415,null,161,15,2415]
[9400,0.94,9734.0425531914898,null,9150,37.5,0.375,null,162,15,2430,null,162,15,2430]
[9500,0.95,9671.0526315789484,null,9187.5,37.5,0.375,null,163,15,2445,null,163,15,2445]
[9600,0.96,9609.375,null,9225,37.5,0.375,null,164,15,2460,null,164,15,2460]
[9700,0.97,9548.9690721649495,null,9262.5,{"$f":"+F109","v":37.5},0.375,null,165,15,2475,null,165,15,2475]
[9800,0.98,9489.7959183673465,null,9300,{"$f":"+F110","v":37.5},0.375,null,166,15,2490,null,166,15,2490]
[9900,0.99,9431.818181818182,null,9337.5,{"$f":"+F111","v":37.5},0.375,null,167,15,2505,null,167,15,2505]
[10000,1,9375,null,9375,{"$f":"+F112","v":37.5},0.375,null,168,15,2520,null,168,15,2520]
[20000,2,{"$f":"+E114/B114","v":5687.5},null,11375,2000,{"$f":"+F114/10000","v":0.2},null,169,15,2535,null,169,15,2535]
[30000,3,null,null,13375,2000,{"$f":"+F115/10000","v":0.2},null,170,15,2550,null,170,15,2550]
[40000,4,null,null,15375,2000,0.2,null,171,15,2565,null,171,15,2565]
[50000,5,null,null,17375,2000,0.2,null,172,15,2580,null,172,15,2580]
[60000,6,null,null,19375,2000,0.2,null,173,15,2595,null,173,15,2595]
[70000,7,null,null,21375,2000,0.2,null,174,15,2610,null,174,15,2610]
[80000,8,null,null,23375,2000,0.2,null,175,15,2625,null,175,15,2625]
[90000,9,null,null,25375,2000,0.2,null,176,15,2640,null,176,15,2640]
[100000,10,null,null,27375,2000,0.2,null,177,15,2655,null,177,15,2655]
[110000,11,null,null,29375,2000,0.2,null,178,15,2670,null,178,15,2670]
[120000,12,null,null,31375,2000,0.2,null,179,15,2685,null,179,15,2685]
[130000,13,null,null,33375,2000,0.2,null,180,15,2700,null,180,15,2700]
[140000,14,null,null,35375,2000,{"$f":"+F126/10000","v":0.2},null,181,15,2715,null,181,15,2715]
[150000,15,null,null,37375,2000,0.2,null,182,15,2730,null,182,15,2730]
[160000,16,null,null,39375,2000,0.2,null,183,15,2745,null,183,15,2745]
[170000,17,null,null,41375,2000,0.2,null,184,15,2760,null,184,15,2760]
[180000,18,null,null,43375,2000,0.2,null,185,15,2775,null,185,15,2775]
[190000,19,null,null,45375,2000,0.2,null,186,15,2790,null,186,15,2790]
[200000,20,null,null,47375,2000,0.2,null,187,15,2805,null,187,15,2805]
[210000,21,null,null,48875,1500,0.15,null,188,15,2820,null,188,15,2820]
[220000,22,null,null,50375,1500,0.15,null,189,15,2835,null,189,15,2835]
[230000,23,null,null,51875,1500,0.15,null,190,15,2850,null,190,15,2850]
[240000,24,null,null,53375,1500,0.15,null,191,15,2865,null,191,15,2865]
[250000,25,null,null,54875,1500,0.15,null,192,15,2880,null,192,15,2880]
[260000,26,null,null,56375,1500,0.15,null,193,15,2895,null,193,15,2895]
[270000,27,null,null,57875,1500,0.15,null,194,15,2910,null,194,15,2910]
[280000,28,null,null,59375,1500,0.15,null,195,15,2925,null,195,15,2925]
[290000,29,null,null,60875,1500,0.15,null,196,15,2940,null,196,15,2940]
[300000,30,null,null,62375,1500,0.15,null,197,15,2955,null,197,15,2955]
[310000,31,null,null,{"$f":"+E142+F143","v":63875},1500,0.15,null,198,15,{"$f":"+J143*I143","v":2970},null,198,15,{"$f":"+N143*M143","v":2970}]
[320000,32,null,null,65375,1500,0.15,null,199,15,2985,null,199,15,2985]
[330000,33,null,null,66875,1500,0.15,null,200,15,3000,null,200,15,3000]
[340000,34,null,null,68375,1500,0.15,null,201,15,3015,null,201,15,3015]
[350000,35,null,null,69875,1500,0.15,null,202,15,3030,null,202,15,3030]
[360000,36,null,null,71375,1500,0.15,null,203,15,3045,null,203,15,3045]
[370000,37,null,null,72875,1500,0.15,null,204,15,3060,null,204,15,3060]
[380000,38,null,null,74375,1500,0.15,null,205,15,3075,null,205,15,3075]
[390000,39,null,null,75875,1500,0.15,null,206,15,3090,null,206,15,3090]
[400000,40,null,null,77375,1500,0.15,null,207,15,3105,null,207,15,3105]
[410000,41,null,null,78875,1500,0.15,null,208,15,3120,null,208,15,3120]
[420000,42,null,null,80375,1500,0.15,null,209,15,3135,null,209,15,3135]
[430000,43,null,null,81875,1500,0.15,null,210,15,3150,null,210,15,3150]
[440000,44,null,null,83375,1500,0.15,null,211,15,3165,null,211,15,3165]
[450000,45,null,null,84875,1500,0.15,null,212,15,3180,null,212,15,3180]
[460000,46,null,null,86375,1500,0.15,null,213,15,3195,null,213,15,3195]
[470000,47,null,null,87875,1500,0.15,null,214,15,3210,null,214,15,3210]
[480000,48,null,null,89375,1500,0.15,null,215,15,3225,null,215,15,3225]
[490000,49,null,null,90875,1500,0.15,null,216,15,3240,null,216,15,3240]
[500000,50,null,null,92375,1500,0.15,null,217,15,3255,null,217,15,3255]
[510000,51,null,null,93375,1000,0.1,null,218,15,3270,null,218,15,3270]
[520000,52,null,null,94375,1000,0.1,null,219,15,3285,null,219,15,3285]
[530000,53,null,null,95375,1000,0.1,null,220,15,3300,null,220,15,3300]
[540000,54,null,null,96375,1000,0.1,null,221,15,3315,null,221,15,3315]
[550000,55,null,null,97375,1000,0.1,null,222,15,3330,null,222,15,3330]
[560000,56,null,null,98375,1000,0.1,null,223,15,3345,null,223,15,3345]
[570000,57,null,null,99375,1000,0.1,null,224,15,3360,null,224,15,3360]
[580000,58,null,null,100375,1000,0.1,null,225,15,3375,null,225,15,3375]
[590000,59,null,null,101375,1000,0.1,null,226,15,3390,null,226,15,3390]
[600000,60,null,null,102375,1000,0.1,null,227,15,3405,null,227,15,3405]
[610000,61,null,null,103375,1000,0.1,null,228,15,3420,null,228,15,3420]
[620000,62,null,null,104375,1000,0.1,null,229,15,3435,null,229,15,3435]
[630000,63,null,null,105375,1000,0.1,null,230,15,3450,null,230,15,3450]
[640000,64,null,null,106375,1000,0.1,null,231,15,3465,null,231,15,3465]
[650000,65,null,null,107375,1000,0.1,null,232,15,3480,null,232,15,3480]
[660000,66,null,null,108375,1000,0.1,null,233,15,3495,null,233,15,3495]
[670000,67,null,null,109375,1000,{"$f":"+F179/10000","v":0.1},null,234,15,3510,null,234,15,3510]
[680000,68,null,null,110375,1000,0.1,null,235,15,3525,null,235,15,3525]
[690000,69,null,null,111375,1000,0.1,null,236,15,3540,null,236,15,3540]
[700000,70,null,null,112375,1000,0.1,null,237,15,3555,null,237,15,3555]
[710000,71,null,null,113375,1000,0.1,null,238,15,3570,null,238,15,3570]
[720000,72,null,null,114375,1000,0.1,null,239,15,3585,null,239,15,3585]
[730000,73,null,null,115375,1000,0.1,null,240,15,3600,null,240,15,3600]
[740000,74,null,null,116375,1000,0.1,null,241,15,3615,null,241,15,3615]
[750000,75,null,null,117375,1000,0.1,null,242,15,3630,null,242,15,3630]
[760000,76,null,null,118375,1000,0.1,null,243,15,3645,null,243,15,3645]
[770000,77,null,null,119375,1000,0.1,null,244,15,3660,null,244,15,3660]
[780000,78,null,null,120375,1000,0.1,null,245,15,3675,null,245,15,3675]
[790000,79,null,null,121375,1000,0.1,null,246,15,3690,null,246,15,3690]
[800000,80,null,null,122375,1000,0.1,null,247,15,3705,null,247,15,3705]
[null,null,null,null,null,null,null,null,248,15,3720,null,248,15,3720]
[null,null,null,null,null,null,null,null,249,15,3735,null,249,15,3735]
[null,null,null,null,null,null,null,null,250,15,3750,null,250,15,3750]
[null,null,null,null,null,null,null,null,251,15,3765,null,251,15,3765]
[null,null,null,null,null,null,null,null,252,15,3780,null,252,15,3780]
[null,null,null,null,null,null,null,null,253,15,3795,null,253,15,3795]
[null,null,null,null,null,null,null,null,254,15,3810,null,254,15,3810]
[null,null,null,null,null,null,null,null,255,15,3825,null,255,15,3825]
[null,null,null,null,null,null,null,null,256,15,3840,null,256,15,3840]
[null,null,null,null,null,null,null,null,257,15,3855,null,257,15,3855]
[null,null,null,null,null,null,null,null,258,15,3870,null,258,15,3870]
[null,null,null,null,null,null,null,null,259,15,3885,null,259,15,3885]
[null,null,null,null,null,null,null,null,260,15,3900,null,260,15,3900]
[null,null,null,null,null,null,null,null,261,15,3915,null,261,15,3915]
[null,null,null,null,null,null,null,null,262,15,{"$f":"+J207*I207","v":3930},null,262,15,{"$f":"+N207*M207","v":3930}]
[null,null,null,null,null,null,null,null,263,15,3945,null,263,15,3945]
[null,null,null,null,null,null,null,null,264,15,3960,null,264,15,3960]
[null,null,null,null,null,null,null,null,265,15,3975,null,265,15,3975]
[null,null,null,null,null,null,null,null,266,15,3990,null,266,15,3990]
[null,null,null,null,null,null,null,null,267,15,4005,null,267,15,4005]
[null,null,null,null,null,null,null,null,268,15,4020,null,268,15,4020]
[null,null,null,null,null,null,null,null,269,15,4035,null,269,15,4035]
[null,null,null,null,null,null,null,null,270,15,4050,null,270,15,4050]
[null,null,null,null,null,null,null,null,271,15,4065,null,271,15,4065]
[null,null,null,null,null,null,null,null,272,15,4080,null,272,15,4080]
[null,null,null,null,null,null,null,null,273,15,4095,null,273,15,4095]
[null,null,null,null,null,null,null,null,274,15,4110,null,274,15,4110]
[null,null,null,null,null,null,null,null,275,15,4125,null,275,15,4125]
[null,null,null,null,null,null,null,null,276,15,4140,null,276,15,4140]
[null,null,null,null,null,null,null,null,277,15,4155,null,277,15,4155]
[null,null,null,null,null,null,null,null,278,15,4170,null,278,15,4170]
[null,null,null,null,null,null,null,null,279,15,4185,null,279,15,4185]
[null,null,null,null,null,null,null,null,280,15,4200,null,280,15,4200]
[null,null,null,null,null,null,null,null,281,15,4215,null,281,15,4215]
[null,null,null,null,null,null,null,null,282,15,4230,null,282,15,4230]
[null,null,null,null,null,null,null,null,283,15,4245,null,283,15,4245]
[null,null,null,null,null,null,null,null,284,15,4260,null,284,15,4260]
[null,null,null,null,null,null,null,null,285,15,4275,null,285,15,4275]
[null,null,null,null,null,null,null,null,286,15,4290,null,286,15,4290]
[null,null,null,null,null,null,null,null,287,15,4305,null,287,15,4305]
[null,null,null,null,null,null,null,null,288,15,4320,null,288,15,4320]
[null,null,null,null,null,null,null,null,289,15,4335,null,289,15,4335]
[null,null,null,null,null,null,null,null,290,15,4350,null,290,15,4350]
[null,null,null,null,null,null,null,null,291,15,4365,null,291,15,4365]
[null,null,null,null,null,null,null,null,292,15,4380,null,292,15,4380]
[null,null,null,null,null,null,null,null,293,15,4395,null,293,15,4395]
[null,null,null,null,null,null,null,null,294,15,4410,null,294,15,4410]
[null,null,null,null,null,null,null,null,295,15,4425,null,295,15,4425]
[null,null,null,null,null,null,null,null,296,15,4440,null,296,15,4440]
[null,null,null,null,null,null,null,null,297,15,4455,null,297,15,4455]
[null,null,null,null,null,null,null,null,298,15,4470,null,298,15,4470]
[null,null,null,null,null,null,null,null,299,15,4485,null,299,15,4485]
[null,null,null,null,null,null,null,null,300,15,4500,null,300,15,4500]
[null,null,null,null,null,null,null,null,301,15,4515,null,301,15,4515]
[null,null,null,null,null,null,null,null,302,15,4530,null,302,15,4530]
[null,null,null,null,null,null,null,null,303,15,4545,null,303,15,4545]
[null,null,null,null,null,null,null,null,304,15,4560,null,304,15,4560]
[null,null,null,null,null,null,null,null,305,15,4575,null,305,15,4575]
[null,null,null,null,null,null,null,null,306,15,4590,null,306,15,4590]
[null,null,null,null,null,null,null,null,307,15,4605,null,307,15,4605]
[null,null,null,null,null,null,null,null,308,15,4620,null,308,15,4620]
[null,null,null,null,null,null,null,null,309,15,4635,null,309,15,4635]
[null,null,null,null,null,null,null,null,310,15,4650,null,310,15,4650]
[null,null,null,null,null,null,null,null,311,15,4665,null,311,15,4665]
[null,null,null,null,null,null,null,null,312,15,4680,null,312,15,4680]
[null,null,null,null,null,null,null,null,313,15,4695,null,313,15,4695]
[null,null,null,null,null,null,null,null,314,15,4710,null,314,15,4710]
[null,null,null,null,null,null,null,null,315,15,4725,null,315,15,4725]
[null,null,null,null,null,null,null,null,316,15,4740,null,316,15,4740]
[null,null,null,null,null,null,null,null,317,15,4755,null,317,15,4755]
[null,null,null,null,null,null,null,null,318,15,4770,null,318,15,4770]
[null,null,null,null,null,null,null,null,319,15,4785,null,319,15,4785]
[null,null,null,null,null,null,null,null,320,15,4800,null,320,15,4800]
[null,null,null,null,null,null,null,null,321,15,4815,null,321,15,4815]
[null,null,null,null,null,null,null,null,322,15,4830,null,322,15,4830]
[null,null,null,null,null,null,null,null,323,15,4845,null,323,15,4845]
[null,null,null,null,null,null,null,null,324,15,4860,null,324,15,4860]
[null,null,null,null,null,null,null,null,325,15,4875,null,325,15,4875]
[null,null,null,null,null,null,null,null,326,15,{"$f":"+J271*I271","v":4890},null,326,15,{"$f":"+N271*M271","v":4890}]
[null,null,null,null,null,null,null,null,327,15,4905,null,327,15,4905]
[null,null,null,null,null,null,null,null,328,15,4920,null,328,15,4920]
[null,null,null,null,null,null,null,null,329,15,4935,null,329,15,4935]
[null,null,null,null,null,null,null,null,330,15,4950,null,330,15,4950]
[null,null,null,null,null,null,null,null,331,15,4965,null,331,15,4965]
[null,null,null,null,null,null,null,null,332,15,4980,null,332,15,4980]
[null,null,null,null,null,null,null,null,333,15,4995,null,333,15,4995]
[null,null,null,null,null,null,null,null,334,15,5010,null,334,15,5010]
[null,null,null,null,null,null,null,null,335,15,5025,null,335,15,5025]
[null,null,null,null,null,null,null,null,336,15,5040,null,336,15,5040]
[null,null,null,null,null,null,null,null,337,15,5055,null,337,15,5055]
[null,null,null,null,null,null,null,null,338,15,5070,null,338,15,5070]
[null,null,null,null,null,null,null,null,339,15,5085,null,339,15,5085]
[null,null,null,null,null,null,null,null,340,15,5100,null,340,15,5100]
[null,null,null,null,null,null,null,null,341,15,5115,null,341,15,5115]
[null,null,null,null,null,null,null,null,342,15,5130,null,342,15,5130]
[null,null,null,null,null,null,null,null,343,15,5145,null,343,15,5145]
[null,null,null,null,null,null,null,null,344,15,5160,null,344,15,5160]
[null,null,null,null,null,null,null,null,345,15,5175,null,345,15,5175]
[null,null,null,null,null,null,null,null,346,15,5190,null,346,15,5190]
[null,null,null,null,null,null,null,null,347,15,5205,null,347,15,5205]
[null,null,null,null,null,null,null,null,348,15,5220,null,348,15,5220]
[null,null,null,null,null,null,null,null,349,15,5235,null,349,15,5235]
[null,null,null,null,null,null,null,null,350,15,5250,null,350,15,5250]
[null,null,null,null,null,null,null,null,351,15,5265,null,351,15,5265]
[null,null,null,null,null,null,null,null,352,15,5280,null,352,15,5280]
[null,null,null,null,null,null,null,null,353,15,5295,null,353,15,5295]
[null,null,null,null,null,null,null,null,354,15,5310,null,354,15,5310]
[null,null,null,null,null,null,null,null,355,15,5325,null,355,15,5325]
[null,null,null,null,null,null,null,null,356,15,5340,null,356,15,5340]
[null,null,null,null,null,null,null,null,357,15,5355,null,357,15,5355]
[null,null,null,null,null,null,null,null,358,15,5370,null,358,15,5370]
[null,null,null,null,null,null,null,null,359,15,5385,null,359,15,5385]
[null,null,null,null,null,null,null,null,360,15,5400,null,360,15,5400]
[null,null,null,null,null,null,null,null,361,15,5415,null,361,15,5415]
[null,null,null,null,null,null,null,null,362,15,5430,null,362,15,5430]
[null,null,null,null,null,null,null,null,363,15,5445,null,363,15,5445]
[null,null,null,null,null,null,null,null,364,15,5460,null,364,15,5460]
[null,null,null,null,null,null,null,null,365,15,5475,null,365,15,5475]
[null,null,null,null,null,null,null,null,366,15,5490,null,366,15,5490]
[null,null,null,null,null,null,null,null,367,15,5505,null,367,15,5505]
[null,null,null,null,null,null,null,null,368,15,5520,null,368,15,5520]
[null,null,null,null,null,null,null,null,369,15,5535,null,369,15,5535]
[null,null,null,null,null,null,null,null,370,15,5550,null,370,15,5550]
[null,null,null,null,null,null,null,null,371,15,5565,null,371,15,5565]
[null,null,null,null,null,null,null,null,372,15,5580,null,372,15,5580]
[null,null,null,null,null,null,null,null,373,15,5595,null,373,15,5595]
[null,null,null,null,null,null,null,null,374,15,5610,null,374,15,5610]
[null,null,null,null,null,null,null,null,375,15,5625,null,375,15,5625]
[null,null,null,null,null,null,null,null,376,15,5640,null,376,15,5640]
[null,null,null,null,null,null,null,null,377,15,5655,null,377,15,5655]
[null,null,null,null,null,null,null,null,378,15,5670,null,378,15,5670]
[null,null,null,null,null,null,null,null,379,15,5685,null,379,15,5685]
[null,null,null,null,null,null,null,null,380,15,5700,null,380,15,5700]
[null,null,null,null,null,null,null,null,381,15,5715,null,381,15,5715]
[null,null,null,null,null,null,null,null,382,15,5730,null,382,15,5730]
[null,null,null,null,null,null,null,null,383,15,5745,null,383,15,5745]
[null,null,null,null,null,null,null,null,384,15,5760,null,384,15,5760]
[null,null,null,null,null,null,null,null,385,15,5775,null,385,15,5775]
[null,null,null,null,null,null,null,null,386,15,5790,null,386,15,5790]
[null,null,null,null,null,null,null,null,387,15,5805,null,387,15,5805]
[null,null,null,null,null,null,null,null,388,15,5820,null,388,15,5820]
[null,null,null,null,null,null,null,null,389,15,5835,null,389,15,5835]
[null,null,null,null,null,null,null,null,390,15,{"$f":"+J335*I335","v":5850},null,390,15,{"$f":"+N335*M335","v":5850}]
[null,null,null,null,null,null,null,null,391,15,5865,null,391,15,5865]
[null,null,null,null,null,null,null,null,392,15,5880,null,392,15,5880]
[null,null,null,null,null,null,null,null,393,15,5895,null,393,15,5895]
[null,null,null,null,null,null,null,null,394,15,5910,null,394,15,5910]
[null,null,null,null,null,null,null,null,395,15,5925,null,395,15,5925]
[null,null,null,null,null,null,null,null,396,15,5940,null,396,15,5940]
[null,null,null,null,null,null,null,null,397,15,5955,null,397,15,5955]
[null,null,null,null,null,null,null,null,398,15,5970,null,398,15,5970]
[null,null,null,null,null,null,null,null,399,15,5985,null,399,15,5985]
[null,null,null,null,null,null,null,null,400,15,6000,null,400,15,6000]
[null,null,null,null,null,null,null,null,401,15,6015,null,401,15,6015]
[null,null,null,null,null,null,null,null,402,15,6030,null,402,15,6030]
[null,null,null,null,null,null,null,null,403,15,6045,null,403,15,6045]
[null,null,null,null,null,null,null,null,404,15,6060,null,404,15,6060]
[null,null,null,null,null,null,null,null,405,15,6075,null,405,15,6075]
[null,null,null,null,null,null,null,null,406,15,6090,null,406,15,6090]
[null,null,null,null,null,null,null,null,407,15,6105,null,407,15,6105]
[null,null,null,null,null,null,null,null,408,15,6120,null,408,15,6120]
[null,null,null,null,null,null,null,null,409,15,6135,null,409,15,6135]
[null,null,null,null,null,null,null,null,410,15,6150,null,410,15,6150]
[null,null,null,null,null,null,null,null,411,15,6165,null,411,15,6165]
[null,null,null,null,null,null,null,null,412,15,6180,null,412,15,6180]
[null,null,null,null,null,null,null,null,413,15,6195,null,413,15,6195]
[null,null,null,null,null,null,null,null,414,15,6210,null,414,15,6210]
[null,null,null,null,null,null,null,null,415,15,6225,null,415,15,6225]
[null,null,null,null,null,null,null,null,416,15,6240,null,416,15,6240]
[null,null,null,null,null,null,null,null,417,15,6255,null,417,15,6255]
[null,null,null,null,null,null,null,null,418,15,6270,null,418,15,6270]
[null,null,null,null,null,null,null,null,419,15,6285,null,419,15,6285]
[null,null,null,null,null,null,null,null,420,15,6300,null,420,15,6300]
[null,null,null,null,null,null,null,null,421,15,6315,null,421,15,6315]
[null,null,null,null,null,null,null,null,422,15,6330,null,422,15,6330]
[null,null,null,null,null,null,null,null,423,15,6345,null,423,15,6345]
[null,null,null,null,null,null,null,null,424,15,6360,null,424,15,6360]
[null,null,null,null,null,null,null,null,425,15,6375,null,425,15,6375]
[null,null,null,null,null,null,null,null,426,15,6390,null,426,15,6390]
[null,null,null,null,null,null,null,null,427,15,6405,null,427,15,6405]
[null,null,null,null,null,null,null,null,428,15,6420,null,428,15,6420]
[null,null,null,null,null,null,null,null,429,15,6435,null,429,15,6435]
[null,null,null,null,null,null,null,null,430,15,6450,null,430,15,6450]
[null,null,null,null,null,null,null,null,431,15,6465,null,431,15,6465]
[null,null,null,null,null,null,null,null,432,15,6480,null,432,15,6480]
[null,null,null,null,null,null,null,null,433,15,6495,null,433,15,6495]
[null,null,null,null,null,null,null,null,434,15,6510,null,434,15,6510]
[null,null,null,null,null,null,null,null,435,15,6525,null,435,15,6525]
[null,null,null,null,null,null,null,null,436,15,6540,null,436,15,6540]
[null,null,null,null,null,null,null,null,437,15,6555,null,437,15,6555]
[null,null,null,null,null,null,null,null,438,15,6570,null,438,15,6570]
[null,null,null,null,null,null,null,null,439,15,6585,null,439,15,6585]
[null,null,null,null,null,null,null,null,440,15,6600,null,440,15,6600]
[null,null,null,null,null,null,null,null,441,15,6615,null,441,15,6615]
[null,null,null,null,null,null,null,null,442,15,6630,null,442,15,6630]
[null,null,null,null,null,null,null,null,443,15,6645,null,443,15,6645]
[null,null,null,null,null,null,null,null,444,15,6660,null,444,15,6660]
[null,null,null,null,null,null,null,null,445,15,6675,null,445,15,6675]
[null,null,null,null,null,null,null,null,446,15,6690,null,446,15,6690]
[null,null,null,null,null,null,null,null,447,15,6705,null,447,15,6705]
[null,null,null,null,null,null,null,null,448,15,6720,null,448,15,6720]
[null,null,null,null,null,null,null,null,449,15,6735,null,449,15,6735]
[null,null,null,null,null,null,null,null,450,15,6750,null,450,15,6750]
[null,null,null,null,null,null,null,null,451,15,6765,null,451,15,6765]
[null,null,null,null,null,null,null,null,452,15,6780,null,452,15,6780]
[null,null,null,null,null,null,null,null,453,15,6795,null,453,15,6795]
[null,null,null,null,null,null,null,null,454,15,{"$f":"+J399*I399","v":6810},null,454,15,{"$f":"+N399*M399","v":6810}]
[null,null,null,null,null,null,null,null,455,15,6825,null,455,15,6825]
[null,null,null,null,null,null,null,null,456,15,6840,null,456,15,6840]
[null,null,null,null,null,null,null,null,457,15,6855,null,457,15,6855]
[null,null,null,null,null,null,null,null,458,15,6870,null,458,15,6870]
[null,null,null,null,null,null,null,null,459,15,6885,null,459,15,6885]
[null,null,null,null,null,null,null,null,460,15,6900,null,460,15,6900]
[null,null,null,null,null,null,null,null,461,15,6915,null,461,15,6915]
[null,null,null,null,null,null,null,null,462,15,6930,null,462,15,6930]
[null,null,null,null,null,null,null,null,463,15,6945,null,463,15,6945]
[null,null,null,null,null,null,null,null,464,15,6960,null,464,15,6960]
[null,null,null,null,null,null,null,null,465,15,6975,null,465,15,6975]
[null,null,null,null,null,null,null,null,466,15,6990,null,466,15,6990]
[null,null,null,null,null,null,null,null,467,15,7005,null,467,15,7005]
[null,null,null,null,null,null,null,null,468,15,7020,null,468,15,7020]
[null,null,null,null,null,null,null,null,469,15,7035,null,469,15,7035]
[null,null,null,null,null,null,null,null,470,15,7050,null,470,15,7050]
[null,null,null,null,null,null,null,null,471,15,7065,null,471,15,7065]
[null,null,null,null,null,null,null,null,472,15,7080,null,472,15,7080]
[null,null,null,null,null,null,null,null,473,15,7095,null,473,15,7095]
[null,null,null,null,null,null,null,null,474,15,7110,null,474,15,7110]
[null,null,null,null,null,null,null,null,475,15,7125,null,475,15,7125]
[null,null,null,null,null,null,null,null,476,15,7140,null,476,15,7140]
[null,null,null,null,null,null,null,null,477,15,7155,null,477,15,7155]
[null,null,null,null,null,null,null,null,478,15,7170,null,478,15,7170]
[null,null,null,null,null,null,null,null,479,15,7185,null,479,15,7185]
[null,null,null,null,null,null,null,null,480,15,7200,null,480,15,7200]
[null,null,null,null,null,null,null,null,481,15,7215,null,481,15,7215]
[null,null,null,null,null,null,null,null,482,15,7230,null,482,15,7230]
[null,null,null,null,null,null,null,null,483,15,7245,null,483,15,7245]
[null,null,null,null,null,null,null,null,484,15,7260,null,484,15,7260]
[null,null,null,null,null,null,null,null,485,15,7275,null,485,15,7275]
[null,null,null,null,null,null,null,null,486,15,7290,null,486,15,7290]
[null,null,null,null,null,null,null,null,487,15,7305,null,487,15,7305]
[null,null,null,null,null,null,null,null,488,15,7320,null,488,15,7320]
[null,null,null,null,null,null,null,null,489,15,7335,null,489,15,7335]
[null,null,null,null,null,null,null,null,490,15,7350,null,490,15,7350]
[null,null,null,null,null,null,null,null,491,15,7365,null,491,15,7365]
[null,null,null,null,null,null,null,null,492,15,7380,null,492,15,7380]
[null,null,null,null,null,null,null,null,493,15,7395,null,493,15,7395]
[null,null,null,null,null,null,null,null,494,15,7410,null,494,15,7410]
[null,null,null,null,null,null,null,null,495,15,7425,null,495,15,7425]
[null,null,null,null,null,null,null,null,496,15,7440,null,496,15,7440]
[null,null,null,null,null,null,null,null,497,15,7455,null,497,15,7455]
[null,null,null,null,null,null,null,null,498,15,7470,null,498,15,7470]
[null,null,null,null,null,null,null,null,499,15,7485,null,499,15,7485]
[null,null,null,null,null,null,null,null,500,15,7500,null,500,15,7500]
[null,null,null,null,null,null,null,null,501,15,{"$f":"+J446*I446","v":7515},null,501,15,7515]
[null,null,null,null,null,null,null,null,502,15,{"$f":"+J447*I447","v":7530},null,502,15,7530]
[null,null,null,null,null,null,null,null,503,15,{"$f":"+J448*I448","v":7545},null,503,15,7545]
[null,null,null,null,null,null,null,null,504,15,{"$f":"+J449*I449","v":7560},null,504,15,7560]
[null,null,null,null,null,null,null,null,505,15,7575,null,505,15,7575]
[null,null,null,null,null,null,null,null,506,15,7590,null,506,15,7590]
[null,null,null,null,null,null,null,null,507,15,7605,null,507,15,7605]
[null,null,null,null,null,null,null,null,508,15,7620,null,508,15,7620]
[null,null,null,null,null,null,null,null,509,15,7635,null,509,15,7635]
[null,null,null,null,null,null,null,null,510,15,7650,null,510,15,7650]
[null,null,null,null,null,null,null,null,511,15,7665,null,511,15,7665]
[null,null,null,null,null,null,null,null,512,15,7680,null,512,15,7680]
[null,null,null,null,null,null,null,null,513,15,7695,null,513,15,7695]
[null,null,null,null,null,null,null,null,514,15,7710,null,514,15,7710]
[null,null,null,null,null,null,null,null,515,15,7725,null,515,15,7725]
[null,null,null,null,null,null,null,null,516,15,7740,null,516,15,7740]
[null,null,null,null,null,null,null,null,517,15,7755,null,517,15,7755]
[null,null,null,null,null,null,null,null,518,15,7770,null,518,15,{"$f":"+N463*M463","v":7770}]
[null,null,null,null,null,null,null,null,519,15,7785,null,519,15,7785]
[null,null,null,null,null,null,null,null,520,15,7800,null,520,15,7800]
[null,null,null,null,null,null,null,null,521,15,7815,null,521,15,7815]
[null,null,null,null,null,null,null,null,522,15,7830,null,522,15,7830]
[null,null,null,null,null,null,null,null,523,15,7845,null,523,15,7845]
[null,null,null,null,null,null,null,null,524,15,7860,null,524,15,7860]
[null,null,null,null,null,null,null,null,525,15,7875,null,525,15,7875]
[null,null,null,null,null,null,null,null,526,15,7890,null,526,15,7890]
[null,null,null,null,null,null,null,null,527,15,7905,null,527,15,7905]
[null,null,null,null,null,null,null,null,528,15,7920,null,528,15,7920]
[null,null,null,null,null,null,null,null,529,15,7935,null,529,15,7935]
[null,null,null,null,null,null,null,null,530,15,7950,null,530,15,7950]
[null,null,null,null,null,null,null,null,531,15,7965,null,531,15,7965]
[null,null,null,null,null,null,null,null,532,15,7980,null,532,15,7980]
[null,null,null,null,null,null,null,null,533,15,7995,null,533,15,7995]
[null,null,null,null,null,null,null,null,534,15,8010,null,534,15,8010]
[null,null,null,null,null,null,null,null,535,15,8025,null,535,15,8025]
[null,null,null,null,null,null,null,null,536,15,8040,null,536,15,8040]
[null,null,null,null,null,null,null,null,537,15,8055,null,537,15,8055]
[null,null,null,null,null,null,null,null,538,15,8070,null,538,15,8070]
[null,null,null,null,null,null,null,null,539,15,8085,null,539,15,8085]
[null,null,null,null,null,null,null,null,540,15,8100,null,540,15,8100]
[null,null,null,null,null,null,null,null,541,15,8115,null,541,15,8115]
[null,null,null,null,null,null,null,null,542,15,8130,null,542,15,8130]
[null,null,null,null,null,null,null,null,543,15,8145,null,543,15,8145]
[null,null,null,null,null,null,null,null,544,15,8160,null,544,15,8160]
[null,null,null,null,null,null,null,null,545,15,8175,null,545,15,8175]
[null,null,null,null,null,null,null,null,546,15,8190,null,546,15,8190]
[null,null,null,null,null,null,null,null,547,15,8205,null,547,15,8205]
[null,null,null,null,null,null,null,null,548,15,8220,null,548,15,8220]
[null,null,null,null,null,null,null,null,549,15,8235,null,549,15,8235]
[null,null,null,null,null,null,null,null,550,15,8250,null,550,15,8250]
[null,null,null,null,null,null,null,null,551,15,8265,null,551,15,8265]
[null,null,null,null,null,null,null,null,552,15,8280,null,552,15,8280]
[null,null,null,null,null,null,null,null,553,15,8295,null,553,15,8295]
[null,null,null,null,null,null,null,null,554,15,8310,null,554,15,8310]
[null,null,null,null,null,null,null,null,555,15,8325,null,555,15,8325]
[null,null,null,null,null,null,null,null,556,15,8340,null,556,15,8340]
[null,null,null,null,null,null,null,null,557,15,8355,null,557,15,8355]
[null,null,null,null,null,null,null,null,558,15,8370,null,558,15,8370]
[null,null,null,null,null,null,null,null,559,15,8385,null,559,15,8385]
[null,null,null,null,null,null,null,null,560,15,8400,null,560,15,8400]
[null,null,null,null,null,null,null,null,561,15,8415,null,561,15,8415]
[null,null,null,null,null,null,null,null,562,15,8430,null,562,15,8430]
[null,null,null,null,null,null,null,null,563,15,8445,null,563,15,8445]
[null,null,null,null,null,null,null,null,564,15,8460,null,564,15,8460]
[null,null,null,null,null,null,null,null,565,15,8475,null,565,15,8475]
[null,null,null,null,null,null,null,null,566,15,8490,null,566,15,8490]
[null,null,null,null,null,null,null,null,567,15,8505,null,567,15,8505]
[null,null,null,null,null,null,null,null,568,15,{"$f":"+J513*I513","v":8520},null,568,15,8520]
[null,null,null,null,null,null,null,null,569,15,8535,null,569,15,8535]
[null,null,null,null,null,null,null,null,570,15,8550,null,570,15,8550]
[null,null,null,null,null,null,null,null,571,15,8565,null,571,15,8565]
[null,null,null,null,null,null,null,null,572,15,8580,null,572,15,8580]
[null,null,null,null,null,null,null,null,573,15,8595,null,573,15,8595]
[null,null,null,null,null,null,null,null,574,15,8610,null,574,15,8610]
[null,null,null,null,null,null,null,null,575,15,8625,null,575,15,8625]
[null,null,null,null,null,null,null,null,576,15,8640,null,576,15,8640]
[null,null,null,null,null,null,null,null,577,15,8655,null,577,15,8655]
[null,null,null,null,null,null,null,null,578,15,8670,null,578,15,8670]
[null,null,null,null,null,null,null,null,579,15,8685,null,579,15,8685]
[null,null,null,null,null,null,null,null,580,15,8700,null,580,15,8700]
[null,null,null,null,null,null,null,null,581,15,8715,null,581,15,8715]
[null,null,null,null,null,null,null,null,582,15,8730,null,582,15,{"$f":"+N527*M527","v":8730}]
[null,null,null,null,null,null,null,null,583,15,8745,null,583,15,8745]
[null,null,null,null,null,null,null,null,584,15,8760,null,584,15,8760]
[null,null,null,null,null,null,null,null,585,15,8775,null,585,15,8775]
[null,null,null,null,null,null,null,null,586,15,8790,null,586,15,8790]
[null,null,null,null,null,null,null,null,587,15,8805,null,587,15,8805]
[null,null,null,null,null,null,null,null,588,15,8820,null,588,15,8820]
[null,null,null,null,null,null,null,null,589,15,8835,null,589,15,8835]
[null,null,null,null,null,null,null,null,590,15,8850,null,590,15,8850]
[null,null,null,null,null,null,null,null,591,15,8865,null,591,15,8865]
[null,null,null,null,null,null,null,null,592,15,8880,null,592,15,8880]
[null,null,null,null,null,null,null,null,593,15,8895,null,593,15,8895]
[null,null,null,null,null,null,null,null,594,15,8910,null,594,15,8910]
[null,null,null,null,null,null,null,null,595,15,8925,null,595,15,8925]
[null,null,null,null,null,null,null,null,596,15,8940,null,596,15,8940]
[null,null,null,null,null,null,null,null,597,15,8955,null,597,15,8955]
[null,null,null,null,null,null,null,null,598,15,8970,null,598,15,8970]
[null,null,null,null,null,null,null,null,599,15,8985,null,599,15,8985]
[null,null,null,null,null,null,null,null,600,15,9000,null,600,15,9000]
[null,null,null,null,null,null,null,null,601,15,9015,null,601,15,9015]
[null,null,null,null,null,null,null,null,602,15,9030,null,602,15,9030]
[null,null,null,null,null,null,null,null,603,15,9045,null,603,15,9045]
[null,null,null,null,null,null,null,null,604,15,9060,null,604,15,9060]
[null,null,null,null,null,null,null,null,605,15,9075,null,605,15,9075]
[null,null,null,null,null,null,null,null,606,15,9090,null,606,15,9090]
[null,null,null,null,null,null,null,null,607,15,9105,null,607,15,9105]
[null,null,null,null,null,null,null,null,608,15,9120,null,608,15,9120]
[null,null,null,null,null,null,null,null,609,15,9135,null,609,15,9135]
[null,null,null,null,null,null,null,null,610,15,9150,null,610,15,9150]
[null,null,null,null,null,null,null,null,611,15,9165,null,611,15,9165]
[null,null,null,null,null,null,null,null,612,15,9180,null,612,15,9180]
[null,null,null,null,null,null,null,null,613,15,9195,null,613,15,9195]
[null,null,null,null,null,null,null,null,614,15,9210,null,614,15,9210]
[null,null,null,null,null,null,null,null,615,15,9225,null,615,15,9225]
[null,null,null,null,null,null,null,null,616,15,9240,null,616,15,9240]
[null,null,null,null,null,null,null,null,617,15,9255,null,617,15,9255]
[null,null,null,null,null,null,null,null,618,15,9270,null,618,15,9270]
[null,null,null,null,null,null,null,null,619,15,9285,null,619,15,9285]
[null,null,null,null,null,null,null,null,620,15,9300,null,620,15,9300]
[null,null,null,null,null,null,null,null,621,15,9315,null,621,15,9315]
[null,null,null,null,null,null,null,null,622,15,9330,null,622,15,9330]
[null,null,null,null,null,null,null,null,623,15,9345,null,623,15,9345]
[null,null,null,null,null,null,null,null,624,15,9360,null,624,15,9360]
[null,null,null,null,null,null,null,null,625,15,9375,null,625,15,9375]
[null,null,null,null,null,null,null,null,626,15,9390,null,626,15,9390]
[null,null,null,null,null,null,null,null,627,15,9405,null,627,15,9405]
[null,null,null,null,null,null,null,null,628,15,9420,null,628,15,9420]
[null,null,null,null,null,null,null,null,629,15,9435,null,629,15,9435]
[null,null,null,null,null,null,null,null,630,15,9450,null,630,15,9450]
[null,null,null,null,null,null,null,null,631,15,9465,null,631,15,9465]
[null,null,null,null,null,null,null,null,632,15,{"$f":"+J577*I577","v":9480},null,632,15,9480]
[null,null,null,null,null,null,null,null,633,15,9495,null,633,15,9495]
[null,null,null,null,null,null,null,null,634,15,9510,null,634,15,9510]
[null,null,null,null,null,null,null,null,635,15,9525,null,635,15,9525]
[null,null,null,null,null,null,null,null,636,15,9540,null,636,15,9540]
[null,null,null,null,null,null,null,null,637,15,9555,null,637,15,9555]
[null,null,null,null,null,null,null,null,638,15,9570,null,638,15,9570]
[null,null,null,null,null,null,null,null,639,15,9585,null,639,15,9585]
[null,null,null,null,null,null,null,null,640,15,9600,null,640,15,9600]
[null,null,null,null,null,null,null,null,641,15,9615,null,641,15,9615]
[null,null,null,null,null,null,null,null,642,15,9630,null,642,15,9630]
[null,null,null,null,null,null,null,null,643,15,9645,null,643,15,9645]
[null,null,null,null,null,null,null,null,644,15,9660,null,644,15,9660]
[null,null,null,null,null,null,null,null,645,15,9675,null,645,15,9675]
[null,null,null,null,null,null,null,null,646,15,9690,null,646,15,{"$f":"+N591*M591","v":9690}]
[null,null,null,null,null,null,null,null,647,15,9705,null,647,15,9705]
[null,null,null,null,null,null,null,null,648,15,9720,null,648,15,9720]
[null,null,null,null,null,null,null,null,649,15,9735,null,649,15,9735]
[null,null,null,null,null,null,null,null,650,15,9750,null,650,15,9750]
[null,null,null,null,null,null,null,null,651,15,9765,null,651,15,9765]
[null,null,null,null,null,null,null,null,652,15,9780,null,652,15,9780]
[null,null,null,null,null,null,null,null,653,15,9795,null,653,15,9795]
[null,null,null,null,null,null,null,null,654,15,9810,null,654,15,9810]
[null,null,null,null,null,null,null,null,655,15,9825,null,655,15,9825]
[null,null,null,null,null,null,null,null,656,15,9840,null,656,15,9840]
[null,null,null,null,null,null,null,null,657,15,9855,null,657,15,9855]
[null,null,null,null,null,null,null,null,658,15,9870,null,658,15,9870]
[null,null,null,null,null,null,null,null,659,15,9885,null,659,15,9885]
[null,null,null,null,null,null,null,null,660,15,9900,null,660,15,9900]
[null,null,null,null,null,null,null,null,661,15,9915,null,661,15,9915]
[null,null,null,null,null,null,null,null,662,15,9930,null,662,15,9930]
[null,null,null,null,null,null,null,null,663,15,9945,null,663,15,9945]
[null,null,null,null,null,null,null,null,664,15,9960,null,664,15,9960]
[null,null,null,null,null,null,null,null,665,15,9975,null,665,15,9975]
[null,null,null,null,null,null,null,null,666,15,9990,null,666,15,9990]
[null,null,null,null,null,null,null,null,667,15,10005,null,667,15,10005]
[null,null,null,null,null,null,null,null,668,15,10020,null,668,15,10020]
[null,null,null,null,null,null,null,null,669,15,10035,null,669,15,10035]
[null,null,null,null,null,null,null,null,670,15,10050,null,670,15,10050]
[null,null,null,null,null,null,null,null,671,15,10065,null,671,15,10065]
[null,null,null,null,null,null,null,null,672,15,10080,null,672,15,10080]
[null,null,null,null,null,null,null,null,673,15,10095,null,673,15,10095]
[null,null,null,null,null,null,null,null,674,15,10110,null,674,15,10110]
[null,null,null,null,null,null,null,null,675,15,10125,null,675,15,10125]
[null,null,null,null,null,null,null,null,676,15,10140,null,676,15,10140]
[null,null,null,null,null,null,null,null,677,15,10155,null,677,15,10155]
[null,null,null,null,null,null,null,null,678,15,10170,null,678,15,10170]
[null,null,null,null,null,null,null,null,679,15,10185,null,679,15,10185]
[null,null,null,null,null,null,null,null,680,15,10200,null,680,15,10200]
[null,null,null,null,null,null,null,null,681,15,10215,null,681,15,10215]
[null,null,null,null,null,null,null,null,682,15,10230,null,682,15,10230]
[null,null,null,null,null,null,null,null,683,15,10245,null,683,15,10245]
[null,null,null,null,null,null,null,null,684,15,10260,null,684,15,10260]
[null,null,null,null,null,null,null,null,685,15,10275,null,685,15,10275]
[null,null,null,null,null,null,null,null,686,15,10290,null,686,15,10290]
[null,null,null,null,null,null,null,null,687,15,10305,null,687,15,10305]
[null,null,null,null,null,null,null,null,688,15,10320,null,688,15,10320]
[null,null,null,null,null,null,null,null,689,15,10335,null,689,15,10335]
[null,null,null,null,null,null,null,null,690,15,10350,null,690,15,10350]
[null,null,null,null,null,null,null,null,691,15,10365,null,691,15,10365]
[null,null,null,null,null,null,null,null,692,15,10380,null,692,15,10380]
[null,null,null,null,null,null,null,null,693,15,10395,null,693,15,10395]
[null,null,null,null,null,null,null,null,694,15,10410,null,694,15,10410]
[null,null,null,null,null,null,null,null,695,15,10425,null,695,15,10425]
[null,null,null,null,null,null,null,null,696,15,{"$f":"+J641*I641","v":10440},null,696,15,10440]
[null,null,null,null,null,null,null,null,697,15,10455,null,697,15,10455]
[null,null,null,null,null,null,null,null,698,15,10470,null,698,15,10470]
[null,null,null,null,null,null,null,null,699,15,10485,null,699,15,10485]
[null,null,null,null,null,null,null,null,700,15,10500,null,700,15,10500]
[null,null,null,null,null,null,null,null,701,15,10515,null,701,15,10515]
[null,null,null,null,null,null,null,null,702,15,10530,null,702,15,10530]
[null,null,null,null,null,null,null,null,703,15,10545,null,703,15,10545]
[null,null,null,null,null,null,null,null,704,15,10560,null,704,15,10560]
[null,null,null,null,null,null,null,null,705,15,10575,null,705,15,10575]
[null,null,null,null,null,null,null,null,706,15,10590,null,706,15,10590]
[null,null,null,null,null,null,null,null,707,15,10605,null,707,15,10605]
[null,null,null,null,null,null,null,null,708,15,10620,null,708,15,10620]
[null,null,null,null,null,null,null,null,709,15,10635,null,709,15,10635]
[null,null,null,null,null,null,null,null,710,15,10650,null,710,15,{"$f":"+N655*M655","v":10650}]
[null,null,null,null,null,null,null,null,711,15,10665,null,711,15,10665]
[null,null,null,null,null,null,null,null,712,15,10680,null,712,15,10680]
[null,null,null,null,null,null,null,null,713,15,10695,null,713,15,10695]
[null,null,null,null,null,null,null,null,714,15,10710,null,714,15,10710]
[null,null,null,null,null,null,null,null,715,15,10725,null,715,15,10725]
[null,null,null,null,null,null,null,null,716,15,10740,null,716,15,10740]
[null,null,null,null,null,null,null,null,717,15,10755,null,717,15,10755]
[null,null,null,null,null,null,null,null,718,15,10770,null,718,15,10770]
[null,null,null,null,null,null,null,null,719,15,10785,null,719,15,10785]
[null,null,null,null,null,null,null,null,720,15,10800,null,720,15,10800]
[null,null,null,null,null,null,null,null,721,15,10815,null,721,15,10815]
[null,null,null,null,null,null,null,null,722,15,10830,null,722,15,10830]
[null,null,null,null,null,null,null,null,723,15,10845,null,723,15,10845]
[null,null,null,null,null,null,null,null,724,15,10860,null,724,15,10860]
[null,null,null,null,null,null,null,null,725,15,10875,null,725,15,10875]
[null,null,null,null,null,null,null,null,726,15,10890,null,726,15,10890]
[null,null,null,null,null,null,null,null,727,15,10905,null,727,15,10905]
[null,null,null,null,null,null,null,null,728,15,10920,null,728,15,10920]
[null,null,null,null,null,null,null,null,729,15,10935,null,729,15,10935]
[null,null,null,null,null,null,null,null,730,15,10950,null,730,15,10950]
[null,null,null,null,null,null,null,null,731,15,10965,null,731,15,10965]
[null,null,null,null,null,null,null,null,732,15,10980,null,732,15,10980]
[null,null,null,null,null,null,null,null,733,15,10995,null,733,15,10995]
[null,null,null,null,null,null,null,null,734,15,11010,null,734,15,11010]
[null,null,null,null,null,null,null,null,735,15,11025,null,735,15,11025]
[null,null,null,null,null,null,null,null,736,15,11040,null,736,15,11040]
[null,null,null,null,null,null,null,null,737,15,11055,null,737,15,11055]
[null,null,null,null,null,null,null,null,738,15,11070,null,738,15,11070]
[null,null,null,null,null,null,null,null,739,15,11085,null,739,15,11085]
[null,null,null,null,null,null,null,null,740,15,11100,null,740,15,11100]
[null,null,null,null,null,null,null,null,741,15,11115,null,741,15,11115]
[null,null,null,null,null,null,null,null,742,15,11130,null,742,15,11130]
[null,null,null,null,null,null,null,null,743,15,11145,null,743,15,11145]
[null,null,null,null,null,null,null,null,744,15,11160,null,744,15,11160]
[null,null,null,null,null,null,null,null,745,15,11175,null,745,15,11175]
[null,null,null,null,null,null,null,null,746,15,11190,null,746,15,11190]
[null,null,null,null,null,null,null,null,747,15,11205,null,747,15,11205]
[null,null,null,null,null,null,null,null,748,15,11220,null,748,15,11220]
[null,null,null,null,null,null,null,null,749,15,11235,null,749,15,11235]
[null,null,null,null,null,null,null,null,750,15,11250,null,750,15,11250]
[null,null,null,null,null,null,null,null,751,15,11265,null,751,15,11265]
[null,null,null,null,null,null,null,null,752,15,11280,null,752,15,11280]
[null,null,null,null,null,null,null,null,753,15,11295,null,753,15,11295]
[null,null,null,null,null,null,null,null,754,15,11310,null,754,15,11310]
[null,null,null,null,null,null,null,null,755,15,11325,null,755,15,11325]
[null,null,null,null,null,null,null,null,756,15,11340,null,756,15,11340]
[null,null,null,null,null,null,null,null,757,15,11355,null,757,15,11355]
[null,null,null,null,null,null,null,null,758,15,11370,null,758,15,11370]
[null,null,null,null,null,null,null,null,759,15,11385,null,759,15,11385]
[null,null,null,null,null,null,null,null,760,15,{"$f":"+J705*I705","v":11400},null,760,15,11400]
[null,null,null,null,null,null,null,null,761,15,11415,null,761,15,11415]
[null,null,null,null,null,null,null,null,762,15,11430,null,762,15,11430]
[null,null,null,null,null,null,null,null,763,15,11445,null,763,15,11445]
[null,null,null,null,null,null,null,null,764,15,11460,null,764,15,11460]
[null,null,null,null,null,null,null,null,765,15,11475,null,765,15,11475]
[null,null,null,null,null,null,null,null,766,15,11490,null,766,15,11490]
[null,null,null,null,null,null,null,null,767,15,11505,null,767,15,11505]
[null,null,null,null,null,null,null,null,768,15,11520,null,768,15,11520]
[null,null,null,null,null,null,null,null,769,15,11535,null,769,15,11535]
[null,null,null,null,null,null,null,null,770,15,11550,null,770,15,11550]
[null,null,null,null,null,null,null,null,771,15,11565,null,771,15,11565]
[null,null,null,null,null,null,null,null,772,15,11580,null,772,15,11580]
[null,null,null,null,null,null,null,null,773,15,11595,null,773,15,11595]
[null,null,null,null,null,null,null,null,774,15,11610,null,774,15,{"$f":"+N719*M719","v":11610}]
[null,null,null,null,null,null,null,null,775,15,11625,null,775,15,11625]
[null,null,null,null,null,null,null,null,776,15,11640,null,776,15,11640]
[null,null,null,null,null,null,null,null,777,15,11655,null,777,15,11655]
[null,null,null,null,null,null,null,null,778,15,11670,null,778,15,11670]
[null,null,null,null,null,null,null,null,779,15,11685,null,779,15,11685]
[null,null,null,null,null,null,null,null,780,15,11700,null,780,15,11700]
[null,null,null,null,null,null,null,null,781,15,11715,null,781,15,11715]
[null,null,null,null,null,null,null,null,782,15,11730,null,782,15,11730]
[null,null,null,null,null,null,null,null,783,15,11745,null,783,15,11745]
[null,null,null,null,null,null,null,null,784,15,11760,null,784,15,11760]
[null,null,null,null,null,null,null,null,785,15,11775,null,785,15,11775]
[null,null,null,null,null,null,null,null,786,15,11790,null,786,15,11790]
[null,null,null,null,null,null,null,null,787,15,11805,null,787,15,11805]
[null,null,null,null,null,null,null,null,788,15,11820,null,788,15,11820]
[null,null,null,null,null,null,null,null,789,15,11835,null,789,15,11835]
[null,null,null,null,null,null,null,null,790,15,11850,null,790,15,11850]
[null,null,null,null,null,null,null,null,791,15,11865,null,791,15,11865]
[null,null,null,null,null,null,null,null,792,15,11880,null,792,15,11880]
[null,null,null,null,null,null,null,null,793,15,11895,null,793,15,11895]
[null,null,null,null,null,null,null,null,794,15,11910,null,794,15,11910]
[null,null,null,null,null,null,null,null,795,15,11925,null,795,15,11925]
[null,null,null,null,null,null,null,null,796,15,11940,null,796,15,11940]
[null,null,null,null,null,null,null,null,797,15,11955,null,797,15,11955]
[null,null,null,null,null,null,null,null,798,15,11970,null,798,15,11970]
[null,null,null,null,null,null,null,null,799,15,11985,null,799,15,11985]
[null,null,null,null,null,null,null,null,800,15,12000,null,800,15,12000]
[null,null,null,null,null,null,null,null,801,15,12015,null,801,15,12015]
[null,null,null,null,null,null,null,null,802,15,12030,null,802,15,12030]
[null,null,null,null,null,null,null,null,803,15,12045,null,803,15,12045]
[null,null,null,null,null,null,null,null,804,15,12060,null,804,15,12060]
[null,null,null,null,null,null,null,null,805,15,12075,null,805,15,12075]
[null,null,null,null,null,null,null,null,806,15,12090,null,806,15,12090]
[null,null,null,null,null,null,null,null,807,15,12105,null,807,15,12105]
[null,null,null,null,null,null,null,null,808,15,12120,null,808,15,12120]
[null,null,null,null,null,null,null,null,809,15,12135,null,809,15,12135]
[null,null,null,null,null,null,null,null,810,15,12150,null,810,15,12150]
[null,null,null,null,null,null,null,null,811,15,12165,null,811,15,12165]
[null,null,null,null,null,null,null,null,812,15,12180,null,812,15,12180]
[null,null,null,null,null,null,null,null,813,15,12195,null,813,15,12195]
[null,null,null,null,null,null,null,null,814,15,12210,null,814,15,12210]
[null,null,null,null,null,null,null,null,815,15,12225,null,815,15,12225]
[null,null,null,null,null,null,null,null,816,15,12240,null,816,15,12240]
[null,null,null,null,null,null,null,null,817,15,12255,null,817,15,12255]
[null,null,null,null,null,null,null,null,818,15,12270,null,818,15,12270]
[null,null,null,null,null,null,null,null,819,15,12285,null,819,15,12285]
[null,null,null,null,null,null,null,null,820,15,12300,null,820,15,12300]
[null,null,null,null,null,null,null,null,821,15,12315,null,821,15,12315]
[null,null,null,null,null,null,null,null,822,15,12330,null,822,15,12330]
[null,null,null,null,null,null,null,null,823,15,12345,null,823,15,12345]
[null,null,null,null,null,null,null,null,824,15,{"$f":"+J769*I769","v":12360},null,824,15,12360]
[null,null,null,null,null,null,null,null,825,15,12375,null,825,15,12375]
[null,null,null,null,null,null,null,null,826,15,12390,null,826,15,12390]
[null,null,null,null,null,null,null,null,827,15,12405,null,827,15,12405]
[null,null,null,null,null,null,null,null,828,15,12420,null,828,15,12420]
[null,null,null,null,null,null,null,null,829,15,12435,null,829,15,12435]
[null,null,null,null,null,null,null,null,830,15,12450,null,830,15,12450]
[null,null,null,null,null,null,null,null,831,15,12465,null,831,15,12465]
[null,null,null,null,null,null,null,null,832,15,12480,null,832,15,12480]
[null,null,null,null,null,null,null,null,833,15,12495,null,833,15,12495]
[null,null,null,null,null,null,null,null,834,15,12510,null,834,15,12510]
[null,null,null,null,null,null,null,null,835,15,12525,null,835,15,12525]
[null,null,null,null,null,null,null,null,836,15,12540,null,836,15,12540]
[null,null,null,null,null,null,null,null,837,15,12555,null,837,15,12555]
[null,null,null,null,null,null,null,null,838,15,12570,null,838,15,{"$f":"+N783*M783","v":12570}]
[null,null,null,null,null,null,null,null,839,15,12585,null,839,15,12585]
[null,null,null,null,null,null,null,null,840,15,12600,null,840,15,12600]
[null,null,null,null,null,null,null,null,841,15,12615,null,841,15,12615]
[null,null,null,null,null,null,null,null,842,15,12630,null,842,15,12630]
[null,null,null,null,null,null,null,null,843,15,12645,null,843,15,12645]
[null,null,null,null,null,null,null,null,844,15,12660,null,844,15,12660]
[null,null,null,null,null,null,null,null,845,15,12675,null,845,15,12675]
[null,null,null,null,null,null,null,null,846,15,12690,null,846,15,12690]
[null,null,null,null,null,null,null,null,847,15,12705,null,847,15,12705]
[null,null,null,null,null,null,null,null,848,15,12720,null,848,15,12720]
[null,null,null,null,null,null,null,null,849,15,12735,null,849,15,12735]
[null,null,null,null,null,null,null,null,850,15,12750,null,850,15,12750]
[null,null,null,null,null,null,null,null,851,15,12765,null,851,15,12765]
[null,null,null,null,null,null,null,null,852,15,12780,null,852,15,12780]
[null,null,null,null,null,null,null,null,853,15,12795,null,853,15,12795]
[null,null,null,null,null,null,null,null,854,15,12810,null,854,15,12810]
[null,null,null,null,null,null,null,null,855,15,12825,null,855,15,12825]
[null,null,null,null,null,null,null,null,856,15,12840,null,856,15,12840]
[null,null,null,null,null,null,null,null,857,15,12855,null,857,15,12855]
[null,null,null,null,null,null,null,null,858,15,12870,null,858,15,12870]
[null,null,null,null,null,null,null,null,859,15,12885,null,859,15,12885]
[null,null,null,null,null,null,null,null,860,15,12900,null,860,15,12900]
[null,null,null,null,null,null,null,null,861,15,12915,null,861,15,12915]
[null,null,null,null,null,null,null,null,862,15,12930,null,862,15,12930]
[null,null,null,null,null,null,null,null,863,15,12945,null,863,15,12945]
[null,null,null,null,null,null,null,null,864,15,12960,null,864,15,12960]
[null,null,null,null,null,null,null,null,865,15,12975,null,865,15,12975]
[null,null,null,null,null,null,null,null,866,15,12990,null,866,15,12990]
[null,null,null,null,null,null,null,null,867,15,13005,null,867,15,13005]
[null,null,null,null,null,null,null,null,868,15,13020,null,868,15,13020]
[null,null,null,null,null,null,null,null,869,15,13035,null,869,15,13035]
[null,null,null,null,null,null,null,null,870,15,13050,null,870,15,13050]
[null,null,null,null,null,null,null,null,871,15,13065,null,871,15,13065]
[null,null,null,null,null,null,null,null,872,15,13080,null,872,15,13080]
[null,null,null,null,null,null,null,null,873,15,13095,null,873,15,13095]
[null,null,null,null,null,null,null,null,874,15,13110,null,874,15,13110]
[null,null,null,null,null,null,null,null,875,15,13125,null,875,15,13125]
[null,null,null,null,null,null,null,null,876,15,13140,null,876,15,13140]
[null,null,null,null,null,null,null,null,877,15,13155,null,877,15,13155]
[null,null,null,null,null,null,null,null,878,15,13170,null,878,15,13170]
[null,null,null,null,null,null,null,null,879,15,13185,null,879,15,13185]
[null,null,null,null,null,null,null,null,880,15,13200,null,880,15,13200]
[null,null,null,null,null,null,null,null,881,15,13215,null,881,15,13215]
[null,null,null,null,null,null,null,null,882,15,13230,null,882,15,13230]
[null,null,null,null,null,null,null,null,883,15,13245,null,883,15,13245]
[null,null,null,null,null,null,null,null,884,15,13260,null,884,15,13260]
[null,null,null,null,null,null,null,null,885,15,13275,null,885,15,13275]
[null,null,null,null,null,null,null,null,886,15,13290,null,886,15,13290]
[null,null,null,null,null,null,null,null,887,15,13305,null,887,15,13305]
[null,null,null,null,null,null,null,null,888,15,{"$f":"+J833*I833","v":13320},null,888,15,13320]
[null,null,null,null,null,null,null,null,889,15,13335,null,889,15,13335]
[null,null,null,null,null,null,null,null,890,15,13350,null,890,15,13350]
[null,null,null,null,null,null,null,null,891,15,13365,null,891,15,13365]
[null,null,null,null,null,null,null,null,892,15,13380,null,892,15,13380]
[null,null,null,null,null,null,null,null,893,15,13395,null,893,15,13395]
[null,null,null,null,null,null,null,null,894,15,13410,null,894,15,13410]
[null,null,null,null,null,null,null,null,895,15,13425,null,895,15,13425]
[null,null,null,null,null,null,null,null,896,15,13440,null,896,15,13440]
[null,null,null,null,null,null,null,null,897,15,13455,null,897,15,13455]
[null,null,null,null,null,null,null,null,898,15,13470,null,898,15,13470]
[null,null,null,null,null,null,null,null,899,15,13485,null,899,15,13485]
[null,null,null,null,null,null,null,null,900,15,13500,null,900,15,13500]
[null,null,null,null,null,null,null,null,901,15,13515,null,901,15,13515]
[null,null,null,null,null,null,null,null,902,15,13530,null,902,15,{"$f":"+N847*M847","v":13530}]
[null,null,null,null,null,null,null,null,903,15,13545,null,903,15,13545]
[null,null,null,null,null,null,null,null,904,15,13560,null,904,15,13560]
[null,null,null,null,null,null,null,null,905,15,13575,null,905,15,13575]
[null,null,null,null,null,null,null,null,906,15,13590,null,906,15,13590]
[null,null,null,null,null,null,null,null,907,15,13605,null,907,15,13605]
[null,null,null,null,null,null,null,null,908,15,13620,null,908,15,13620]
[null,null,null,null,null,null,null,null,909,15,13635,null,909,15,13635]
[null,null,null,null,null,null,null,null,910,15,13650,null,910,15,13650]
[null,null,null,null,null,null,null,null,911,15,13665,null,911,15,13665]
[null,null,null,null,null,null,null,null,912,15,13680,null,912,15,13680]
[null,null,null,null,null,null,null,null,913,15,13695,null,913,15,13695]
[null,null,null,null,null,null,null,null,914,15,13710,null,914,15,13710]
[null,null,null,null,null,null,null,null,915,15,13725,null,915,15,13725]
[null,null,null,null,null,null,null,null,916,15,13740,null,916,15,13740]
[null,null,null,null,null,null,null,null,917,15,13755,null,917,15,13755]
[null,null,null,null,null,null,null,null,918,15,13770,null,918,15,13770]
[null,null,null,null,null,null,null,null,919,15,13785,null,919,15,13785]
[null,null,null,null,null,null,null,null,920,15,13800,null,920,15,13800]
[null,null,null,null,null,null,null,null,921,15,13815,null,921,15,13815]
[null,null,null,null,null,null,null,null,922,15,13830,null,922,15,13830]
[null,null,null,null,null,null,null,null,923,15,13845,null,923,15,13845]
[null,null,null,null,null,null,null,null,924,15,13860,null,924,15,13860]
[null,null,null,null,null,null,null,null,925,15,13875,null,925,15,13875]
[null,null,null,null,null,null,null,null,926,15,13890,null,926,15,13890]
[null,null,null,null,null,null,null,null,927,15,13905,null,927,15,13905]
[null,null,null,null,null,null,null,null,928,15,13920,null,928,15,13920]
[null,null,null,null,null,null,null,null,929,15,13935,null,929,15,13935]
[null,null,null,null,null,null,null,null,930,15,13950,null,930,15,13950]
[null,null,null,null,null,null,null,null,931,15,13965,null,931,15,13965]
[null,null,null,null,null,null,null,null,932,15,13980,null,932,15,13980]
[null,null,null,null,null,null,null,null,933,15,13995,null,933,15,13995]
[null,null,null,null,null,null,null,null,934,15,14010,null,934,15,14010]
[null,null,null,null,null,null,null,null,935,15,14025,null,935,15,14025]
[null,null,null,null,null,null,null,null,936,15,14040,null,936,15,14040]
[null,null,null,null,null,null,null,null,937,15,14055,null,937,15,14055]
[null,null,null,null,null,null,null,null,938,15,14070,null,938,15,14070]
[null,null,null,null,null,null,null,null,939,15,14085,null,939,15,14085]
[null,null,null,null,null,null,null,null,940,15,14100,null,940,15,14100]
[null,null,null,null,null,null,null,null,941,15,14115,null,941,15,14115]
[null,null,null,null,null,null,null,null,942,15,14130,null,942,15,14130]
[null,null,null,null,null,null,null,null,943,15,14145,null,943,15,14145]
[null,null,null,null,null,null,null,null,944,15,14160,null,944,15,14160]
[null,null,null,null,null,null,null,null,945,15,14175,null,945,15,14175]
[null,null,null,null,null,null,null,null,946,15,14190,null,946,15,14190]
[null,null,null,null,null,null,null,null,947,15,14205,null,947,15,14205]
[null,null,null,null,null,null,null,null,948,15,14220,null,948,15,14220]
[null,null,null,null,null,null,null,null,949,15,14235,null,949,15,14235]
[null,null,null,null,null,null,null,null,950,15,14250,null,950,15,14250]
[null,null,null,null,null,null,null,null,951,15,14265,null,951,15,14265]
[null,null,null,null,null,null,null,null,952,15,{"$f":"+J897*I897","v":14280},null,952,15,14280]
[null,null,null,null,null,null,null,null,953,15,14295,null,953,15,14295]
[null,null,null,null,null,null,null,null,954,15,14310,null,954,15,14310]
[null,null,null,null,null,null,null,null,955,15,14325,null,955,15,14325]
[null,null,null,null,null,null,null,null,956,15,14340,null,956,15,14340]
[null,null,null,null,null,null,null,null,957,15,14355,null,957,15,14355]
[null,null,null,null,null,null,null,null,958,15,14370,null,958,15,14370]
[null,null,null,null,null,null,null,null,959,15,14385,null,959,15,14385]
[null,null,null,null,null,null,null,null,960,15,14400,null,960,15,14400]
[null,null,null,null,null,null,null,null,961,15,14415,null,961,15,14415]
[null,null,null,null,null,null,null,null,962,15,14430,null,962,15,14430]
[null,null,null,null,null,null,null,null,963,15,14445,null,963,15,14445]
[null,null,null,null,null,null,null,null,964,15,14460,null,964,15,14460]
[null,null,null,null,null,null,null,null,965,15,14475,null,965,15,14475]
[null,null,null,null,null,null,null,null,966,15,14490,null,966,15,{"$f":"+N911*M911","v":14490}]
[null,null,null,null,null,null,null,null,967,15,14505,null,967,15,14505]
[null,null,null,null,null,null,null,null,968,15,14520,null,968,15,14520]
[null,null,null,null,null,null,null,null,969,15,14535,null,969,15,14535]
[null,null,null,null,null,null,null,null,970,15,14550,null,970,15,14550]
[null,null,null,null,null,null,null,null,971,15,14565,null,971,15,14565]
[null,null,null,null,null,null,null,null,972,15,14580,null,972,15,14580]
[null,null,null,null,null,null,null,null,973,15,14595,null,973,15,14595]
[null,null,null,null,null,null,null,null,974,15,14610,null,974,15,14610]
[null,null,null,null,null,null,null,null,975,15,14625,null,975,15,14625]
[null,null,null,null,null,null,null,null,976,15,14640,null,976,15,14640]
[null,null,null,null,null,null,null,null,977,15,14655,null,977,15,14655]
[null,null,null,null,null,null,null,null,978,15,14670,null,978,15,14670]
[null,null,null,null,null,null,null,null,979,15,14685,null,979,15,14685]
[null,null,null,null,null,null,null,null,980,15,14700,null,980,15,14700]
[null,null,null,null,null,null,null,null,981,15,14715,null,981,15,14715]
[null,null,null,null,null,null,null,null,982,15,14730,null,982,15,14730]
[null,null,null,null,null,null,null,null,983,15,14745,null,983,15,14745]
[null,null,null,null,null,null,null,null,984,15,14760,null,984,15,14760]
[null,null,null,null,null,null,null,null,985,15,14775,null,985,15,14775]
[null,null,null,null,null,null,null,null,986,15,14790,null,986,15,14790]
[null,null,null,null,null,null,null,null,987,15,14805,null,987,15,14805]
[null,null,null,null,null,null,null,null,988,15,14820,null,988,15,14820]
[null,null,null,null,null,null,null,null,989,15,14835,null,989,15,14835]
[null,null,null,null,null,null,null,null,990,15,14850,null,990,15,14850]
[null,null,null,null,null,null,null,null,991,15,14865,null,991,15,14865]
[null,null,null,null,null,null,null,null,992,15,14880,null,992,15,14880]
[null,null,null,null,null,null,null,null,993,15,14895,null,993,15,14895]
[null,null,null,null,null,null,null,null,994,15,14910,null,994,15,14910]
[null,null,null,null,null,null,null,null,995,15,14925,null,995,15,14925]
[null,null,null,null,null,null,null,null,996,15,14940,null,996,15,14940]
[null,null,null,null,null,null,null,null,997,15,14955,null,997,15,14955]
[null,null,null,null,null,null,null,null,998,15,14970,null,998,15,14970]
[null,null,null,null,null,null,null,null,999,15,14985,null,999,15,14985]
[null,null,null,null,null,null,null,null,1000,15,15000,null,1000,15,15000]
[null,null,null,null,null,null,null,null,{"$f":"+I945+100","v":1100},15,{"$f":"+K945","v":15000},null,1001,15,15015]
[null,null,null,null,null,null,null,null,{"$f":"+I946+100","v":1200},15,{"$f":"+K946","v":15000},null,1002,15,15030]
[null,null,null,null,null,null,null,null,{"$f":"+I947+100","v":1300},15,15000,null,1003,15,15045]
[null,null,null,null,null,null,null,null,1400,15,15000,null,1004,15,15060]
[null,null,null,null,null,null,null,null,1500,0.2,{"$f":"+K949+(K949*J950)","v":18000},null,1005,15,15075]
[null,null,null,null,null,null,null,null,1600,null,18000,null,1006,15,15090]
[null,null,null,null,null,null,null,null,1700,null,18000,null,1007,15,15105]
[null,null,null,null,null,null,null,null,1800,null,18000,null,1008,15,15120]
[null,null,null,null,null,null,null,null,1900,null,18000,null,1009,15,15135]
[null,null,null,null,null,null,null,null,2000,0.2,{"$f":"+K954+(K954*J955)","v":21600},null,1010,15,15150]
[null,null,null,null,null,null,null,null,2100,null,{"$f":"+K955","v":21600},null,1011,15,15165]
[null,null,null,null,null,null,null,null,2200,null,{"$f":"+K956","v":21600},null,1012,15,15180]
[null,null,null,null,null,null,null,null,2300,null,{"$f":"+K957","v":21600},null,1013,15,15195]
[null,null,null,null,null,null,null,null,2400,null,{"$f":"+K958","v":21600},null,1014,15,15210]
[null,null,null,null,null,null,null,null,2500,0.2,{"$f":"+K959+(K959*J960)","v":25920},null,1015,15,15225]
[null,null,null,null,null,null,null,null,2600,null,{"$f":"+K960","v":25920},null,1016,15,15240]
[null,null,null,null,null,null,null,null,2700,null,{"$f":"+K961","v":25920},null,1017,15,15255]
[null,null,null,null,null,null,null,null,2800,null,{"$f":"+K962","v":25920},null,1018,15,15270]
[null,null,null,null,null,null,null,null,2900,null,{"$f":"+K963","v":25920},null,1019,15,15285]
[null,null,null,null,null,null,null,null,3000,0.2,{"$f":"+K964+(K964*J965)","v":31104},null,1020,15,15300]
[null,null,null,null,null,null,null,null,3100,null,{"$f":"+K965","v":31104},null,1021,15,15315]
[null,null,null,null,null,null,null,null,{"$f":"+I966+100","v":3200},null,{"$f":"+K966","v":31104},null,1022,15,15330]
[null,null,null,null,null,null,null,null,{"$f":"+I967+100","v":3300},null,31104,null,1023,15,15345]
[null,null,null,null,null,null,null,null,{"$f":"+I968+100","v":3400},null,31104,null,1024,15,15360]
[null,null,null,null,null,null,null,null,3500,null,31104,null,1025,15,15375]
[null,null,null,null,null,null,null,null,3600,null,31104,null,1026,15,15390]
[null,null,null,null,null,null,null,null,3700,null,31104,null,1027,15,15405]
[null,null,null,null,null,null,null,null,3800,null,31104,null,1028,15,15420]
[null,null,null,null,null,null,null,null,3900,null,31104,null,1029,15,15435]
[null,null,null,null,null,null,null,null,4000,0.2,{"$f":"+K974+(K974*J975)","v":37324.800000000003},null,1030,15,{"$f":"+N975*M975","v":15450}]
[null,null,null,null,null,null,null,null,4100,null,{"$f":"+K975","v":37324.800000000003},null,1031,15,15465]
[null,null,null,null,null,null,null,null,4200,null,{"$f":"+K976","v":37324.800000000003},null,1032,15,15480]
[null,null,null,null,null,null,null,null,4300,null,37324.800000000003,null,1033,15,15495]
[null,null,null,null,null,null,null,null,4400,null,37324.800000000003,null,1034,15,15510]
[null,null,null,null,null,null,null,null,4500,null,37324.800000000003,null,1035,15,15525]
[null,null,null,null,null,null,null,null,{"$f":"+I980+100","v":4600},null,37324.800000000003,null,1036,15,15540]
[null,null,null,null,null,null,null,null,{"$f":"+I981+100","v":4700},null,37324.800000000003,null,1037,15,15555]
[null,null,null,null,null,null,null,null,{"$f":"+I982+100","v":4800},null,37324.800000000003,null,1038,15,15570]
[null,null,null,null,null,null,null,null,4900,null,37324.800000000003,null,1039,15,15585]
[null,null,null,null,null,null,null,null,5000,0.2,{"$f":"+K984+(K984*J985)","v":44789.760000000002},null,1040,15,15600]
[null,null,null,null,null,null,null,null,5100,null,{"$f":"+K985","v":44789.760000000002},null,1041,15,15615]
[null,null,null,null,null,null,null,null,5200,null,{"$f":"+K986","v":44789.760000000002},null,1042,15,15630]
[null,null,null,null,null,null,null,null,5300,null,{"$f":"+K987","v":44789.760000000002},null,1043,15,15645]
[null,null,null,null,null,null,null,null,5400,null,{"$f":"+K988","v":44789.760000000002},null,1044,15,15660]
[null,null,null,null,null,null,null,null,5500,null,44789.760000000002,null,1045,15,15675]
[null,null,null,null,null,null,null,null,5600,null,44789.760000000002,null,1046,15,15690]
[null,null,null,null,null,null,null,null,5700,null,44789.760000000002,null,1047,15,15705]
[null,null,null,null,null,null,null,null,5800,null,44789.760000000002,null,1048,15,15720]
[null,null,null,null,null,null,null,null,5900,null,44789.760000000002,null,1049,15,15735]
[null,null,null,null,null,null,null,null,6000,0.2,{"$f":"+K994+(J995*K994)","v":53747.712},null,1050,15,15750]
[null,null,null,null,null,null,null,null,6100,null,53747.712,null,1051,15,15765]
[null,null,null,null,null,null,null,null,6200,null,{"$f":"+K996","v":53747.712},null,1052,15,15780]
[null,null,null,null,null,null,null,null,6300,null,{"$f":"+K997","v":53747.712},null,1053,15,15795]
[null,null,null,null,null,null,null,null,6400,null,{"$f":"+K998","v":53747.712},null,1054,15,15810]
[null,null,null,null,null,null,null,null,6500,null,53747.712,null,1055,15,15825]
[null,null,null,null,null,null,null,null,6600,null,53747.712,null,1056,15,15840]
[null,null,null,null,null,null,null,null,6700,null,53747.712,null,1057,15,15855]
[null,null,null,null,null,null,null,null,6800,null,53747.712,null,1058,15,15870]
[null,null,null,null,null,null,null,null,6900,null,53747.712,null,1059,15,15885]
[null,null,null,null,null,null,null,null,7000,null,53747.712,null,1060,15,15900]
[null,null,null,null,null,null,null,null,7100,null,53747.712,null,1061,15,15915]
[null,null,null,null,null,null,null,null,7200,0.2,{"$f":"+K1006+(K1006*J1007)","v":64497.254399999998},null,1062,15,15930]
[null,null,null,null,null,null,null,null,7300,null,{"$f":"+K1007","v":64497.254399999998},null,1063,15,15945]
[null,null,null,null,null,null,null,null,7400,null,{"$f":"+K1008","v":64497.254399999998},null,1064,15,15960]
[null,null,null,null,null,null,null,null,7500,null,64497.254399999998,null,1065,15,15975]
[null,null,null,null,null,null,null,null,7600,null,64497.254399999998,null,1066,15,15990]
[null,null,null,null,null,null,null,null,7700,null,64497.254399999998,null,1067,15,16005]
[null,null,null,null,null,null,null,null,7800,null,64497.254399999998,null,1068,15,16020]
[null,null,null,null,null,null,null,null,7900,null,64497.254399999998,null,1069,15,16035]
[null,null,null,null,null,null,null,null,8000,null,64497.254399999998,null,1070,15,16050]
[null,null,null,null,null,null,null,null,8100,null,64497.254399999998,null,1071,15,16065]
[null,null,null,null,null,null,null,null,8200,0.1,{"$f":"+K1016+(K1016*J1017)","v":70946.97984},null,1072,15,16080]
[null,null,null,null,null,null,null,null,8300,null,{"$f":"+K1017","v":70946.97984},null,1073,15,16095]
[null,null,null,null,null,null,null,null,8400,null,{"$f":"+K1018","v":70946.97984},null,1074,15,16110]
[null,null,null,null,null,null,null,null,8500,null,70946.97984,null,1075,15,16125]
[null,null,null,null,null,null,null,null,8600,null,70946.97984,null,1076,15,16140]
[null,null,null,null,null,null,null,null,8700,null,70946.97984,null,1077,15,16155]
[null,null,null,null,null,null,null,null,8800,null,70946.97984,null,1078,15,16170]
[null,null,null,null,null,null,null,null,8900,null,70946.97984,null,1079,15,16185]
[null,null,null,null,null,null,null,null,9000,null,70946.97984,null,1080,15,16200]
[null,null,null,null,null,null,null,null,9100,null,70946.97984,null,1081,15,16215]
[null,null,null,null,null,null,null,null,9200,{"$f":"+J1017","v":0.1},{"$f":"+K1026+(K1026*J1027)","v":78041.677823999999},null,1082,15,16230]
[null,null,null,null,null,null,null,null,9300,null,{"$f":"+K1027","v":78041.677823999999},null,1083,15,16245]
[null,null,null,null,null,null,null,null,9400,null,{"$f":"+K1028","v":78041.677823999999},null,1084,15,16260]
[null,null,null,null,null,null,null,null,9500,null,78041.677823999999,null,1085,15,16275]
[null,null,null,null,null,null,null,null,9600,null,78041.677823999999,null,1086,15,16290]
[null,null,null,null,null,null,null,null,9700,null,78041.677823999999,null,1087,15,16305]
[null,null,null,null,null,null,null,null,9800,null,78041.677823999999,null,1088,15,16320]
[null,null,null,null,null,null,null,null,9900,null,78041.677823999999,null,1089,15,16335]
[null,null,null,null,null,null,null,null,10000,null,78041.677823999999,null,1090,15,16350]
[null,null,null,null,null,null,null,null,10100,null,78041.677823999999,null,1091,15,16365]
[null,null,null,null,null,null,null,null,10200,{"$f":"+J1027","v":0.1},{"$f":"+K1036+(K1036*J1037)","v":85845.845606399991},null,1092,15,16380]
[null,null,null,null,null,null,null,null,10300,null,{"$f":"+K1037","v":85845.845606399991},null,1093,15,16395]
[null,null,null,null,null,null,null,null,10400,null,{"$f":"+K1038","v":85845.845606399991},null,1094,15,{"$f":"+N1039*M1039","v":16410}]
[null,null,null,null,null,null,null,null,10500,null,85845.845606399991,null,1095,15,16425]
[null,null,null,null,null,null,null,null,10600,null,85845.845606399991,null,1096,15,16440]
[null,null,null,null,null,null,null,null,10700,null,85845.845606399991,null,1097,15,16455]
[null,null,null,null,null,null,null,null,10800,null,85845.845606399991,null,1098,15,16470]
[null,null,null,null,null,null,null,null,10900,null,85845.845606399991,null,1099,15,16485]
[null,null,null,null,null,null,null,null,11000,null,85845.845606399991,null,1100,15,16500]
[null,null,null,null,null,null,null,null,11100,null,85845.845606399991,null,1101,15,16515]
[null,null,null,null,null,null,null,null,{"$f":"+I1046+100","v":11200},{"$f":"+J1037","v":0.1},{"$f":"+K1046+(K1046*J1047)","v":94430.430167039987},null,1102,15,16530]
[null,null,null,null,null,null,null,null,11300,null,{"$f":"+K1047","v":94430.430167039987},null,1103,15,16545]
[null,null,null,null,null,null,null,null,11400,null,{"$f":"+K1048","v":94430.430167039987},null,1104,15,16560]
[null,null,null,null,null,null,null,null,11500,null,94430.430167039987,null,1105,15,16575]
[null,null,null,null,null,null,null,null,11600,null,94430.430167039987,null,1106,15,16590]
[null,null,null,null,null,null,null,null,11700,null,94430.430167039987,null,1107,15,16605]
[null,null,null,null,null,null,null,null,11800,null,94430.430167039987,null,1108,15,16620]
[null,null,null,null,null,null,null,null,11900,null,94430.430167039987,null,1109,15,16635]
[null,null,null,null,null,null,null,null,12000,null,94430.430167039987,null,1110,15,16650]
[null,null,null,null,null,null,null,null,12100,null,94430.430167039987,null,1111,15,16665]
[null,null,null,null,null,null,null,null,12200,{"$f":"+J1047","v":0.1},{"$f":"+K1056+(K1056*J1057)","v":103873.47318374399},null,1112,15,16680]
[null,null,null,null,null,null,null,null,12300,null,{"$f":"+K1057","v":103873.47318374399},null,1113,15,16695]
[null,null,null,null,null,null,null,null,12400,null,{"$f":"+K1058","v":103873.47318374399},null,1114,15,16710]
[null,null,null,null,null,null,null,null,12500,null,103873.47318374399,null,1115,15,16725]
[null,null,null,null,null,null,null,null,12600,null,103873.47318374399,null,1116,15,16740]
[null,null,null,null,null,null,null,null,12700,null,103873.47318374399,null,1117,15,16755]
[null,null,null,null,null,null,null,null,12800,null,103873.47318374399,null,1118,15,16770]
[null,null,null,null,null,null,null,null,12900,null,103873.47318374399,null,1119,15,16785]
[null,null,null,null,null,null,null,null,13000,null,103873.47318374399,null,1120,15,16800]
[null,null,null,null,null,null,null,null,13100,null,103873.47318374399,null,1121,15,16815]
[null,null,null,null,null,null,null,null,13200,{"$f":"+J1057","v":0.1},{"$f":"+K1066+(K1066*J1067)","v":114260.82050211838},null,1122,15,16830]
[null,null,null,null,null,null,null,null,13300,null,{"$f":"+K1067","v":114260.82050211838},null,1123,15,16845]
[null,null,null,null,null,null,null,null,13400,null,{"$f":"+K1068","v":114260.82050211838},null,1124,15,16860]
[null,null,null,null,null,null,null,null,13500,null,114260.82050211838,null,1125,15,16875]
[null,null,null,null,null,null,null,null,13600,null,114260.82050211838,null,1126,15,16890]
[null,null,null,null,null,null,null,null,13700,null,114260.82050211838,null,1127,15,16905]
[null,null,null,null,null,null,null,null,13800,null,114260.82050211838,null,1128,15,16920]
[null,null,null,null,null,null,null,null,13900,null,114260.82050211838,null,1129,15,16935]
[null,null,null,null,null,null,null,null,14000,null,114260.82050211838,null,1130,15,16950]
[null,null,null,null,null,null,null,null,14100,null,114260.82050211838,null,1131,15,16965]
[null,null,null,null,null,null,null,null,14200,{"$f":"+J1067","v":0.1},{"$f":"+K1076+(K1076*J1077)","v":125686.90255233023},null,1132,15,16980]
[null,null,null,null,null,null,null,null,14300,null,{"$f":"+K1077","v":125686.90255233023},null,1133,15,16995]
[null,null,null,null,null,null,null,null,14400,null,{"$f":"+K1078","v":125686.90255233023},null,1134,15,17010]
[null,null,null,null,null,null,null,null,14500,null,125686.90255233023,null,1135,15,17025]
[null,null,null,null,null,null,null,null,14600,null,125686.90255233023,null,1136,15,17040]
[null,null,null,null,null,null,null,null,14700,null,125686.90255233023,null,1137,15,17055]
[null,null,null,null,null,null,null,null,14800,null,125686.90255233023,null,1138,15,17070]
[null,null,null,null,null,null,null,null,14900,null,125686.90255233023,null,1139,15,17085]
[null,null,null,null,null,null,null,null,15000,null,125686.90255233023,null,1140,15,17100]
[null,null,null,null,null,null,null,null,15100,null,125686.90255233023,null,1141,15,17115]
[null,null,null,null,null,null,null,null,15200,{"$f":"+J1077","v":0.1},{"$f":"+K1086+(K1086*J1087)","v":138255.59280756325},null,1142,15,17130]
[null,null,null,null,null,null,null,null,15300,null,{"$f":"+K1087","v":138255.59280756325},null,1143,15,17145]
[null,null,null,null,null,null,null,null,15400,null,{"$f":"+K1088","v":138255.59280756325},null,1144,15,17160]
[null,null,null,null,null,null,null,null,15500,null,138255.59280756325,null,1145,15,17175]
[null,null,null,null,null,null,null,null,15600,null,138255.59280756325,null,1146,15,17190]
[null,null,null,null,null,null,null,null,15700,null,138255.59280756325,null,1147,15,17205]
[null,null,null,null,null,null,null,null,15800,null,138255.59280756325,null,1148,15,17220]
[null,null,null,null,null,null,null,null,15900,null,138255.59280756325,null,1149,15,17235]
[null,null,null,null,null,null,null,null,16000,null,138255.59280756325,null,1150,15,17250]
[null,null,null,null,null,null,null,null,16100,null,138255.59280756325,null,1151,15,17265]
[null,null,null,null,null,null,null,null,16200,{"$f":"+J1087","v":0.1},{"$f":"+K1096+(K1096*J1097)","v":152081.15208831959},null,1152,15,17280]
[null,null,null,null,null,null,null,null,16300,null,{"$f":"+K1097","v":152081.15208831959},null,1153,15,17295]
[null,null,null,null,null,null,null,null,16400,null,{"$f":"+K1098","v":152081.15208831959},null,1154,15,17310]
[null,null,null,null,null,null,null,null,16500,null,152081.15208831959,null,1155,15,17325]
[null,null,null,null,null,null,null,null,16600,null,152081.15208831959,null,1156,15,17340]
[null,null,null,null,null,null,null,null,16700,null,152081.15208831959,null,1157,15,17355]
[null,null,null,null,null,null,null,null,16800,null,152081.15208831959,null,1158,15,{"$f":"+N1103*M1103","v":17370}]
[null,null,null,null,null,null,null,null,16900,null,152081.15208831959,null,1159,15,17385]
[null,null,null,null,null,null,null,null,17000,null,152081.15208831959,null,1160,15,17400]
[null,null,null,null,null,null,null,null,17100,null,152081.15208831959,null,1161,15,17415]
[null,null,null,null,null,null,null,null,17200,{"$f":"+J1097","v":0.1},{"$f":"+K1106+(K1106*J1107)","v":167289.26729715156},null,1162,15,17430]
[null,null,null,null,null,null,null,null,17300,null,{"$f":"+K1107","v":167289.26729715156},null,1163,15,17445]
[null,null,null,null,null,null,null,null,17400,null,{"$f":"+K1108","v":167289.26729715156},null,1164,15,17460]
[null,null,null,null,null,null,null,null,17500,null,167289.26729715156,null,1165,15,17475]
[null,null,null,null,null,null,null,null,{"$f":"+I1110+100","v":17600},null,167289.26729715156,null,1166,15,17490]
[null,null,null,null,null,null,null,null,17700,null,167289.26729715156,null,1167,15,17505]
[null,null,null,null,null,null,null,null,17800,null,167289.26729715156,null,1168,15,17520]
[null,null,null,null,null,null,null,null,17900,null,167289.26729715156,null,1169,15,17535]
[null,null,null,null,null,null,null,null,18000,null,167289.26729715156,null,1170,15,17550]
[null,null,null,null,null,null,null,null,18100,null,167289.26729715156,null,1171,15,17565]
[null,null,null,null,null,null,null,null,18200,{"$f":"+J1107","v":0.1},{"$f":"+K1116+(K1116*J1117)","v":184018.19402686672},null,1172,15,17580]
[null,null,null,null,null,null,null,null,18300,null,{"$f":"+K1117","v":184018.19402686672},null,1173,15,17595]
[null,null,null,null,null,null,null,null,18400,null,{"$f":"+K1118","v":184018.19402686672},null,1174,15,17610]
[null,null,null,null,null,null,null,null,18500,null,184018.19402686672,null,1175,15,17625]
[null,null,null,null,null,null,null,null,18600,null,184018.19402686672,null,1176,15,17640]
[null,null,null,null,null,null,null,null,18700,null,184018.19402686672,null,1177,15,17655]
[null,null,null,null,null,null,null,null,18800,null,184018.19402686672,null,1178,15,17670]
[null,null,null,null,null,null,null,null,18900,null,184018.19402686672,null,1179,15,17685]
[null,null,null,null,null,null,null,null,19000,null,184018.19402686672,null,1180,15,17700]
[null,null,null,null,null,null,null,null,19100,null,184018.19402686672,null,1181,15,17715]
[null,null,null,null,null,null,null,null,19200,{"$f":"+J1117","v":0.1},{"$f":"+K1126+(K1126*J1127)","v":202420.01342955339},null,1182,15,17730]
[null,null,null,null,null,null,null,null,19300,null,{"$f":"+K1127","v":202420.01342955339},null,1183,15,17745]
[null,null,null,null,null,null,null,null,19400,null,{"$f":"+K1128","v":202420.01342955339},null,1184,15,17760]
[null,null,null,null,null,null,null,null,19500,null,202420.01342955339,null,1185,15,17775]
[null,null,null,null,null,null,null,null,19600,null,202420.01342955339,null,1186,15,17790]
[null,null,null,null,null,null,null,null,19700,null,202420.01342955339,null,1187,15,17805]
[null,null,null,null,null,null,null,null,19800,null,202420.01342955339,null,1188,15,17820]
[null,null,null,null,null,null,null,null,19900,null,202420.01342955339,null,1189,15,17835]
[null,null,null,null,null,null,null,null,20000,null,202420.01342955339,null,1190,15,17850]
[null,null,null,null,null,null,null,null,20100,null,202420.01342955339,null,1191,15,17865]
[null,null,null,null,null,null,null,null,20200,0.05,{"$f":"+K1136+(K1136*J1137)","v":212541.01410103106},null,1192,15,17880]
[null,null,null,null,null,null,null,null,20300,null,{"$f":"+K1137","v":212541.01410103106},null,1193,15,17895]
[null,null,null,null,null,null,null,null,20400,null,{"$f":"+K1138","v":212541.01410103106},null,1194,15,17910]
[null,null,null,null,null,null,null,null,20500,null,212541.01410103106,null,1195,15,17925]
[null,null,null,null,null,null,null,null,20600,null,212541.01410103106,null,1196,15,17940]
[null,null,null,null,null,null,null,null,20700,null,212541.01410103106,null,1197,15,17955]
[null,null,null,null,null,null,null,null,20800,null,212541.01410103106,null,1198,15,17970]
[null,null,null,null,null,null,null,null,20900,null,212541.01410103106,null,1199,15,17985]
[null,null,null,null,null,null,null,null,21000,null,212541.01410103106,null,1200,15,18000]
[null,null,null,null,null,null,null,null,21100,null,212541.01410103106,null,1201,15,18015]
[null,null,null,null,null,null,null,null,21200,{"$f":"+J1137","v":0.05},{"$f":"+K1146+(K1146*J1147)","v":223168.06480608261},null,1202,15,18030]
[null,null,null,null,null,null,null,null,21300,null,{"$f":"+K1147","v":223168.06480608261},null,1203,15,18045]
[null,null,null,null,null,null,null,null,21400,null,{"$f":"+K1148","v":223168.06480608261},null,1204,15,18060]
[null,null,null,null,null,null,null,null,21500,null,223168.06480608261,null,1205,15,18075]
[null,null,null,null,null,null,null,null,21600,null,223168.06480608261,null,1206,15,18090]
[null,null,null,null,null,null,null,null,21700,null,223168.06480608261,null,1207,15,18105]
[null,null,null,null,null,null,null,null,21800,null,223168.06480608261,null,1208,15,18120]
[null,null,null,null,null,null,null,null,21900,null,223168.06480608261,null,1209,15,18135]
[null,null,null,null,null,null,null,null,22000,null,223168.06480608261,null,1210,15,18150]
[null,null,null,null,null,null,null,null,22100,null,223168.06480608261,null,1211,15,18165]
[null,null,null,null,null,null,null,null,22200,{"$f":"+J1147","v":0.05},{"$f":"+K1156+(K1156*J1157)","v":234326.46804638673},null,1212,15,18180]
[null,null,null,null,null,null,null,null,22300,null,{"$f":"+K1157","v":234326.46804638673},null,1213,15,18195]
[null,null,null,null,null,null,null,null,22400,null,{"$f":"+K1158","v":234326.46804638673},null,1214,15,18210]
[null,null,null,null,null,null,null,null,22500,null,234326.46804638673,null,1215,15,18225]
[null,null,null,null,null,null,null,null,22600,null,234326.46804638673,null,1216,15,18240]
[null,null,null,null,null,null,null,null,22700,null,234326.46804638673,null,1217,15,18255]
[null,null,null,null,null,null,null,null,22800,null,234326.46804638673,null,1218,15,18270]
[null,null,null,null,null,null,null,null,22900,null,234326.46804638673,null,1219,15,18285]
[null,null,null,null,null,null,null,null,23000,null,234326.46804638673,null,1220,15,18300]
[null,null,null,null,null,null,null,null,23100,null,234326.46804638673,null,1221,15,18315]
[null,null,null,null,null,null,null,null,23200,{"$f":"+J1157","v":0.05},{"$f":"+K1166+(K1166*J1167)","v":246042.79144870606},null,1222,15,{"$f":"+N1167*M1167","v":18330}]
[null,null,null,null,null,null,null,null,23300,null,{"$f":"+K1167","v":246042.79144870606},null,1223,15,18345]
[null,null,null,null,null,null,null,null,23400,null,{"$f":"+K1168","v":246042.79144870606},null,1224,15,18360]
[null,null,null,null,null,null,null,null,23500,null,246042.79144870606,null,1225,15,18375]
[null,null,null,null,null,null,null,null,23600,null,246042.79144870606,null,1226,15,18390]
[null,null,null,null,null,null,null,null,23700,null,246042.79144870606,null,1227,15,18405]
[null,null,null,null,null,null,null,null,23800,null,246042.79144870606,null,1228,15,18420]
[null,null,null,null,null,null,null,null,23900,null,246042.79144870606,null,1229,15,18435]
[null,null,null,null,null,null,null,null,{"$f":"+I1174+100","v":24000},null,246042.79144870606,null,1230,15,18450]
[null,null,null,null,null,null,null,null,24100,null,246042.79144870606,null,1231,15,18465]
[null,null,null,null,null,null,null,null,24200,{"$f":"+J1167","v":0.05},{"$f":"+K1176+(K1176*J1177)","v":258344.93102114135},null,1232,15,18480]
[null,null,null,null,null,null,null,null,24300,null,{"$f":"+K1177","v":258344.93102114135},null,1233,15,18495]
[null,null,null,null,null,null,null,null,24400,null,{"$f":"+K1178","v":258344.93102114135},null,1234,15,18510]
[null,null,null,null,null,null,null,null,24500,null,258344.93102114135,null,1235,15,18525]
[null,null,null,null,null,null,null,null,24600,null,258344.93102114135,null,1236,15,18540]
[null,null,null,null,null,null,null,null,24700,null,258344.93102114135,null,1237,15,18555]
[null,null,null,null,null,null,null,null,24800,null,258344.93102114135,null,1238,15,18570]
[null,null,null,null,null,null,null,null,24900,null,258344.93102114135,null,1239,15,18585]
[null,null,null,null,null,null,null,null,25000,null,258344.93102114135,null,1240,15,18600]
[null,null,null,null,null,null,null,null,25100,null,258344.93102114135,null,1241,15,18615]
[null,null,null,null,null,null,null,null,25200,{"$f":"+J1177","v":0.05},{"$f":"+K1186+(K1186*J1187)","v":271262.17757219844},null,1242,15,18630]
[null,null,null,null,null,null,null,null,25300,null,{"$f":"+K1187","v":271262.17757219844},null,1243,15,18645]
[null,null,null,null,null,null,null,null,25400,null,{"$f":"+K1188","v":271262.17757219844},null,1244,15,18660]
[null,null,null,null,null,null,null,null,25500,null,271262.17757219844,null,1245,15,18675]
[null,null,null,null,null,null,null,null,25600,null,271262.17757219844,null,1246,15,18690]
[null,null,null,null,null,null,null,null,25700,null,271262.17757219844,null,1247,15,18705]
[null,null,null,null,null,null,null,null,25800,null,271262.17757219844,null,1248,15,18720]
[null,null,null,null,null,null,null,null,25900,null,271262.17757219844,null,1249,15,18735]
[null,null,null,null,null,null,null,null,26000,null,271262.17757219844,null,1250,15,18750]
[null,null,null,null,null,null,null,null,26100,null,271262.17757219844,null,1251,15,18765]
[null,null,null,null,null,null,null,null,26200,{"$f":"+J1187","v":0.05},{"$f":"+K1196+(K1196*J1197)","v":284825.28645080834},null,1252,15,18780]
[null,null,null,null,null,null,null,null,26300,null,{"$f":"+K1197","v":284825.28645080834},null,1253,15,18795]
[null,null,null,null,null,null,null,null,26400,null,{"$f":"+K1198","v":284825.28645080834},null,1254,15,18810]
[null,null,null,null,null,null,null,null,26500,null,284825.28645080834,null,1255,15,18825]
[null,null,null,null,null,null,null,null,26600,null,284825.28645080834,null,1256,15,18840]
[null,null,null,null,null,null,null,null,26700,null,284825.28645080834,null,1257,15,18855]
[null,null,null,null,null,null,null,null,26800,null,284825.28645080834,null,1258,15,18870]
[null,null,null,null,null,null,null,null,26900,null,284825.28645080834,null,1259,15,18885]
[null,null,null,null,null,null,null,null,27000,null,284825.28645080834,null,1260,15,18900]
[null,null,null,null,null,null,null,null,27100,null,284825.28645080834,null,1261,15,18915]
[null,null,null,null,null,null,null,null,27200,{"$f":"+J1197","v":0.05},{"$f":"+K1206+(K1206*J1207)","v":299066.55077334878},null,1262,15,18930]
[null,null,null,null,null,null,null,null,27300,null,{"$f":"+K1207","v":299066.55077334878},null,1263,15,18945]
[null,null,null,null,null,null,null,null,27400,null,{"$f":"+K1208","v":299066.55077334878},null,1264,15,18960]
[null,null,null,null,null,null,null,null,27500,null,299066.55077334878,null,1265,15,18975]
[null,null,null,null,null,null,null,null,27600,null,299066.55077334878,null,1266,15,18990]
[null,null,null,null,null,null,null,null,27700,null,299066.55077334878,null,1267,15,19005]
[null,null,null,null,null,null,null,null,27800,null,299066.55077334878,null,1268,15,19020]
[null,null,null,null,null,null,null,null,27900,null,299066.55077334878,null,1269,15,19035]
[null,null,null,null,null,null,null,null,28000,null,299066.55077334878,null,1270,15,19050]
[null,null,null,null,null,null,null,null,28100,null,299066.55077334878,null,1271,15,19065]
[null,null,null,null,null,null,null,null,28200,{"$f":"+J1207","v":0.05},{"$f":"+K1216+(K1216*J1217)","v":314019.8783120162},null,1272,15,19080]
[null,null,null,null,null,null,null,null,28300,null,{"$f":"+K1217","v":314019.8783120162},null,1273,15,19095]
[null,null,null,null,null,null,null,null,28400,null,{"$f":"+K1218","v":314019.8783120162},null,1274,15,19110]
[null,null,null,null,null,null,null,null,28500,null,314019.8783120162,null,1275,15,19125]
[null,null,null,null,null,null,null,null,28600,null,314019.8783120162,null,1276,15,19140]
[null,null,null,null,null,null,null,null,28700,null,314019.8783120162,null,1277,15,19155]
[null,null,null,null,null,null,null,null,28800,null,314019.8783120162,null,1278,15,19170]
[null,null,null,null,null,null,null,null,28900,null,314019.8783120162,null,1279,15,19185]
[null,null,null,null,null,null,null,null,29000,null,314019.8783120162,null,1280,15,19200]
[null,null,null,null,null,null,null,null,29100,null,314019.8783120162,null,1281,15,19215]
[null,null,null,null,null,null,null,null,29200,{"$f":"+J1217","v":0.05},{"$f":"+K1226+(K1226*J1227)","v":329720.87222761702},null,1282,15,19230]
[null,null,null,null,null,null,null,null,29300,null,{"$f":"+K1227","v":329720.87222761702},null,1283,15,19245]
[null,null,null,null,null,null,null,null,29400,null,{"$f":"+K1228","v":329720.87222761702},null,1284,15,19260]
[null,null,null,null,null,null,null,null,29500,null,329720.87222761702,null,1285,15,19275]
[null,null,null,null,null,null,null,null,29600,null,329720.87222761702,null,1286,15,{"$f":"+N1231*M1231","v":19290}]
[null,null,null,null,null,null,null,null,29700,null,329720.87222761702,null,1287,15,19305]
[null,null,null,null,null,null,null,null,29800,null,329720.87222761702,null,1288,15,19320]
[null,null,null,null,null,null,null,null,29900,null,329720.87222761702,null,1289,15,19335]
[null,null,null,null,null,null,null,null,30000,null,329720.87222761702,null,1290,15,19350]
[null,null,null,null,null,null,null,null,30100,null,329720.87222761702,null,1291,15,19365]
[null,null,null,null,null,null,null,null,30200,{"$f":"+J1227","v":0.05},{"$f":"+K1236+(K1236*J1237)","v":346206.91583899787},null,1292,15,19380]
[null,null,null,null,null,null,null,null,30300,null,{"$f":"+K1237","v":346206.91583899787},null,1293,15,19395]
[null,null,null,null,null,null,null,null,{"$f":"+I1238+100","v":30400},null,{"$f":"+K1238","v":346206.91583899787},null,1294,15,19410]
[null,null,null,null,null,null,null,null,30500,null,346206.91583899787,null,1295,15,19425]
[null,null,null,null,null,null,null,null,30600,null,346206.91583899787,null,1296,15,19440]
[null,null,null,null,null,null,null,null,30700,null,346206.91583899787,null,1297,15,19455]
[null,null,null,null,null,null,null,null,30800,null,346206.91583899787,null,1298,15,19470]
[null,null,null,null,null,null,null,null,30900,null,346206.91583899787,null,1299,15,19485]
[null,null,null,null,null,null,null,null,31000,null,346206.91583899787,null,1300,15,19500]
[null,null,null,null,null,null,null,null,31100,null,346206.91583899787,null,1301,15,19515]
[null,null,null,null,null,null,null,null,31200,{"$f":"+J1237","v":0.05},{"$f":"+K1246+(K1246*J1247)","v":363517.26163094776},null,1302,15,19530]
[null,null,null,null,null,null,null,null,31300,null,{"$f":"+K1247","v":363517.26163094776},null,1303,15,19545]
[null,null,null,null,null,null,null,null,31400,null,{"$f":"+K1248","v":363517.26163094776},null,1304,15,19560]
[null,null,null,null,null,null,null,null,31500,null,363517.26163094776,null,1305,15,19575]
[null,null,null,null,null,null,null,null,31600,null,363517.26163094776,null,1306,15,19590]
[null,null,null,null,null,null,null,null,31700,null,363517.26163094776,null,1307,15,19605]
[null,null,null,null,null,null,null,null,31800,null,363517.26163094776,null,1308,15,19620]
[null,null,null,null,null,null,null,null,31900,null,363517.26163094776,null,1309,15,19635]
[null,null,null,null,null,null,null,null,32000,null,363517.26163094776,null,1310,15,19650]
[null,null,null,null,null,null,null,null,32100,null,363517.26163094776,null,1311,15,19665]
[null,null,null,null,null,null,null,null,32200,{"$f":"+J1247","v":0.05},{"$f":"+K1256+(K1256*J1257)","v":381693.12471249513},null,1312,15,19680]
[null,null,null,null,null,null,null,null,32300,null,{"$f":"+K1257","v":381693.12471249513},null,1313,15,19695]
[null,null,null,null,null,null,null,null,32400,null,{"$f":"+K1258","v":381693.12471249513},null,1314,15,19710]
[null,null,null,null,null,null,null,null,32500,null,381693.12471249513,null,1315,15,19725]
[null,null,null,null,null,null,null,null,32600,null,381693.12471249513,null,1316,15,19740]
[null,null,null,null,null,null,null,null,32700,null,381693.12471249513,null,1317,15,19755]
[null,null,null,null,null,null,null,null,32800,null,381693.12471249513,null,1318,15,19770]
[null,null,null,null,null,null,null,null,32900,null,381693.12471249513,null,1319,15,19785]
[null,null,null,null,null,null,null,null,33000,null,381693.12471249513,null,1320,15,19800]
[null,null,null,null,null,null,null,null,33100,null,381693.12471249513,null,1321,15,19815]
[null,null,null,null,null,null,null,null,33200,{"$f":"+J1257","v":0.05},{"$f":"+K1266+(K1266*J1267)","v":400777.78094811988},null,1322,15,19830]
[null,null,null,null,null,null,null,null,33300,null,{"$f":"+K1267","v":400777.78094811988},null,1323,15,19845]
[null,null,null,null,null,null,null,null,33400,null,{"$f":"+K1268","v":400777.78094811988},null,1324,15,19860]
[null,null,null,null,null,null,null,null,33500,null,400777.78094811988,null,1325,15,19875]
[null,null,null,null,null,null,null,null,33600,null,400777.78094811988,null,1326,15,19890]
[null,null,null,null,null,null,null,null,33700,null,400777.78094811988,null,1327,15,19905]
[null,null,null,null,null,null,null,null,33800,null,400777.78094811988,null,1328,15,19920]
[null,null,null,null,null,null,null,null,33900,null,400777.78094811988,null,1329,15,19935]
[null,null,null,null,null,null,null,null,34000,null,400777.78094811988,null,1330,15,19950]
[null,null,null,null,null,null,null,null,34100,null,400777.78094811988,null,1331,15,19965]
[null,null,null,null,null,null,null,null,34200,{"$f":"+J1267","v":0.05},{"$f":"+K1276+(K1276*J1277)","v":420816.66999552585},null,1332,15,19980]
[null,null,null,null,null,null,null,null,34300,null,{"$f":"+K1277","v":420816.66999552585},null,1333,15,19995]
[null,null,null,null,null,null,null,null,34400,null,{"$f":"+K1278","v":420816.66999552585},null,1334,15,20010]
[null,null,null,null,null,null,null,null,34500,null,420816.66999552585,null,1335,15,20025]
[null,null,null,null,null,null,null,null,34600,null,420816.66999552585,null,1336,15,20040]
[null,null,null,null,null,null,null,null,34700,null,420816.66999552585,null,1337,15,20055]
[null,null,null,null,null,null,null,null,34800,null,420816.66999552585,null,1338,15,20070]
[null,null,null,null,null,null,null,null,34900,null,420816.66999552585,null,1339,15,20085]
[null,null,null,null,null,null,null,null,35000,null,420816.66999552585,null,1340,15,20100]
[null,null,null,null,null,null,null,null,35100,null,420816.66999552585,null,1341,15,20115]
[null,null,null,null,null,null,null,null,35200,{"$f":"+J1277","v":0.05},{"$f":"+K1286+(K1286*J1287)","v":441857.50349530217},null,1342,15,20130]
[null,null,null,null,null,null,null,null,35300,null,{"$f":"+K1287","v":441857.50349530217},null,1343,15,20145]
[null,null,null,null,null,null,null,null,35400,null,{"$f":"+K1288","v":441857.50349530217},null,1344,15,20160]
[null,null,null,null,null,null,null,null,35500,null,441857.50349530217,null,1345,15,20175]
[null,null,null,null,null,null,null,null,35600,null,441857.50349530217,null,1346,15,20190]
[null,null,null,null,null,null,null,null,35700,null,441857.50349530217,null,1347,15,20205]
[null,null,null,null,null,null,null,null,35800,null,441857.50349530217,null,1348,15,20220]
[null,null,null,null,null,null,null,null,35900,null,441857.50349530217,null,1349,15,20235]
[null,null,null,null,null,null,null,null,36000,null,441857.50349530217,null,1350,15,{"$f":"+N1295*M1295","v":20250}]
[null,null,null,null,null,null,null,null,36100,null,441857.50349530217,null,1351,15,20265]
[null,null,null,null,null,null,null,null,36200,{"$f":"+J1287","v":0.05},{"$f":"+K1296+(K1296*J1297)","v":463950.37867006729},null,1352,15,20280]
[null,null,null,null,null,null,null,null,36300,null,{"$f":"+K1297","v":463950.37867006729},null,1353,15,20295]
[null,null,null,null,null,null,null,null,36400,null,{"$f":"+K1298","v":463950.37867006729},null,1354,15,20310]
[null,null,null,null,null,null,null,null,36500,null,463950.37867006729,null,1355,15,20325]
[null,null,null,null,null,null,null,null,36600,null,463950.37867006729,null,1356,15,20340]
[null,null,null,null,null,null,null,null,36700,null,463950.37867006729,null,1357,15,20355]
[null,null,null,null,null,null,null,null,{"$f":"+I1302+100","v":36800},null,463950.37867006729,null,1358,15,20370]
[null,null,null,null,null,null,null,null,36900,null,463950.37867006729,null,1359,15,20385]
[null,null,null,null,null,null,null,null,37000,null,463950.37867006729,null,1360,15,20400]
[null,null,null,null,null,null,null,null,37100,null,463950.37867006729,null,1361,15,20415]
[null,null,null,null,null,null,null,null,37200,{"$f":"+J1297","v":0.05},{"$f":"+K1306+(K1306*J1307)","v":487147.89760357066},null,1362,15,20430]
[null,null,null,null,null,null,null,null,37300,null,{"$f":"+K1307","v":487147.89760357066},null,1363,15,20445]
[null,null,null,null,null,null,null,null,37400,null,{"$f":"+K1308","v":487147.89760357066},null,1364,15,20460]
[null,null,null,null,null,null,null,null,37500,null,487147.89760357066,null,1365,15,20475]
[null,null,null,null,null,null,null,null,37600,null,487147.89760357066,null,1366,15,20490]
[null,null,null,null,null,null,null,null,37700,null,487147.89760357066,null,1367,15,20505]
[null,null,null,null,null,null,null,null,37800,null,487147.89760357066,null,1368,15,20520]
[null,null,null,null,null,null,null,null,37900,null,487147.89760357066,null,1369,15,20535]
[null,null,null,null,null,null,null,null,38000,null,487147.89760357066,null,1370,15,20550]
[null,null,null,null,null,null,null,null,38100,null,487147.89760357066,null,1371,15,20565]
[null,null,null,null,null,null,null,null,38200,{"$f":"+J1307","v":0.05},{"$f":"+K1316+(K1316*J1317)","v":511505.29248374922},null,1372,15,20580]
[null,null,null,null,null,null,null,null,38300,null,{"$f":"+K1317","v":511505.29248374922},null,1373,15,20595]
[null,null,null,null,null,null,null,null,38400,null,{"$f":"+K1318","v":511505.29248374922},null,1374,15,20610]
[null,null,null,null,null,null,null,null,38500,null,511505.29248374922,null,1375,15,20625]
[null,null,null,null,null,null,null,null,38600,null,511505.29248374922,null,1376,15,20640]
[null,null,null,null,null,null,null,null,38700,null,511505.29248374922,null,1377,15,20655]
[null,null,null,null,null,null,null,null,38800,null,511505.29248374922,null,1378,15,20670]
[null,null,null,null,null,null,null,null,38900,null,511505.29248374922,null,1379,15,20685]
[null,null,null,null,null,null,null,null,39000,null,511505.29248374922,null,1380,15,20700]
[null,null,null,null,null,null,null,null,39100,null,511505.29248374922,null,1381,15,20715]
[null,null,null,null,null,null,null,null,39200,{"$f":"+J1317","v":0.05},{"$f":"+K1326+(K1326*J1327)","v":537080.55710793671},null,1382,15,20730]
[null,null,null,null,null,null,null,null,39300,null,{"$f":"+K1327","v":537080.55710793671},null,1383,15,20745]
[null,null,null,null,null,null,null,null,39400,null,{"$f":"+K1328","v":537080.55710793671},null,1384,15,20760]
[null,null,null,null,null,null,null,null,39500,null,537080.55710793671,null,1385,15,20775]
[null,null,null,null,null,null,null,null,39600,null,537080.55710793671,null,1386,15,20790]
[null,null,null,null,null,null,null,null,39700,null,537080.55710793671,null,1387,15,20805]
[null,null,null,null,null,null,null,null,39800,null,537080.55710793671,null,1388,15,20820]
[null,null,null,null,null,null,null,null,39900,null,537080.55710793671,null,1389,15,20835]
[null,null,null,null,null,null,null,null,40000,null,537080.55710793671,null,1390,15,20850]
[null,null,null,null,null,null,null,null,40100,null,537080.55710793671,null,1391,15,20865]
[null,null,null,null,null,null,null,null,40200,{"$f":"+J1327","v":0.05},{"$f":"+K1336+(K1336*J1337)","v":563934.58496333356},null,1392,15,20880]
[null,null,null,null,null,null,null,null,40300,null,{"$f":"+K1337","v":563934.58496333356},null,1393,15,20895]
[null,null,null,null,null,null,null,null,40400,null,{"$f":"+K1338","v":563934.58496333356},null,1394,15,20910]
[null,null,null,null,null,null,null,null,40500,null,563934.58496333356,null,1395,15,20925]
[null,null,null,null,null,null,null,null,40600,null,563934.58496333356,null,1396,15,20940]
[null,null,null,null,null,null,null,null,40700,null,563934.58496333356,null,1397,15,20955]
[null,null,null,null,null,null,null,null,40800,null,563934.58496333356,null,1398,15,20970]
[null,null,null,null,null,null,null,null,40900,null,563934.58496333356,null,1399,15,20985]
[null,null,null,null,null,null,null,null,41000,null,563934.58496333356,null,1400,15,21000]
[null,null,null,null,null,null,null,null,41100,null,563934.58496333356,null,1401,15,21015]
[null,null,null,null,null,null,null,null,41200,{"$f":"+J1337","v":0.05},{"$f":"+K1346+(K1346*J1347)","v":592131.31421150023},null,1402,15,21030]
[null,null,null,null,null,null,null,null,41300,null,{"$f":"+K1347","v":592131.31421150023},null,1403,15,21045]
[null,null,null,null,null,null,null,null,41400,null,{"$f":"+K1348","v":592131.31421150023},null,1404,15,21060]
[null,null,null,null,null,null,null,null,41500,null,592131.31421150023,null,1405,15,21075]
[null,null,null,null,null,null,null,null,41600,null,592131.31421150023,null,1406,15,21090]
[null,null,null,null,null,null,null,null,41700,null,592131.31421150023,null,1407,15,21105]
[null,null,null,null,null,null,null,null,41800,null,592131.31421150023,null,1408,15,21120]
[null,null,null,null,null,null,null,null,41900,null,592131.31421150023,null,1409,15,21135]
[null,null,null,null,null,null,null,null,42000,null,592131.31421150023,null,1410,15,21150]
[null,null,null,null,null,null,null,null,42100,null,592131.31421150023,null,1411,15,21165]
[null,null,null,null,null,null,null,null,42200,{"$f":"+J1347","v":0.05},{"$f":"+K1356+(K1356*J1357)","v":621737.8799220752},null,1412,15,21180]
[null,null,null,null,null,null,null,null,42300,null,{"$f":"+K1357","v":621737.8799220752},null,1413,15,21195]
[null,null,null,null,null,null,null,null,42400,null,{"$f":"+K1358","v":621737.8799220752},null,1414,15,{"$f":"+N1359*M1359","v":21210}]
[null,null,null,null,null,null,null,null,42500,null,621737.8799220752,null,1415,15,21225]
[null,null,null,null,null,null,null,null,42600,null,621737.8799220752,null,1416,15,21240]
[null,null,null,null,null,null,null,null,42700,null,621737.8799220752,null,1417,15,21255]
[null,null,null,null,null,null,null,null,42800,null,621737.8799220752,null,1418,15,21270]
[null,null,null,null,null,null,null,null,42900,null,621737.8799220752,null,1419,15,21285]
[null,null,null,null,null,null,null,null,43000,null,621737.8799220752,null,1420,15,21300]
[null,null,null,null,null,null,null,null,43100,null,621737.8799220752,null,1421,15,21315]
[null,null,null,null,null,null,null,null,{"$f":"+I1366+100","v":43200},{"$f":"+J1357","v":0.05},{"$f":"+K1366+(K1366*J1367)","v":652824.77391817898},null,1422,15,21330]
[null,null,null,null,null,null,null,null,43300,null,{"$f":"+K1367","v":652824.77391817898},null,1423,15,21345]
[null,null,null,null,null,null,null,null,43400,null,{"$f":"+K1368","v":652824.77391817898},null,1424,15,21360]
[null,null,null,null,null,null,null,null,43500,null,652824.77391817898,null,1425,15,21375]
[null,null,null,null,null,null,null,null,43600,null,652824.77391817898,null,1426,15,21390]
[null,null,null,null,null,null,null,null,43700,null,652824.77391817898,null,1427,15,21405]
[null,null,null,null,null,null,null,null,43800,null,652824.77391817898,null,1428,15,21420]
[null,null,null,null,null,null,null,null,43900,null,652824.77391817898,null,1429,15,21435]
[null,null,null,null,null,null,null,null,44000,null,652824.77391817898,null,1430,15,21450]
[null,null,null,null,null,null,null,null,44100,null,652824.77391817898,null,1431,15,21465]
[null,null,null,null,null,null,null,null,44200,{"$f":"+J1367","v":0.05},{"$f":"+K1376+(K1376*J1377)","v":685466.0126140879},null,1432,15,21480]
[null,null,null,null,null,null,null,null,44300,null,{"$f":"+K1377","v":685466.0126140879},null,1433,15,21495]
[null,null,null,null,null,null,null,null,44400,null,{"$f":"+K1378","v":685466.0126140879},null,1434,15,21510]
[null,null,null,null,null,null,null,null,44500,null,685466.0126140879,null,1435,15,21525]
[null,null,null,null,null,null,null,null,44600,null,685466.0126140879,null,1436,15,21540]
[null,null,null,null,null,null,null,null,44700,null,685466.0126140879,null,1437,15,21555]
[null,null,null,null,null,null,null,null,44800,null,685466.0126140879,null,1438,15,21570]
[null,null,null,null,null,null,null,null,44900,null,685466.0126140879,null,1439,15,21585]
[null,null,null,null,null,null,null,null,45000,null,685466.0126140879,null,1440,15,21600]
[null,null,null,null,null,null,null,null,45100,null,685466.0126140879,null,1441,15,21615]
[null,null,null,null,null,null,null,null,45200,{"$f":"+J1377","v":0.05},{"$f":"+K1386+(K1386*J1387)","v":719739.31324479228},null,1442,15,21630]
[null,null,null,null,null,null,null,null,45300,null,{"$f":"+K1387","v":719739.31324479228},null,1443,15,21645]
[null,null,null,null,null,null,null,null,45400,null,{"$f":"+K1388","v":719739.31324479228},null,1444,15,21660]
[null,null,null,null,null,null,null,null,45500,null,719739.31324479228,null,1445,15,21675]
[null,null,null,null,null,null,null,null,45600,null,719739.31324479228,null,1446,15,21690]
[null,null,null,null,null,null,null,null,45700,null,719739.31324479228,null,1447,15,21705]
[null,null,null,null,null,null,null,null,45800,null,719739.31324479228,null,1448,15,21720]
[null,null,null,null,null,null,null,null,45900,null,719739.31324479228,null,1449,15,21735]
[null,null,null,null,null,null,null,null,46000,null,719739.31324479228,null,1450,15,21750]
[null,null,null,null,null,null,null,null,46100,null,719739.31324479228,null,1451,15,21765]
[null,null,null,null,null,null,null,null,46200,{"$f":"+J1387","v":0.05},{"$f":"+K1396+(K1396*J1397)","v":755726.27890703187},null,1452,15,21780]
[null,null,null,null,null,null,null,null,46300,null,{"$f":"+K1397","v":755726.27890703187},null,1453,15,21795]
[null,null,null,null,null,null,null,null,46400,null,{"$f":"+K1398","v":755726.27890703187},null,1454,15,21810]
[null,null,null,null,null,null,null,null,46500,null,755726.27890703187,null,1455,15,21825]
[null,null,null,null,null,null,null,null,46600,null,755726.27890703187,null,1456,15,21840]
[null,null,null,null,null,null,null,null,46700,null,755726.27890703187,null,1457,15,21855]
[null,null,null,null,null,null,null,null,46800,null,755726.27890703187,null,1458,15,21870]
[null,null,null,null,null,null,null,null,46900,null,755726.27890703187,null,1459,15,21885]
[null,null,null,null,null,null,null,null,47000,null,755726.27890703187,null,1460,15,21900]
[null,null,null,null,null,null,null,null,47100,null,755726.27890703187,null,1461,15,21915]
[null,null,null,null,null,null,null,null,47200,{"$f":"+J1397","v":0.05},{"$f":"+K1406+(K1406*J1407)","v":793512.5928523835},null,1462,15,21930]
[null,null,null,null,null,null,null,null,47300,null,{"$f":"+K1407","v":793512.5928523835},null,1463,15,21945]
[null,null,null,null,null,null,null,null,47400,null,{"$f":"+K1408","v":793512.5928523835},null,1464,15,21960]
[null,null,null,null,null,null,null,null,47500,null,793512.5928523835,null,1465,15,21975]
[null,null,null,null,null,null,null,null,47600,null,793512.5928523835,null,1466,15,21990]
[null,null,null,null,null,null,null,null,47700,null,793512.5928523835,null,1467,15,22005]
[null,null,null,null,null,null,null,null,47800,null,793512.5928523835,null,1468,15,22020]
[null,null,null,null,null,null,null,null,47900,null,793512.5928523835,null,1469,15,22035]
[null,null,null,null,null,null,null,null,48000,null,793512.5928523835,null,1470,15,22050]
[null,null,null,null,null,null,null,null,48100,null,793512.5928523835,null,1471,15,22065]
[null,null,null,null,null,null,null,null,48200,{"$f":"+J1407","v":0.05},{"$f":"+K1416+(K1416*J1417)","v":833188.22249500267},null,1472,15,22080]
[null,null,null,null,null,null,null,null,48300,null,{"$f":"+K1417","v":833188.22249500267},null,1473,15,22095]
[null,null,null,null,null,null,null,null,48400,null,{"$f":"+K1418","v":833188.22249500267},null,1474,15,22110]
[null,null,null,null,null,null,null,null,48500,null,833188.22249500267,null,1475,15,22125]
[null,null,null,null,null,null,null,null,48600,null,833188.22249500267,null,1476,15,22140]
[null,null,null,null,null,null,null,null,48700,null,833188.22249500267,null,1477,15,22155]
[null,null,null,null,null,null,null,null,48800,null,833188.22249500267,null,1478,15,{"$f":"+N1423*M1423","v":22170}]
[null,null,null,null,null,null,null,null,48900,null,833188.22249500267,null,1479,15,22185]
[null,null,null,null,null,null,null,null,49000,null,833188.22249500267,null,1480,15,22200]
[null,null,null,null,null,null,null,null,49100,null,833188.22249500267,null,1481,15,22215]
[null,null,null,null,null,null,null,null,49200,{"$f":"+J1417","v":0.05},{"$f":"+K1426+(K1426*J1427)","v":874847.63361975283},null,1482,15,22230]
[null,null,null,null,null,null,null,null,49300,null,{"$f":"+K1427","v":874847.63361975283},null,1483,15,22245]
[null,null,null,null,null,null,null,null,49400,null,{"$f":"+K1428","v":874847.63361975283},null,1484,15,22260]
[null,null,null,null,null,null,null,null,49500,null,874847.63361975283,null,1485,15,22275]
[null,null,null,null,null,null,null,null,{"$f":"+I1430+100","v":49600},null,874847.63361975283,null,1486,15,22290]
[null,null,null,null,null,null,null,null,49700,null,874847.63361975283,null,1487,15,22305]
[null,null,null,null,null,null,null,null,49800,null,874847.63361975283,null,1488,15,22320]
[null,null,null,null,null,null,null,null,49900,null,874847.63361975283,null,1489,15,22335]
[null,null,null,null,null,null,null,null,50000,null,874847.63361975283,null,1490,15,22350]
[null,null,null,null,null,null,null,null,50100,null,874847.63361975283,null,1491,15,22365]
[null,null,null,null,null,null,null,null,50200,{"$f":"+J1427","v":0.05},{"$f":"+K1436+(K1436*J1437)","v":918590.01530074049},null,1492,15,22380]
[null,null,null,null,null,null,null,null,null,null,null,null,1493,15,22395]
[null,null,null,null,null,null,null,null,null,null,null,null,1494,15,22410]
[null,null,null,null,null,null,null,null,null,null,null,null,1495,15,22425]
[null,null,null,null,null,null,null,null,null,null,null,null,1496,15,22440]
[null,null,null,null,null,null,null,null,null,null,null,null,1497,15,22455]
[null,null,null,null,null,null,null,null,null,null,null,null,1498,15,22470]
[null,null,null,null,null,null,null,null,null,null,null,null,1499,15,22485]
[null,null,null,null,null,null,null,null,null,null,null,null,1500,15,22500]
[null,null,null,null,null,null,null,null,null,null,null,null,1501,15,22515]
[null,null,null,null,null,null,null,null,null,null,null,null,1502,15,22530]
[null,null,null,null,null,null,null,null,null,null,null,null,1503,15,22545]
[null,null,null,null,null,null,null,null,null,null,null,null,1504,15,22560]
[null,null,null,null,null,null,null,null,null,null,null,null,1505,15,22575]
[null,null,null,null,null,null,null,null,null,null,null,null,1506,15,22590]
[null,null,null,null,null,null,null,null,null,null,null,null,1507,15,22605]
[null,null,null,null,null,null,null,null,null,null,null,null,1508,15,22620]
[null,null,null,null,null,null,null,null,null,null,null,null,1509,15,22635]
[null,null,null,null,null,null,null,null,null,null,null,null,1510,15,22650]
[null,null,null,null,null,null,null,null,null,null,null,null,1511,15,22665]
[null,null,null,null,null,null,null,null,null,null,null,null,1512,15,22680]
[null,null,null,null,null,null,null,null,null,null,null,null,1513,15,22695]
[null,null,null,null,null,null,null,null,null,null,null,null,1514,15,22710]
[null,null,null,null,null,null,null,null,null,null,null,null,1515,15,22725]
[null,null,null,null,null,null,null,null,null,null,null,null,1516,15,22740]
[null,null,null,null,null,null,null,null,null,null,null,null,1517,15,22755]
[null,null,null,null,null,null,null,null,null,null,null,null,1518,15,22770]
[null,null,null,null,null,null,null,null,null,null,null,null,1519,15,22785]
[null,null,null,null,null,null,null,null,null,null,null,null,1520,15,22800]
[null,null,null,null,null,null,null,null,null,null,null,null,1521,15,22815]
[null,null,null,null,null,null,null,null,null,null,null,null,1522,15,22830]
[null,null,null,null,null,null,null,null,null,null,null,null,1523,15,22845]
[null,null,null,null,null,null,null,null,null,null,null,null,1524,15,22860]
[null,null,null,null,null,null,null,null,null,null,null,null,1525,15,22875]
[null,null,null,null,null,null,null,null,null,null,null,null,1526,15,22890]
[null,null,null,null,null,null,null,null,null,null,null,null,1527,15,22905]
[null,null,null,null,null,null,null,null,null,null,null,null,1528,15,22920]
[null,null,null,null,null,null,null,null,null,null,null,null,1529,15,22935]
[null,null,null,null,null,null,null,null,null,null,null,null,1530,15,22950]
[null,null,null,null,null,null,null,null,null,null,null,null,1531,15,22965]
[null,null,null,null,null,null,null,null,null,null,null,null,1532,15,22980]
[null,null,null,null,null,null,null,null,null,null,null,null,1533,15,22995]
[null,null,null,null,null,null,null,null,null,null,null,null,1534,15,23010]
[null,null,null,null,null,null,null,null,null,null,null,null,1535,15,23025]
[null,null,null,null,null,null,null,null,null,null,null,null,1536,15,23040]
[null,null,null,null,null,null,null,null,null,null,null,null,1537,15,23055]
[null,null,null,null,null,null,null,null,null,null,null,null,1538,15,23070]
[null,null,null,null,null,null,null,null,null,null,null,null,1539,15,23085]
[null,null,null,null,null,null,null,null,null,null,null,null,1540,15,23100]
[null,null,null,null,null,null,null,null,null,null,null,null,1541,15,23115]
[null,null,null,null,null,null,null,null,null,null,null,null,1542,15,{"$f":"+N1487*M1487","v":23130}]
[null,null,null,null,null,null,null,null,null,null,null,null,1543,15,23145]
[null,null,null,null,null,null,null,null,null,null,null,null,1544,15,23160]
[null,null,null,null,null,null,null,null,null,null,null,null,1545,15,23175]
[null,null,null,null,null,null,null,null,null,null,null,null,1546,15,23190]
[null,null,null,null,null,null,null,null,null,null,null,null,1547,15,23205]
[null,null,null,null,null,null,null,null,null,null,null,null,1548,15,23220]
[null,null,null,null,null,null,null,null,null,null,null,null,1549,15,23235]
[null,null,null,null,null,null,null,null,null,null,null,null,1550,15,23250]
[null,null,null,null,null,null,null,null,null,null,null,null,1551,15,23265]
[null,null,null,null,null,null,null,null,null,null,null,null,1552,15,23280]
[null,null,null,null,null,null,null,null,null,null,null,null,1553,15,23295]
[null,null,null,null,null,null,null,null,null,null,null,null,1554,15,23310]
[null,null,null,null,null,null,null,null,null,null,null,null,1555,15,23325]
[null,null,null,null,null,null,null,null,null,null,null,null,1556,15,23340]
[null,null,null,null,null,null,null,null,null,null,null,null,1557,15,23355]
[null,null,null,null,null,null,null,null,null,null,null,null,1558,15,23370]
[null,null,null,null,null,null,null,null,null,null,null,null,1559,15,23385]
[null,null,null,null,null,null,null,null,null,null,null,null,1560,15,23400]
[null,null,null,null,null,null,null,null,null,null,null,null,1561,15,23415]
[null,null,null,null,null,null,null,null,null,null,null,null,1562,15,23430]
[null,null,null,null,null,null,null,null,null,null,null,null,1563,15,23445]
[null,null,null,null,null,null,null,null,null,null,null,null,1564,15,23460]
[null,null,null,null,null,null,null,null,null,null,null,null,1565,15,23475]
[null,null,null,null,null,null,null,null,null,null,null,null,1566,15,23490]
[null,null,null,null,null,null,null,null,null,null,null,null,1567,15,23505]
[null,null,null,null,null,null,null,null,null,null,null,null,1568,15,23520]
[null,null,null,null,null,null,null,null,null,null,null,null,1569,15,23535]
[null,null,null,null,null,null,null,null,null,null,null,null,1570,15,23550]
[null,null,null,null,null,null,null,null,null,null,null,null,1571,15,23565]
[null,null,null,null,null,null,null,null,null,null,null,null,1572,15,23580]
[null,null,null,null,null,null,null,null,null,null,null,null,1573,15,23595]
[null,null,null,null,null,null,null,null,null,null,null,null,1574,15,23610]
[null,null,null,null,null,null,null,null,null,null,null,null,1575,15,23625]
[null,null,null,null,null,null,null,null,null,null,null,null,1576,15,23640]
[null,null,null,null,null,null,null,null,null,null,null,null,1577,15,23655]
[null,null,null,null,null,null,null,null,null,null,null,null,1578,15,23670]
[null,null,null,null,null,null,null,null,null,null,null,null,1579,15,23685]
[null,null,null,null,null,null,null,null,null,null,null,null,1580,15,23700]
[null,null,null,null,null,null,null,null,null,null,null,null,1581,15,23715]
[null,null,null,null,null,null,null,null,null,null,null,null,1582,15,23730]
[null,null,null,null,null,null,null,null,null,null,null,null,1583,15,23745]
[null,null,null,null,null,null,null,null,null,null,null,null,1584,15,23760]
[null,null,null,null,null,null,null,null,null,null,null,null,1585,15,23775]
[null,null,null,null,null,null,null,null,null,null,null,null,1586,15,23790]
[null,null,null,null,null,null,null,null,null,null,null,null,1587,15,23805]
[null,null,null,null,null,null,null,null,null,null,null,null,1588,15,23820]
[null,null,null,null,null,null,null,null,null,null,null,null,1589,15,23835]
[null,null,null,null,null,null,null,null,null,null,null,null,1590,15,23850]
[null,null,null,null,null,null,null,null,null,null,null,null,1591,15,23865]
[null,null,null,null,null,null,null,null,null,null,null,null,1592,15,23880]
[null,null,null,null,null,null,null,null,null,null,null,null,1593,15,23895]
[null,null,null,null,null,null,null,null,null,null,null,null,1594,15,23910]
[null,null,null,null,null,null,null,null,null,null,null,null,1595,15,23925]
[null,null,null,null,null,null,null,null,null,null,null,null,1596,15,23940]
[null,null,null,null,null,null,null,null,null,null,null,null,1597,15,23955]
[null,null,null,null,null,null,null,null,null,null,null,null,1598,15,23970]
[null,null,null,null,null,null,null,null,null,null,null,null,1599,15,23985]
[null,null,null,null,null,null,null,null,null,null,null,null,1600,15,24000]
[null,null,null,null,null,null,null,null,null,null,null,null,1601,15,24015]
[null,null,null,null,null,null,null,null,null,null,null,null,1602,15,24030]
[null,null,null,null,null,null,null,null,null,null,null,null,1603,15,24045]
[null,null,null,null,null,null,null,null,null,null,null,null,1604,15,24060]
[null,null,null,null,null,null,null,null,null,null,null,null,1605,15,24075]
[null,null,null,null,null,null,null,null,null,null,null,null,1606,15,{"$f":"+N1551*M1551","v":24090}]
[null,null,null,null,null,null,null,null,null,null,null,null,1607,15,24105]
[null,null,null,null,null,null,null,null,null,null,null,null,1608,15,24120]
[null,null,null,null,null,null,null,null,null,null,null,null,1609,15,24135]
[null,null,null,null,null,null,null,null,null,null,null,null,1610,15,24150]
[null,null,null,null,null,null,null,null,null,null,null,null,1611,15,24165]
[null,null,null,null,null,null,null,null,null,null,null,null,1612,15,24180]
[null,null,null,null,null,null,null,null,null,null,null,null,1613,15,24195]
[null,null,null,null,null,null,null,null,null,null,null,null,1614,15,24210]
[null,null,null,null,null,null,null,null,null,null,null,null,1615,15,24225]
[null,null,null,null,null,null,null,null,null,null,null,null,1616,15,24240]
[null,null,null,null,null,null,null,null,null,null,null,null,1617,15,24255]
[null,null,null,null,null,null,null,null,null,null,null,null,1618,15,24270]
[null,null,null,null,null,null,null,null,null,null,null,null,1619,15,24285]
[null,null,null,null,null,null,null,null,null,null,null,null,1620,15,24300]
[null,null,null,null,null,null,null,null,null,null,null,null,1621,15,24315]
[null,null,null,null,null,null,null,null,null,null,null,null,1622,15,24330]
[null,null,null,null,null,null,null,null,null,null,null,null,1623,15,24345]
[null,null,null,null,null,null,null,null,null,null,null,null,1624,15,24360]
[null,null,null,null,null,null,null,null,null,null,null,null,1625,15,24375]
[null,null,null,null,null,null,null,null,null,null,null,null,1626,15,24390]
[null,null,null,null,null,null,null,null,null,null,null,null,1627,15,24405]
[null,null,null,null,null,null,null,null,null,null,null,null,1628,15,24420]
[null,null,null,null,null,null,null,null,null,null,null,null,1629,15,24435]
[null,null,null,null,null,null,null,null,null,null,null,null,1630,15,24450]
[null,null,null,null,null,null,null,null,null,null,null,null,1631,15,24465]
[null,null,null,null,null,null,null,null,null,null,null,null,1632,15,24480]
[null,null,null,null,null,null,null,null,null,null,null,null,1633,15,24495]
[null,null,null,null,null,null,null,null,null,null,null,null,1634,15,24510]
[null,null,null,null,null,null,null,null,null,null,null,null,1635,15,24525]
[null,null,null,null,null,null,null,null,null,null,null,null,1636,15,24540]
[null,null,null,null,null,null,null,null,null,null,null,null,1637,15,24555]
[null,null,null,null,null,null,null,null,null,null,null,null,1638,15,24570]
[null,null,null,null,null,null,null,null,null,null,null,null,1639,15,24585]
[null,null,null,null,null,null,null,null,null,null,null,null,1640,15,24600]
[null,null,null,null,null,null,null,null,null,null,null,null,1641,15,24615]
[null,null,null,null,null,null,null,null,null,null,null,null,1642,15,24630]
[null,null,null,null,null,null,null,null,null,null,null,null,1643,15,24645]
[null,null,null,null,null,null,null,null,null,null,null,null,1644,15,24660]
[null,null,null,null,null,null,null,null,null,null,null,null,1645,15,24675]
[null,null,null,null,null,null,null,null,null,null,null,null,1646,15,24690]
[null,null,null,null,null,null,null,null,null,null,null,null,1647,15,24705]
[null,null,null,null,null,null,null,null,null,null,null,null,1648,15,24720]
[null,null,null,null,null,null,null,null,null,null,null,null,1649,15,24735]
[null,null,null,null,null,null,null,null,null,null,null,null,1650,15,24750]
[null,null,null,null,null,null,null,null,null,null,null,null,1651,15,24765]
[null,null,null,null,null,null,null,null,null,null,null,null,1652,15,24780]
[null,null,null,null,null,null,null,null,null,null,null,null,1653,15,24795]
[null,null,null,null,null,null,null,null,null,null,null,null,1654,15,24810]
[null,null,null,null,null,null,null,null,null,null,null,null,1655,15,24825]
[null,null,null,null,null,null,null,null,null,null,null,null,1656,15,24840]
[null,null,null,null,null,null,null,null,null,null,null,null,1657,15,24855]
[null,null,null,null,null,null,null,null,null,null,null,null,1658,15,24870]
[null,null,null,null,null,null,null,null,null,null,null,null,1659,15,24885]
[null,null,null,null,null,null,null,null,null,null,null,null,1660,15,24900]
[null,null,null,null,null,null,null,null,null,null,null,null,1661,15,24915]
[null,null,null,null,null,null,null,null,null,null,null,null,1662,15,24930]
[null,null,null,null,null,null,null,null,null,null,null,null,1663,15,24945]
[null,null,null,null,null,null,null,null,null,null,null,null,1664,15,24960]
[null,null,null,null,null,null,null,null,null,null,null,null,1665,15,24975]
[null,null,null,null,null,null,null,null,null,null,null,null,1666,15,24990]
[null,null,null,null,null,null,null,null,null,null,null,null,1667,15,25005]
[null,null,null,null,null,null,null,null,null,null,null,null,1668,15,25020]
[null,null,null,null,null,null,null,null,null,null,null,null,1669,15,25035]
[null,null,null,null,null,null,null,null,null,null,null,null,1670,15,{"$f":"+N1615*M1615","v":25050}]
[null,null,null,null,null,null,null,null,null,null,null,null,1671,15,25065]
[null,null,null,null,null,null,null,null,null,null,null,null,1672,15,25080]
[null,null,null,null,null,null,null,null,null,null,null,null,1673,15,25095]
[null,null,null,null,null,null,null,null,null,null,null,null,1674,15,25110]
[null,null,null,null,null,null,null,null,null,null,null,null,1675,15,25125]
[null,null,null,null,null,null,null,null,null,null,null,null,1676,15,25140]
[null,null,null,null,null,null,null,null,null,null,null,null,1677,15,25155]
[null,null,null,null,null,null,null,null,null,null,null,null,1678,15,25170]
[null,null,null,null,null,null,null,null,null,null,null,null,1679,15,25185]
[null,null,null,null,null,null,null,null,null,null,null,null,1680,15,25200]
[null,null,null,null,null,null,null,null,null,null,null,null,1681,15,25215]
[null,null,null,null,null,null,null,null,null,null,null,null,1682,15,25230]
[null,null,null,null,null,null,null,null,null,null,null,null,1683,15,25245]
[null,null,null,null,null,null,null,null,null,null,null,null,1684,15,25260]
[null,null,null,null,null,null,null,null,null,null,null,null,1685,15,25275]
[null,null,null,null,null,null,null,null,null,null,null,null,1686,15,25290]
[null,null,null,null,null,null,null,null,null,null,null,null,1687,15,25305]
[null,null,null,null,null,null,null,null,null,null,null,null,1688,15,25320]
[null,null,null,null,null,null,null,null,null,null,null,null,1689,15,25335]
[null,null,null,null,null,null,null,null,null,null,null,null,1690,15,25350]
[null,null,null,null,null,null,null,null,null,null,null,null,1691,15,25365]
[null,null,null,null,null,null,null,null,null,null,null,null,1692,15,25380]
[null,null,null,null,null,null,null,null,null,null,null,null,1693,15,25395]
[null,null,null,null,null,null,null,null,null,null,null,null,1694,15,25410]
[null,null,null,null,null,null,null,null,null,null,null,null,1695,15,25425]
[null,null,null,null,null,null,null,null,null,null,null,null,1696,15,25440]
[null,null,null,null,null,null,null,null,null,null,null,null,1697,15,25455]
[null,null,null,null,null,null,null,null,null,null,null,null,1698,15,25470]
[null,null,null,null,null,null,null,null,null,null,null,null,1699,15,25485]
[null,null,null,null,null,null,null,null,null,null,null,null,1700,15,25500]
[null,null,null,null,null,null,null,null,null,null,null,null,1701,15,25515]
[null,null,null,null,null,null,null,null,null,null,null,null,1702,15,25530]
[null,null,null,null,null,null,null,null,null,null,null,null,1703,15,25545]
[null,null,null,null,null,null,null,null,null,null,null,null,1704,15,25560]
[null,null,null,null,null,null,null,null,null,null,null,null,1705,15,25575]
[null,null,null,null,null,null,null,null,null,null,null,null,1706,15,25590]
[null,null,null,null,null,null,null,null,null,null,null,null,1707,15,25605]
[null,null,null,null,null,null,null,null,null,null,null,null,1708,15,25620]
[null,null,null,null,null,null,null,null,null,null,null,null,1709,15,25635]
[null,null,null,null,null,null,null,null,null,null,null,null,1710,15,25650]
[null,null,null,null,null,null,null,null,null,null,null,null,1711,15,25665]
[null,null,null,null,null,null,null,null,null,null,null,null,1712,15,25680]
[null,null,null,null,null,null,null,null,null,null,null,null,1713,15,25695]
[null,null,null,null,null,null,null,null,null,null,null,null,1714,15,25710]
[null,null,null,null,null,null,null,null,null,null,null,null,1715,15,25725]
[null,null,null,null,null,null,null,null,null,null,null,null,1716,15,25740]
[null,null,null,null,null,null,null,null,null,null,null,null,1717,15,25755]
[null,null,null,null,null,null,null,null,null,null,null,null,1718,15,25770]
[null,null,null,null,null,null,null,null,null,null,null,null,1719,15,25785]
[null,null,null,null,null,null,null,null,null,null,null,null,1720,15,25800]
[null,null,null,null,null,null,null,null,null,null,null,null,1721,15,25815]
[null,null,null,null,null,null,null,null,null,null,null,null,1722,15,25830]
[null,null,null,null,null,null,null,null,null,null,null,null,1723,15,25845]
[null,null,null,null,null,null,null,null,null,null,null,null,1724,15,25860]
[null,null,null,null,null,null,null,null,null,null,null,null,1725,15,25875]
[null,null,null,null,null,null,null,null,null,null,null,null,1726,15,25890]
[null,null,null,null,null,null,null,null,null,null,null,null,1727,15,25905]
[null,null,null,null,null,null,null,null,null,null,null,null,1728,15,25920]
[null,null,null,null,null,null,null,null,null,null,null,null,1729,15,25935]
[null,null,null,null,null,null,null,null,null,null,null,null,1730,15,25950]
[null,null,null,null,null,null,null,null,null,null,null,null,1731,15,25965]
[null,null,null,null,null,null,null,null,null,null,null,null,1732,15,25980]
[null,null,null,null,null,null,null,null,null,null,null,null,1733,15,25995]
[null,null,null,null,null,null,null,null,null,null,null,null,1734,15,{"$f":"+N1679*M1679","v":26010}]
[null,null,null,null,null,null,null,null,null,null,null,null,1735,15,26025]
[null,null,null,null,null,null,null,null,null,null,null,null,1736,15,26040]
[null,null,null,null,null,null,null,null,null,null,null,null,1737,15,26055]
[null,null,null,null,null,null,null,null,null,null,null,null,1738,15,26070]
[null,null,null,null,null,null,null,null,null,null,null,null,1739,15,26085]
[null,null,null,null,null,null,null,null,null,null,null,null,1740,15,26100]
[null,null,null,null,null,null,null,null,null,null,null,null,1741,15,26115]
[null,null,null,null,null,null,null,null,null,null,null,null,1742,15,26130]
[null,null,null,null,null,null,null,null,null,null,null,null,1743,15,26145]
[null,null,null,null,null,null,null,null,null,null,null,null,1744,15,26160]
[null,null,null,null,null,null,null,null,null,null,null,null,1745,15,26175]
[null,null,null,null,null,null,null,null,null,null,null,null,1746,15,26190]
[null,null,null,null,null,null,null,null,null,null,null,null,1747,15,26205]
[null,null,null,null,null,null,null,null,null,null,null,null,1748,15,26220]
[null,null,null,null,null,null,null,null,null,null,null,null,1749,15,26235]
[null,null,null,null,null,null,null,null,null,null,null,null,1750,15,26250]
[null,null,null,null,null,null,null,null,null,null,null,null,1751,15,26265]
[null,null,null,null,null,null,null,null,null,null,null,null,1752,15,26280]
[null,null,null,null,null,null,null,null,null,null,null,null,1753,15,26295]
[null,null,null,null,null,null,null,null,null,null,null,null,1754,15,26310]
[null,null,null,null,null,null,null,null,null,null,null,null,1755,15,26325]
[null,null,null,null,null,null,null,null,null,null,null,null,1756,15,26340]
[null,null,null,null,null,null,null,null,null,null,null,null,1757,15,26355]
[null,null,null,null,null,null,null,null,null,null,null,null,1758,15,26370]
[null,null,null,null,null,null,null,null,null,null,null,null,1759,15,26385]
[null,null,null,null,null,null,null,null,null,null,null,null,1760,15,26400]
[null,null,null,null,null,null,null,null,null,null,null,null,1761,15,26415]
[null,null,null,null,null,null,null,null,null,null,null,null,1762,15,26430]
[null,null,null,null,null,null,null,null,null,null,null,null,1763,15,26445]
[null,null,null,null,null,null,null,null,null,null,null,null,1764,15,26460]
[null,null,null,null,null,null,null,null,null,null,null,null,1765,15,26475]
[null,null,null,null,null,null,null,null,null,null,null,null,1766,15,26490]
[null,null,null,null,null,null,null,null,null,null,null,null,1767,15,26505]
[null,null,null,null,null,null,null,null,null,null,null,null,1768,15,26520]
[null,null,null,null,null,null,null,null,null,null,null,null,1769,15,26535]
[null,null,null,null,null,null,null,null,null,null,null,null,1770,15,26550]
[null,null,null,null,null,null,null,null,null,null,null,null,1771,15,26565]
[null,null,null,null,null,null,null,null,null,null,null,null,1772,15,26580]
[null,null,null,null,null,null,null,null,null,null,null,null,1773,15,26595]
[null,null,null,null,null,null,null,null,null,null,null,null,1774,15,26610]
[null,null,null,null,null,null,null,null,null,null,null,null,1775,15,26625]
[null,null,null,null,null,null,null,null,null,null,null,null,1776,15,26640]
[null,null,null,null,null,null,null,null,null,null,null,null,1777,15,26655]
[null,null,null,null,null,null,null,null,null,null,null,null,1778,15,26670]
[null,null,null,null,null,null,null,null,null,null,null,null,1779,15,26685]
[null,null,null,null,null,null,null,null,null,null,null,null,1780,15,26700]
[null,null,null,null,null,null,null,null,null,null,null,null,1781,15,26715]
[null,null,null,null,null,null,null,null,null,null,null,null,1782,15,26730]
[null,null,null,null,null,null,null,null,null,null,null,null,1783,15,26745]
[null,null,null,null,null,null,null,null,null,null,null,null,1784,15,26760]
[null,null,null,null,null,null,null,null,null,null,null,null,1785,15,26775]
[null,null,null,null,null,null,null,null,null,null,null,null,1786,15,26790]
[null,null,null,null,null,null,null,null,null,null,null,null,1787,15,26805]
[null,null,null,null,null,null,null,null,null,null,null,null,1788,15,26820]
[null,null,null,null,null,null,null,null,null,null,null,null,1789,15,26835]
[null,null,null,null,null,null,null,null,null,null,null,null,1790,15,26850]
[null,null,null,null,null,null,null,null,null,null,null,null,1791,15,26865]
[null,null,null,null,null,null,null,null,null,null,null,null,1792,15,26880]
[null,null,null,null,null,null,null,null,null,null,null,null,1793,15,26895]
[null,null,null,null,null,null,null,null,null,null,null,null,1794,15,26910]
[null,null,null,null,null,null,null,null,null,null,null,null,1795,15,26925]
[null,null,null,null,null,null,null,null,null,null,null,null,1796,15,26940]
[null,null,null,null,null,null,null,null,null,null,null,null,1797,15,26955]
[null,null,null,null,null,null,null,null,null,null,null,null,1798,15,{"$f":"+N1743*M1743","v":26970}]
[null,null,null,null,null,null,null,null,null,null,null,null,1799,15,26985]
[null,null,null,null,null,null,null,null,null,null,null,null,1800,15,27000]
[null,null,null,null,null,null,null,null,null,null,null,null,1801,15,27015]
[null,null,null,null,null,null,null,null,null,null,null,null,1802,15,27030]
[null,null,null,null,null,null,null,null,null,null,null,null,1803,15,27045]
[null,null,null,null,null,null,null,null,null,null,null,null,1804,15,27060]
[null,null,null,null,null,null,null,null,null,null,null,null,1805,15,27075]
[null,null,null,null,null,null,null,null,null,null,null,null,1806,15,27090]
[null,null,null,null,null,null,null,null,null,null,null,null,1807,15,27105]
[null,null,null,null,null,null,null,null,null,null,null,null,1808,15,27120]
[null,null,null,null,null,null,null,null,null,null,null,null,1809,15,27135]
[null,null,null,null,null,null,null,null,null,null,null,null,1810,15,27150]
[null,null,null,null,null,null,null,null,null,null,null,null,1811,15,27165]
[null,null,null,null,null,null,null,null,null,null,null,null,1812,15,27180]
[null,null,null,null,null,null,null,null,null,null,null,null,1813,15,27195]
[null,null,null,null,null,null,null,null,null,null,null,null,1814,15,27210]
[null,null,null,null,null,null,null,null,null,null,null,null,1815,15,27225]
[null,null,null,null,null,null,null,null,null,null,null,null,1816,15,27240]
[null,null,null,null,null,null,null,null,null,null,null,null,1817,15,27255]
[null,null,null,null,null,null,null,null,null,null,null,null,1818,15,27270]
[null,null,null,null,null,null,null,null,null,null,null,null,1819,15,27285]
[null,null,null,null,null,null,null,null,null,null,null,null,1820,15,27300]
[null,null,null,null,null,null,null,null,null,null,null,null,1821,15,27315]
[null,null,null,null,null,null,null,null,null,null,null,null,1822,15,27330]
[null,null,null,null,null,null,null,null,null,null,null,null,1823,15,27345]
[null,null,null,null,null,null,null,null,null,null,null,null,1824,15,27360]
[null,null,null,null,null,null,null,null,null,null,null,null,1825,15,27375]
[null,null,null,null,null,null,null,null,null,null,null,null,1826,15,27390]
[null,null,null,null,null,null,null,null,null,null,null,null,1827,15,27405]
[null,null,null,null,null,null,null,null,null,null,null,null,1828,15,27420]
[null,null,null,null,null,null,null,null,null,null,null,null,1829,15,27435]
[null,null,null,null,null,null,null,null,null,null,null,null,1830,15,27450]
[null,null,null,null,null,null,null,null,null,null,null,null,1831,15,27465]
[null,null,null,null,null,null,null,null,null,null,null,null,1832,15,27480]
[null,null,null,null,null,null,null,null,null,null,null,null,1833,15,27495]
[null,null,null,null,null,null,null,null,null,null,null,null,1834,15,27510]
[null,null,null,null,null,null,null,null,null,null,null,null,1835,15,27525]
[null,null,null,null,null,null,null,null,null,null,null,null,1836,15,27540]
[null,null,null,null,null,null,null,null,null,null,null,null,1837,15,27555]
[null,null,null,null,null,null,null,null,null,null,null,null,1838,15,27570]
[null,null,null,null,null,null,null,null,null,null,null,null,1839,15,27585]
[null,null,null,null,null,null,null,null,null,null,null,null,1840,15,27600]
[null,null,null,null,null,null,null,null,null,null,null,null,1841,15,27615]
[null,null,null,null,null,null,null,null,null,null,null,null,1842,15,27630]
[null,null,null,null,null,null,null,null,null,null,null,null,1843,15,27645]
[null,null,null,null,null,null,null,null,null,null,null,null,1844,15,27660]
[null,null,null,null,null,null,null,null,null,null,null,null,1845,15,27675]
[null,null,null,null,null,null,null,null,null,null,null,null,1846,15,27690]
[null,null,null,null,null,null,null,null,null,null,null,null,1847,15,27705]
[null,null,null,null,null,null,null,null,null,null,null,null,1848,15,27720]
[null,null,null,null,null,null,null,null,null,null,null,null,1849,15,27735]
[null,null,null,null,null,null,null,null,null,null,null,null,1850,15,27750]
[null,null,null,null,null,null,null,null,null,null,null,null,1851,15,27765]
[null,null,null,null,null,null,null,null,null,null,null,null,1852,15,27780]
[null,null,null,null,null,null,null,null,null,null,null,null,1853,15,27795]
[null,null,null,null,null,null,null,null,null,null,null,null,1854,15,27810]
[null,null,null,null,null,null,null,null,null,null,null,null,1855,15,27825]
[null,null,null,null,null,null,null,null,null,null,null,null,1856,15,27840]
[null,null,null,null,null,null,null,null,null,null,null,null,1857,15,27855]
[null,null,null,null,null,null,null,null,null,null,null,null,1858,15,27870]
[null,null,null,null,null,null,null,null,null,null,null,null,1859,15,27885]
[null,null,null,null,null,null,null,null,null,null,null,null,1860,15,27900]
[null,null,null,null,null,null,null,null,null,null,null,null,1861,15,27915]
[null,null,null,null,null,null,null,null,null,null,null,null,1862,15,{"$f":"+N1807*M1807","v":27930}]
[null,null,null,null,null,null,null,null,null,null,null,null,1863,15,27945]
[null,null,null,null,null,null,null,null,null,null,null,null,1864,15,27960]
[null,null,null,null,null,null,null,null,null,null,null,null,1865,15,27975]
[null,null,null,null,null,null,null,null,null,null,null,null,1866,15,27990]
[null,null,null,null,null,null,null,null,null,null,null,null,1867,15,28005]
[null,null,null,null,null,null,null,null,null,null,null,null,1868,15,28020]
[null,null,null,null,null,null,null,null,null,null,null,null,1869,15,28035]
[null,null,null,null,null,null,null,null,null,null,null,null,1870,15,28050]
[null,null,null,null,null,null,null,null,null,null,null,null,1871,15,28065]
[null,null,null,null,null,null,null,null,null,null,null,null,1872,15,28080]
[null,null,null,null,null,null,null,null,null,null,null,null,1873,15,28095]
[null,null,null,null,null,null,null,null,null,null,null,null,1874,15,28110]
[null,null,null,null,null,null,null,null,null,null,null,null,1875,15,28125]
[null,null,null,null,null,null,null,null,null,null,null,null,1876,15,28140]
[null,null,null,null,null,null,null,null,null,null,null,null,1877,15,28155]
[null,null,null,null,null,null,null,null,null,null,null,null,1878,15,28170]
[null,null,null,null,null,null,null,null,null,null,null,null,1879,15,28185]
[null,null,null,null,null,null,null,null,null,null,null,null,1880,15,28200]
[null,null,null,null,null,null,null,null,null,null,null,null,1881,15,28215]
[null,null,null,null,null,null,null,null,null,null,null,null,1882,15,28230]
[null,null,null,null,null,null,null,null,null,null,null,null,1883,15,28245]
[null,null,null,null,null,null,null,null,null,null,null,null,1884,15,28260]
[null,null,null,null,null,null,null,null,null,null,null,null,1885,15,28275]
[null,null,null,null,null,null,null,null,null,null,null,null,1886,15,28290]
[null,null,null,null,null,null,null,null,null,null,null,null,1887,15,28305]
[null,null,null,null,null,null,null,null,null,null,null,null,1888,15,28320]
[null,null,null,null,null,null,null,null,null,null,null,null,1889,15,28335]
[null,null,null,null,null,null,null,null,null,null,null,null,1890,15,28350]
[null,null,null,null,null,null,null,null,null,null,null,null,1891,15,28365]
[null,null,null,null,null,null,null,null,null,null,null,null,1892,15,28380]
[null,null,null,null,null,null,null,null,null,null,null,null,1893,15,28395]
[null,null,null,null,null,null,null,null,null,null,null,null,1894,15,28410]
[null,null,null,null,null,null,null,null,null,null,null,null,1895,15,28425]
[null,null,null,null,null,null,null,null,null,null,null,null,1896,15,28440]
[null,null,null,null,null,null,null,null,null,null,null,null,1897,15,28455]
[null,null,null,null,null,null,null,null,null,null,null,null,1898,15,28470]
[null,null,null,null,null,null,null,null,null,null,null,null,1899,15,28485]
[null,null,null,null,null,null,null,null,null,null,null,null,1900,15,28500]
[null,null,null,null,null,null,null,null,null,null,null,null,1901,15,28515]
[null,null,null,null,null,null,null,null,null,null,null,null,1902,15,28530]
[null,null,null,null,null,null,null,null,null,null,null,null,1903,15,28545]
[null,null,null,null,null,null,null,null,null,null,null,null,1904,15,28560]
[null,null,null,null,null,null,null,null,null,null,null,null,1905,15,28575]
[null,null,null,null,null,null,null,null,null,null,null,null,1906,15,28590]
[null,null,null,null,null,null,null,null,null,null,null,null,1907,15,28605]
[null,null,null,null,null,null,null,null,null,null,null,null,1908,15,28620]
[null,null,null,null,null,null,null,null,null,null,null,null,1909,15,28635]
[null,null,null,null,null,null,null,null,null,null,null,null,1910,15,28650]
[null,null,null,null,null,null,null,null,null,null,null,null,1911,15,28665]
[null,null,null,null,null,null,null,null,null,null,null,null,1912,15,28680]
[null,null,null,null,null,null,null,null,null,null,null,null,1913,15,28695]
[null,null,null,null,null,null,null,null,null,null,null,null,1914,15,28710]
[null,null,null,null,null,null,null,null,null,null,null,null,1915,15,28725]
[null,null,null,null,null,null,null,null,null,null,null,null,1916,15,28740]
[null,null,null,null,null,null,null,null,null,null,null,null,1917,15,28755]
[null,null,null,null,null,null,null,null,null,null,null,null,1918,15,28770]
[null,null,null,null,null,null,null,null,null,null,null,null,1919,15,28785]
[null,null,null,null,null,null,null,null,null,null,null,null,1920,15,28800]
[null,null,null,null,null,null,null,null,null,null,null,null,1921,15,28815]
[null,null,null,null,null,null,null,null,null,null,null,null,1922,15,28830]
[null,null,null,null,null,null,null,null,null,null,null,null,1923,15,28845]
[null,null,null,null,null,null,null,null,null,null,null,null,1924,15,28860]
[null,null,null,null,null,null,null,null,null,null,null,null,1925,15,28875]
[null,null,null,null,null,null,null,null,null,null,null,null,1926,15,{"$f":"+N1871*M1871","v":28890}]
[null,null,null,null,null,null,null,null,null,null,null,null,1927,15,28905]
[null,null,null,null,null,null,null,null,null,null,null,null,1928,15,28920]
[null,null,null,null,null,null,null,null,null,null,null,null,1929,15,28935]
[null,null,null,null,null,null,null,null,null,null,null,null,1930,15,28950]
[null,null,null,null,null,null,null,null,null,null,null,null,1931,15,28965]
[null,null,null,null,null,null,null,null,null,null,null,null,1932,15,28980]
[null,null,null,null,null,null,null,null,null,null,null,null,1933,15,28995]
[null,null,null,null,null,null,null,null,null,null,null,null,1934,15,29010]
[null,null,null,null,null,null,null,null,null,null,null,null,1935,15,29025]
[null,null,null,null,null,null,null,null,null,null,null,null,1936,15,29040]
[null,null,null,null,null,null,null,null,null,null,null,null,1937,15,29055]
[null,null,null,null,null,null,null,null,null,null,null,null,1938,15,29070]
[null,null,null,null,null,null,null,null,null,null,null,null,1939,15,29085]
[null,null,null,null,null,null,null,null,null,null,null,null,1940,15,29100]
[null,null,null,null,null,null,null,null,null,null,null,null,1941,15,29115]
[null,null,null,null,null,null,null,null,null,null,null,null,1942,15,29130]
[null,null,null,null,null,null,null,null,null,null,null,null,1943,15,29145]
[null,null,null,null,null,null,null,null,null,null,null,null,1944,15,29160]
[null,null,null,null,null,null,null,null,null,null,null,null,1945,15,29175]
[null,null,null,null,null,null,null,null,null,null,null,null,1946,15,29190]
[null,null,null,null,null,null,null,null,null,null,null,null,1947,15,29205]
[null,null,null,null,null,null,null,null,null,null,null,null,1948,15,29220]
[null,null,null,null,null,null,null,null,null,null,null,null,1949,15,29235]
[null,null,null,null,null,null,null,null,null,null,null,null,1950,15,29250]
[null,null,null,null,null,null,null,null,null,null,null,null,1951,15,29265]
[null,null,null,null,null,null,null,null,null,null,null,null,1952,15,29280]
[null,null,null,null,null,null,null,null,null,null,null,null,1953,15,29295]
[null,null,null,null,null,null,null,null,null,null,null,null,1954,15,29310]
[null,null,null,null,null,null,null,null,null,null,null,null,1955,15,29325]
[null,null,null,null,null,null,null,null,null,null,null,null,1956,15,29340]
[null,null,null,null,null,null,null,null,null,null,null,null,1957,15,29355]
[null,null,null,null,null,null,null,null,null,null,null,null,1958,15,29370]
[null,null,null,null,null,null,null,null,null,null,null,null,1959,15,29385]
[null,null,null,null,null,null,null,null,null,null,null,null,1960,15,29400]
[null,null,null,null,null,null,null,null,null,null,null,null,1961,15,29415]
[null,null,null,null,null,null,null,null,null,null,null,null,1962,15,29430]
[null,null,null,null,null,null,null,null,null,null,null,null,1963,15,29445]
[null,null,null,null,null,null,null,null,null,null,null,null,1964,15,29460]
[null,null,null,null,null,null,null,null,null,null,null,null,1965,15,29475]
[null,null,null,null,null,null,null,null,null,null,null,null,1966,15,29490]
[null,null,null,null,null,null,null,null,null,null,null,null,1967,15,29505]
[null,null,null,null,null,null,null,null,null,null,null,null,1968,15,29520]
[null,null,null,null,null,null,null,null,null,null,null,null,1969,15,29535]
[null,null,null,null,null,null,null,null,null,null,null,null,1970,15,29550]
[null,null,null,null,null,null,null,null,null,null,null,null,1971,15,29565]
[null,null,null,null,null,null,null,null,null,null,null,null,1972,15,29580]
[null,null,null,null,null,null,null,null,null,null,null,null,1973,15,29595]
[null,null,null,null,null,null,null,null,null,null,null,null,1974,15,29610]
[null,null,null,null,null,null,null,null,null,null,null,null,1975,15,29625]
[null,null,null,null,null,null,null,null,null,null,null,null,1976,15,29640]
[null,null,null,null,null,null,null,null,null,null,null,null,1977,15,29655]
[null,null,null,null,null,null,null,null,null,null,null,null,1978,15,29670]
[null,null,null,null,null,null,null,null,null,null,null,null,1979,15,29685]
[null,null,null,null,null,null,null,null,null,null,null,null,1980,15,29700]
[null,null,null,null,null,null,null,null,null,null,null,null,1981,15,29715]
[null,null,null,null,null,null,null,null,null,null,null,null,1982,15,29730]
[null,null,null,null,null,null,null,null,null,null,null,null,1983,15,29745]
[null,null,null,null,null,null,null,null,null,null,null,null,1984,15,29760]
[null,null,null,null,null,null,null,null,null,null,null,null,1985,15,29775]
[null,null,null,null,null,null,null,null,null,null,null,null,1986,15,29790]
[null,null,null,null,null,null,null,null,null,null,null,null,1987,15,29805]
[null,null,null,null,null,null,null,null,null,null,null,null,1988,15,29820]
[null,null,null,null,null,null,null,null,null,null,null,null,1989,15,29835]
[null,null,null,null,null,null,null,null,null,null,null,null,1990,15,{"$f":"+N1935*M1935","v":29850}]
[null,null,null,null,null,null,null,null,null,null,null,null,1991,15,29865]
[null,null,null,null,null,null,null,null,null,null,null,null,1992,15,29880]
[null,null,null,null,null,null,null,null,null,null,null,null,1993,15,29895]
[null,null,null,null,null,null,null,null,null,null,null,null,1994,15,29910]
[null,null,null,null,null,null,null,null,null,null,null,null,1995,15,29925]
[null,null,null,null,null,null,null,null,null,null,null,null,1996,15,29940]
[null,null,null,null,null,null,null,null,null,null,null,null,1997,15,29955]
[null,null,null,null,null,null,null,null,null,null,null,null,1998,15,29970]
[null,null,null,null,null,null,null,null,{"$f":"+I1943+100","v":100},null,{"$f":"+K1943","v":0},null,1999,15,29985]
[null,null,null,null,null,null,null,null,200,0.2,{"$f":"+K1944+(K1944*J1945)","v":0},null,2000,15,30000]
[null,null,null,null,null,null,null,null,300,null,{"$f":"+K1945","v":0},null,2001,15,30015]
[null,null,null,null,null,null,null,null,400,null,{"$f":"+K1946","v":0},null,2002,15,30030]
[null,null,null,null,null,null,null,null,500,null,0,null,2003,15,30045]
[null,null,null,null,null,null,null,null,600,null,0,null,2004,15,30060]
[null,null,null,null,null,null,null,null,700,null,0,null,2005,15,30075]
[null,null,null,null,null,null,null,null,800,null,0,null,2006,15,30090]
[null,null,null,null,null,null,null,null,900,null,0,null,2007,15,30105]
[null,null,null,null,null,null,null,null,1000,null,0,null,2008,15,30120]
[null,null,null,null,null,null,null,null,1100,null,0,null,2009,15,30135]
[null,null,null,null,null,null,null,null,1200,0.2,{"$f":"+K1954+(K1954*J1955)","v":0},null,2010,15,30150]
[null,null,null,null,null,null,null,null,1300,null,{"$f":"+K1955","v":0},null,2011,15,30165]
[null,null,null,null,null,null,null,null,1400,null,{"$f":"+K1956","v":0},null,2012,15,30180]
[null,null,null,null,null,null,null,null,1500,null,0,null,2013,15,30195]
[null,null,null,null,null,null,null,null,1600,null,0,null,2014,15,30210]
[null,null,null,null,null,null,null,null,1700,null,0,null,2015,15,30225]
[null,null,null,null,null,null,null,null,1800,null,0,null,2016,15,30240]
[null,null,null,null,null,null,null,null,1900,null,0,null,2017,15,30255]
[null,null,null,null,null,null,null,null,2000,null,0,null,2018,15,30270]
[null,null,null,null,null,null,null,null,2100,null,0,null,2019,15,30285]
[null,null,null,null,null,null,null,null,2200,0.2,{"$f":"+K1964+(K1964*J1965)","v":0},null,2020,15,30300]
[null,null,null,null,null,null,null,null,2300,null,{"$f":"+K1965","v":0},null,2021,15,30315]
[null,null,null,null,null,null,null,null,2400,null,{"$f":"+K1966","v":0},null,2022,15,30330]
[null,null,null,null,null,null,null,null,2500,null,0,null,2023,15,30345]
[null,null,null,null,null,null,null,null,2600,null,0,null,2024,15,30360]
[null,null,null,null,null,null,null,null,2700,null,0,null,2025,15,30375]
[null,null,null,null,null,null,null,null,2800,null,0,null,2026,15,30390]
[null,null,null,null,null,null,null,null,2900,null,0,null,2027,15,30405]
[null,null,null,null,null,null,null,null,3000,null,0,null,2028,15,30420]
[null,null,null,null,null,null,null,null,3100,null,0,null,2029,15,30435]
[null,null,null,null,null,null,null,null,3200,0.2,{"$f":"+K1974+(K1974*J1975)","v":0},null,2030,15,30450]
[null,null,null,null,null,null,null,null,3300,null,{"$f":"+K1975","v":0},null,2031,15,30465]
[null,null,null,null,null,null,null,null,3400,null,{"$f":"+K1976","v":0},null,2032,15,30480]
[null,null,null,null,null,null,null,null,3500,null,0,null,2033,15,30495]
[null,null,null,null,null,null,null,null,3600,null,0,null,2034,15,30510]
[null,null,null,null,null,null,null,null,3700,null,0,null,2035,15,30525]
[null,null,null,null,null,null,null,null,3800,null,0,null,2036,15,30540]
[null,null,null,null,null,null,null,null,3900,null,0,null,2037,15,30555]
[null,null,null,null,null,null,null,null,4000,null,0,null,2038,15,30570]
[null,null,null,null,null,null,null,null,4100,null,0,null,2039,15,30585]
[null,null,null,null,null,null,null,null,4200,0.2,{"$f":"+K1984+(K1984*J1985)","v":0},null,2040,15,30600]
[null,null,null,null,null,null,null,null,4300,null,{"$f":"+K1985","v":0},null,2041,15,30615]
[null,null,null,null,null,null,null,null,4400,null,{"$f":"+K1986","v":0},null,2042,15,30630]
[null,null,null,null,null,null,null,null,4500,null,0,null,2043,15,30645]
[null,null,null,null,null,null,null,null,4600,null,0,null,2044,15,30660]
[null,null,null,null,null,null,null,null,4700,null,0,null,2045,15,30675]
[null,null,null,null,null,null,null,null,4800,null,0,null,2046,15,30690]
[null,null,null,null,null,null,null,null,4900,null,0,null,2047,15,30705]
[null,null,null,null,null,null,null,null,5000,null,0,null,2048,15,30720]
[null,null,null,null,null,null,null,null,5100,null,0,null,2049,15,30735]
[null,null,null,null,null,null,null,null,5200,0.15,{"$f":"+K1994+(K1994*J1995)","v":0},null,2050,15,30750]
[null,null,null,null,null,null,null,null,5300,null,{"$f":"+K1995","v":0},null,2051,15,30765]
[null,null,null,null,null,null,null,null,5400,null,{"$f":"+K1996","v":0},null,2052,15,30780]
[null,null,null,null,null,null,null,null,5500,null,0,null,2053,15,30795]
[null,null,null,null,null,null,null,null,5600,null,0,null,2054,15,{"$f":"+N1999*M1999","v":30810}]
[null,null,null,null,null,null,null,null,5700,null,0,null,2055,15,{"$f":"+N2000*M2000","v":30825}]
[null,null,null,null,null,null,null,null,5800,null,0,null,2056,15,{"$f":"+N2001*M2001","v":30840}]
[null,null,null,null,null,null,null,null,5900,null,0]
[null,null,null,null,null,null,null,null,6000,null,0]
[null,null,null,null,null,null,null,null,6100,null,0]
[null,null,null,null,null,null,null,null,6200,0.2,{"$f":"+K2004+(K2004*J2005)","v":0}]
[null,null,null,null,null,null,null,null,6300,null,{"$f":"+K2005","v":0}]
[null,null,null,null,null,null,null,null,6400,null,{"$f":"+K2006","v":0}]
[null,null,null,null,null,null,null,null,{"$f":"+I2007+100","v":6500},null,0]
[null,null,null,null,null,null,null,null,6600,null,0]
[null,null,null,null,null,null,null,null,6700,null,0]
[null,null,null,null,null,null,null,null,6800,null,0]
[null,null,null,null,null,null,null,null,6900,null,0]
[null,null,null,null,null,null,null,null,7000,null,0]
[null,null,null,null,null,null,null,null,7100,null,0]
[null,null,null,null,null,null,null,null,7200,0.2,{"$f":"+K2014+(K2014*J2015)","v":0}]
[null,null,null,null,null,null,null,null,7300,null,{"$f":"+K2015","v":0}]
[null,null,null,null,null,null,null,null,7400,null,{"$f":"+K2016","v":0}]
[null,null,null,null,null,null,null,null,7500,null,0]
[null,null,null,null,null,null,null,null,7600,null,0]
[null,null,null,null,null,null,null,null,7700,null,0]
[null,null,null,null,null,null,null,null,7800,null,0]
[null,null,null,null,null,null,null,null,7900,null,0]
[null,null,null,null,null,null,null,null,8000,null,0]
[null,null,null,null,null,null,null,null,8100,null,0]
[null,null,null,null,null,null,null,null,8200,0.2,{"$f":"+K2024+(K2024*J2025)","v":0}]
[null,null,null,null,null,null,null,null,8300,null,{"$f":"+K2025","v":0}]
[null,null,null,null,null,null,null,null,8400,null,{"$f":"+K2026","v":0}]
[null,null,null,null,null,null,null,null,8500,null,0]
[null,null,null,null,null,null,null,null,8600,null,0]
[null,null,null,null,null,null,null,null,8700,null,0]
[null,null,null,null,null,null,null,null,8800,null,0]
[null,null,null,null,null,null,null,null,8900,null,0]
[null,null,null,null,null,null,null,null,9000,null,0]
[null,null,null,null,null,null,null,null,9100,null,0]
[null,null,null,null,null,null,null,null,9200,0.2,{"$f":"+K2034+(K2034*J2035)","v":0}]
[null,null,null,null,null,null,null,null,9300,null,{"$f":"+K2035","v":0}]
[null,null,null,null,null,null,null,null,9400,null,{"$f":"+K2036","v":0}]
[null,null,null,null,null,null,null,null,9500,null,0]
[null,null,null,null,null,null,null,null,9600,null,0]
[null,null,null,null,null,null,null,null,9700,null,0]
[null,null,null,null,null,null,null,null,9800,null,0]
[null,null,null,null,null,null,null,null,9900,null,0]
[null,null,null,null,null,null,null,null,10000,null,0]
[null,null,null,null,null,null,null,null,10100,null,0]
[null,null,null,null,null,null,null,null,10200,0.2,{"$f":"+K2044+(K2044*J2045)","v":0}]
[null,null,null,null,null,null,null,null,10300,null,{"$f":"+K2045","v":0}]
[null,null,null,null,null,null,null,null,10400,null,{"$f":"+K2046","v":0}]
[null,null,null,null,null,null,null,null,10500,null,0]
[null,null,null,null,null,null,null,null,10600,null,0]
[null,null,null,null,null,null,null,null,10700,null,0]
[null,null,null,null,null,null,null,null,10800,null,0]
[null,null,null,null,null,null,null,null,10900,null,0]
[null,null,null,null,null,null,null,null,11000,null,0]
[null,null,null,null,null,null,null,null,11100,null,0]
[null,null,null,null,null,null,null,null,11200,0.2,{"$f":"+K2054+(K2054*J2055)","v":0}]
[null,null,null,null,null,null,null,null,11300,null,{"$f":"+K2055","v":0}]
[null,null,null,null,null,null,null,null,11400,null,{"$f":"+K2056","v":0}]
[null,null,null,null,null,null,null,null,11500,null,0]
[null,null,null,null,null,null,null,null,11600,null,0]
[null,null,null,null,null,null,null,null,11700,null,0]
[null,null,null,null,null,null,null,null,11800,null,0]
[null,null,null,null,null,null,null,null,11900,null,0]
[null,null,null,null,null,null,null,null,12000,null,0]
[null,null,null,null,null,null,null,null,12100,null,0]
[null,null,null,null,null,null,null,null,12200,0.2,{"$f":"+K2064+(K2064*J2065)","v":0}]
[null,null,null,null,null,null,null,null,12300,null,{"$f":"+K2065","v":0}]
[null,null,null,null,null,null,null,null,12400,null,{"$f":"+K2066","v":0}]
[null,null,null,null,null,null,null,null,12500,null,0]
[null,null,null,null,null,null,null,null,12600,null,0]
[null,null,null,null,null,null,null,null,12700,null,0]
[null,null,null,null,null,null,null,null,12800,null,0]
[null,null,null,null,null,null,null,null,{"$f":"+I2071+100","v":12900},null,0]
[null,null,null,null,null,null,null,null,13000,null,0]
[null,null,null,null,null,null,null,null,13100,null,0]
[null,null,null,null,null,null,null,null,13200,0.2,{"$f":"+K2074+(K2074*J2075)","v":0}]
[null,null,null,null,null,null,null,null,13300,null,{"$f":"+K2075","v":0}]
[null,null,null,null,null,null,null,null,13400,null,{"$f":"+K2076","v":0}]
[null,null,null,null,null,null,null,null,13500,null,0]
[null,null,null,null,null,null,null,null,13600,null,0]
[null,null,null,null,null,null,null,null,13700,null,0]
[null,null,null,null,null,null,null,null,13800,null,0]
[null,null,null,null,null,null,null,null,13900,null,0]
[null,null,null,null,null,null,null,null,14000,null,0]
[null,null,null,null,null,null,null,null,14100,null,0]
[null,null,null,null,null,null,null,null,14200,0.2,{"$f":"+K2084+(K2084*J2085)","v":0}]
[null,null,null,null,null,null,null,null,14300,null,{"$f":"+K2085","v":0}]
[null,null,null,null,null,null,null,null,14400,null,{"$f":"+K2086","v":0}]
[null,null,null,null,null,null,null,null,14500,null,0]
[null,null,null,null,null,null,null,null,14600,null,0]
[null,null,null,null,null,null,null,null,14700,null,0]
[null,null,null,null,null,null,null,null,14800,null,0]
[null,null,null,null,null,null,null,null,14900,null,0]
[null,null,null,null,null,null,null,null,15000,null,0]
[null,null,null,null,null,null,null,null,15100,null,0]
[null,null,null,null,null,null,null,null,15200,0.2,{"$f":"+K2094+(K2094*J2095)","v":0}]
[null,null,null,null,null,null,null,null,15300,null,{"$f":"+K2095","v":0}]
[null,null,null,null,null,null,null,null,15400,null,{"$f":"+K2096","v":0}]
[null,null,null,null,null,null,null,null,15500,null,0]
[null,null,null,null,null,null,null,null,15600,null,0]
[null,null,null,null,null,null,null,null,15700,null,0]
[null,null,null,null,null,null,null,null,15800,null,0]
[null,null,null,null,null,null,null,null,15900,null,0]
[null,null,null,null,null,null,null,null,16000,null,0]
[null,null,null,null,null,null,null,null,16100,null,0]
[null,null,null,null,null,null,null,null,16200,0.2,{"$f":"+K2104+(K2104*J2105)","v":0}]
[null,null,null,null,null,null,null,null,16300,202,{"$f":"+J2106*I2106","v":3292600}]
[null,null,null,null,null,null,null,null,16400,203,3329200]
[null,null,null,null,null,null,null,null,16500,204,3366000]
[null,null,null,null,null,null,null,null,16600,205,3403000]
[null,null,null,null,null,null,null,null,16700,206,3440200]
[null,null,null,null,null,null,null,null,16800,207,3477600]
[null,null,null,null,null,null,null,null,16900,208,3515200]
[null,null,null,null,null,null,null,null,17000,209,3553000]
[null,null,null,null,null,null,null,null,17100,210,3591000]
[null,null,null,null,null,null,null,null,17200,211,3629200]
[null,null,null,null,null,null,null,null,17300,212,3667600]
[null,null,null,null,null,null,null,null,17400,213,3706200]
[null,null,null,null,null,null,null,null,17500,214,3745000]
[null,null,null,null,null,null,null,null,17600,215,3784000]
[null,null,null,null,null,null,null,null,17700,216,3823200]
[null,null,null,null,null,null,null,null,17800,217,3862600]
[null,null,null,null,null,null,null,null,17900,218,3902200]
[null,null,null,null,null,null,null,null,18000,219,3942000]
[null,null,null,null,null,null,null,null,18100,220,3982000]
[null,null,null,null,null,null,null,null,18200,221,4022200]
[null,null,null,null,null,null,null,null,18300,222,4062600]
[null,null,null,null,null,null,null,null,18400,223,4103200]
[null,null,null,null,null,null,null,null,18500,224,4144000]
[null,null,null,null,null,null,null,null,18600,225,4185000]
[null,null,null,null,null,null,null,null,18700,226,4226200]
[null,null,null,null,null,null,null,null,18800,227,4267600]
[null,null,null,null,null,null,null,null,18900,228,4309200]
[null,null,null,null,null,null,null,null,19000,229,4351000]
[null,null,null,null,null,null,null,null,19100,230,4393000]
[null,null,null,null,null,null,null,null,19200,231,4435200]
[null,null,null,null,null,null,null,null,{"$f":"+I2135+100","v":19300},232,4477600]
[null,null,null,null,null,null,null,null,19400,233,4520200]
[null,null,null,null,null,null,null,null,19500,234,4563000]
[null,null,null,null,null,null,null,null,19600,235,4606000]
[null,null,null,null,null,null,null,null,19700,236,4649200]
[null,null,null,null,null,null,null,null,19800,237,4692600]
[null,null,null,null,null,null,null,null,19900,238,4736200]
[null,null,null,null,null,null,null,null,20000,239,4780000]
[null,null,null,null,null,null,null,null,20100,240,4824000]
[null,null,null,null,null,null,null,null,20200,241,4868200]
[null,null,null,null,null,null,null,null,20300,242,4912600]
[null,null,null,null,null,null,null,null,20400,243,4957200]
[null,null,null,null,null,null,null,null,20500,244,5002000]
[null,null,null,null,null,null,null,null,20600,245,5047000]
[null,null,null,null,null,null,null,null,20700,246,5092200]
[null,null,null,null,null,null,null,null,20800,247,5137600]
[null,null,null,null,null,null,null,null,20900,248,5183200]
[null,null,null,null,null,null,null,null,21000,249,5229000]
[null,null,null,null,null,null,null,null,21100,250,5275000]
[null,null,null,null,null,null,null,null,21200,251,5321200]
[null,null,null,null,null,null,null,null,21300,252,5367600]
[null,null,null,null,null,null,null,null,21400,253,5414200]
[null,null,null,null,null,null,null,null,21500,254,5461000]
[null,null,null,null,null,null,null,null,21600,255,5508000]
[null,null,null,null,null,null,null,null,21700,256,5555200]
[null,null,null,null,null,null,null,null,21800,257,5602600]
[null,null,null,null,null,null,null,null,21900,258,5650200]
[null,null,null,null,null,null,null,null,22000,259,5698000]
[null,null,null,null,null,null,null,null,22100,260,5746000]
[null,null,null,null,null,null,null,null,22200,261,5794200]
[null,null,null,null,null,null,null,null,22300,262,5842600]
[null,null,null,null,null,null,null,null,22400,263,5891200]
[null,null,null,null,null,null,null,null,22500,264,5940000]
[null,null,null,null,null,null,null,null,22600,265,5989000]
[null,null,null,null,null,null,null,null,22700,266,{"$f":"+J2170*I2170","v":6038200}]
[null,null,null,null,null,null,null,null,22800,267,6087600]
[null,null,null,null,null,null,null,null,22900,268,6137200]
[null,null,null,null,null,null,null,null,23000,269,6187000]
[null,null,null,null,null,null,null,null,23100,270,6237000]
[null,null,null,null,null,null,null,null,23200,271,6287200]
[null,null,null,null,null,null,null,null,23300,272,6337600]
[null,null,null,null,null,null,null,null,23400,273,6388200]
[null,null,null,null,null,null,null,null,23500,274,6439000]
[null,null,null,null,null,null,null,null,23600,275,6490000]
[null,null,null,null,null,null,null,null,23700,276,6541200]
[null,null,null,null,null,null,null,null,23800,277,6592600]
[null,null,null,null,null,null,null,null,23900,278,6644200]
[null,null,null,null,null,null,null,null,24000,279,6696000]
[null,null,null,null,null,null,null,null,24100,280,6748000]
[null,null,null,null,null,null,null,null,24200,281,6800200]
[null,null,null,null,null,null,null,null,24300,282,6852600]
[null,null,null,null,null,null,null,null,24400,283,6905200]
[null,null,null,null,null,null,null,null,24500,284,6958000]
[null,null,null,null,null,null,null,null,24600,285,7011000]
[null,null,null,null,null,null,null,null,24700,286,7064200]
[null,null,null,null,null,null,null,null,24800,287,7117600]
[null,null,null,null,null,null,null,null,24900,288,7171200]
[null,null,null,null,null,null,null,null,25000,289,7225000]
[null,null,null,null,null,null,null,null,25100,290,7279000]
[null,null,null,null,null,null,null,null,25200,291,7333200]
[null,null,null,null,null,null,null,null,25300,292,7387600]
[null,null,null,null,null,null,null,null,25400,293,7442200]
[null,null,null,null,null,null,null,null,25500,294,7497000]
[null,null,null,null,null,null,null,null,25600,295,7552000]
[null,null,null,null,null,null,null,null,{"$f":"+I2199+100","v":25700},296,7607200]
[null,null,null,null,null,null,null,null,25800,297,7662600]
[null,null,null,null,null,null,null,null,25900,298,7718200]
[null,null,null,null,null,null,null,null,26000,299,7774000]
[null,null,null,null,null,null,null,null,26100,300,7830000]
[null,null,null,null,null,null,null,null,26200,301,7886200]
[null,null,null,null,null,null,null,null,26300,302,7942600]
[null,null,null,null,null,null,null,null,26400,303,7999200]
[null,null,null,null,null,null,null,null,26500,304,8056000]
[null,null,null,null,null,null,null,null,26600,305,8113000]
[null,null,null,null,null,null,null,null,26700,306,8170200]
[null,null,null,null,null,null,null,null,26800,307,8227600]
[null,null,null,null,null,null,null,null,26900,308,8285200]
[null,null,null,null,null,null,null,null,27000,309,8343000]
[null,null,null,null,null,null,null,null,27100,310,8401000]
[null,null,null,null,null,null,null,null,27200,311,8459200]
[null,null,null,null,null,null,null,null,27300,312,8517600]
[null,null,null,null,null,null,null,null,27400,313,8576200]
[null,null,null,null,null,null,null,null,27500,314,8635000]
[null,null,null,null,null,null,null,null,27600,315,8694000]
[null,null,null,null,null,null,null,null,27700,316,8753200]
[null,null,null,null,null,null,null,null,27800,317,8812600]
[null,null,null,null,null,null,null,null,27900,318,8872200]
[null,null,null,null,null,null,null,null,28000,319,8932000]
[null,null,null,null,null,null,null,null,28100,320,8992000]
[null,null,null,null,null,null,null,null,28200,321,9052200]
[null,null,null,null,null,null,null,null,28300,322,9112600]
[null,null,null,null,null,null,null,null,28400,323,9173200]
[null,null,null,null,null,null,null,null,28500,324,9234000]
[null,null,null,null,null,null,null,null,28600,325,9295000]
[null,null,null,null,null,null,null,null,28700,326,9356200]
[null,null,null,null,null,null,null,null,28800,327,9417600]
[null,null,null,null,null,null,null,null,28900,328,9479200]
[null,null,null,null,null,null,null,null,29000,329,9541000]
[null,null,null,null,null,null,null,null,29100,330,{"$f":"+J2234*I2234","v":9603000}]
[null,null,null,null,null,null,null,null,29200,331,9665200]
[null,null,null,null,null,null,null,null,29300,332,9727600]
[null,null,null,null,null,null,null,null,29400,333,9790200]
[null,null,null,null,null,null,null,null,29500,334,9853000]
[null,null,null,null,null,null,null,null,29600,335,9916000]
[null,null,null,null,null,null,null,null,29700,336,9979200]
[null,null,null,null,null,null,null,null,29800,337,10042600]
[null,null,null,null,null,null,null,null,29900,338,10106200]
[null,null,null,null,null,null,null,null,30000,339,10170000]
[null,null,null,null,null,null,null,null,30100,340,10234000]
[null,null,null,null,null,null,null,null,30200,341,10298200]
[null,null,null,null,null,null,null,null,30300,342,10362600]
[null,null,null,null,null,null,null,null,30400,343,10427200]
[null,null,null,null,null,null,null,null,30500,344,10492000]
[null,null,null,null,null,null,null,null,30600,345,10557000]
[null,null,null,null,null,null,null,null,30700,346,10622200]
[null,null,null,null,null,null,null,null,30800,347,10687600]
[null,null,null,null,null,null,null,null,30900,348,10753200]
[null,null,null,null,null,null,null,null,31000,349,10819000]
[null,null,null,null,null,null,null,null,31100,350,10885000]
[null,null,null,null,null,null,null,null,31200,351,10951200]
[null,null,null,null,null,null,null,null,31300,352,11017600]
[null,null,null,null,null,null,null,null,31400,353,11084200]
[null,null,null,null,null,null,null,null,31500,354,11151000]
[null,null,null,null,null,null,null,null,31600,355,11218000]
[null,null,null,null,null,null,null,null,31700,356,11285200]
[null,null,null,null,null,null,null,null,31800,357,11352600]
[null,null,null,null,null,null,null,null,31900,358,11420200]
[null,null,null,null,null,null,null,null,32000,359,11488000]
[null,null,null,null,null,null,null,null,{"$f":"+I2263+100","v":32100},360,11556000]
[null,null,null,null,null,null,null,null,32200,361,11624200]
[null,null,null,null,null,null,null,null,32300,362,11692600]
[null,null,null,null,null,null,null,null,32400,363,11761200]
[null,null,null,null,null,null,null,null,32500,364,11830000]
[null,null,null,null,null,null,null,null,32600,365,11899000]
[null,null,null,null,null,null,null,null,32700,366,11968200]
[null,null,null,null,null,null,null,null,32800,367,12037600]
[null,null,null,null,null,null,null,null,32900,368,12107200]
[null,null,null,null,null,null,null,null,33000,369,12177000]
[null,null,null,null,null,null,null,null,33100,370,12247000]
[null,null,null,null,null,null,null,null,33200,371,12317200]
[null,null,null,null,null,null,null,null,33300,372,12387600]
[null,null,null,null,null,null,null,null,33400,373,12458200]
[null,null,null,null,null,null,null,null,33500,374,12529000]
[null,null,null,null,null,null,null,null,33600,375,12600000]
[null,null,null,null,null,null,null,null,33700,376,12671200]
[null,null,null,null,null,null,null,null,33800,377,12742600]
[null,null,null,null,null,null,null,null,33900,378,12814200]
[null,null,null,null,null,null,null,null,34000,379,12886000]
[null,null,null,null,null,null,null,null,34100,380,12958000]
[null,null,null,null,null,null,null,null,34200,381,13030200]
[null,null,null,null,null,null,null,null,34300,382,13102600]
[null,null,null,null,null,null,null,null,34400,383,13175200]
[null,null,null,null,null,null,null,null,34500,384,13248000]
[null,null,null,null,null,null,null,null,34600,385,13321000]
[null,null,null,null,null,null,null,null,34700,386,13394200]
[null,null,null,null,null,null,null,null,34800,387,13467600]
[null,null,null,null,null,null,null,null,34900,388,13541200]
[null,null,null,null,null,null,null,null,35000,389,13615000]
[null,null,null,null,null,null,null,null,35100,390,13689000]
[null,null,null,null,null,null,null,null,35200,391,13763200]
[null,null,null,null,null,null,null,null,35300,392,13837600]
[null,null,null,null,null,null,null,null,35400,393,13912200]
[null,null,null,null,null,null,null,null,35500,394,{"$f":"+J2298*I2298","v":13987000}]
[null,null,null,null,null,null,null,null,35600,395,14062000]
[null,null,null,null,null,null,null,null,35700,396,14137200]
[null,null,null,null,null,null,null,null,35800,397,14212600]
[null,null,null,null,null,null,null,null,35900,398,14288200]
[null,null,null,null,null,null,null,null,36000,399,14364000]
[null,null,null,null,null,null,null,null,36100,400,14440000]
[null,null,null,null,null,null,null,null,36200,401,14516200]
[null,null,null,null,null,null,null,null,36300,402,14592600]
[null,null,null,null,null,null,null,null,36400,403,14669200]
[null,null,null,null,null,null,null,null,36500,404,14746000]
[null,null,null,null,null,null,null,null,36600,405,14823000]
[null,null,null,null,null,null,null,null,36700,406,14900200]
[null,null,null,null,null,null,null,null,36800,407,14977600]
[null,null,null,null,null,null,null,null,36900,408,15055200]
[null,null,null,null,null,null,null,null,37000,409,15133000]
[null,null,null,null,null,null,null,null,37100,410,15211000]
[null,null,null,null,null,null,null,null,37200,411,15289200]
[null,null,null,null,null,null,null,null,37300,412,15367600]
[null,null,null,null,null,null,null,null,37400,413,15446200]
[null,null,null,null,null,null,null,null,37500,414,15525000]
[null,null,null,null,null,null,null,null,37600,415,15604000]
[null,null,null,null,null,null,null,null,37700,416,15683200]
[null,null,null,null,null,null,null,null,37800,417,15762600]
[null,null,null,null,null,null,null,null,37900,418,15842200]
[null,null,null,null,null,null,null,null,38000,419,15922000]
[null,null,null,null,null,null,null,null,38100,420,16002000]
[null,null,null,null,null,null,null,null,38200,421,16082200]
[null,null,null,null,null,null,null,null,38300,422,16162600]
[null,null,null,null,null,null,null,null,38400,423,16243200]
[null,null,null,null,null,null,null,null,{"$f":"+I2327+100","v":38500},424,16324000]
[null,null,null,null,null,null,null,null,38600,425,16405000]
[null,null,null,null,null,null,null,null,38700,426,16486200]
[null,null,null,null,null,null,null,null,38800,427,16567600]
[null,null,null,null,null,null,null,null,38900,428,16649200]
[null,null,null,null,null,null,null,null,39000,429,16731000]
[null,null,null,null,null,null,null,null,39100,430,16813000]
[null,null,null,null,null,null,null,null,39200,431,16895200]
[null,null,null,null,null,null,null,null,39300,432,16977600]
[null,null,null,null,null,null,null,null,39400,433,17060200]
[null,null,null,null,null,null,null,null,39500,434,17143000]
[null,null,null,null,null,null,null,null,39600,435,17226000]
[null,null,null,null,null,null,null,null,39700,436,17309200]
[null,null,null,null,null,null,null,null,39800,437,17392600]
[null,null,null,null,null,null,null,null,39900,438,17476200]
[null,null,null,null,null,null,null,null,40000,439,17560000]
[null,null,null,null,null,null,null,null,40100,440,17644000]
[null,null,null,null,null,null,null,null,40200,441,17728200]
[null,null,null,null,null,null,null,null,40300,442,17812600]
[null,null,null,null,null,null,null,null,40400,443,17897200]
[null,null,null,null,null,null,null,null,40500,444,17982000]
[null,null,null,null,null,null,null,null,40600,445,18067000]
[null,null,null,null,null,null,null,null,40700,446,18152200]
[null,null,null,null,null,null,null,null,40800,447,18237600]
[null,null,null,null,null,null,null,null,40900,448,18323200]
[null,null,null,null,null,null,null,null,41000,449,18409000]
[null,null,null,null,null,null,null,null,41100,450,18495000]
[null,null,null,null,null,null,null,null,41200,451,18581200]
[null,null,null,null,null,null,null,null,41300,452,18667600]
[null,null,null,null,null,null,null,null,41400,453,18754200]
[null,null,null,null,null,null,null,null,41500,454,18841000]
[null,null,null,null,null,null,null,null,41600,455,18928000]
[null,null,null,null,null,null,null,null,41700,456,19015200]
[null,null,null,null,null,null,null,null,41800,457,19102600]
[null,null,null,null,null,null,null,null,41900,458,{"$f":"+J2362*I2362","v":19190200}]
[null,null,null,null,null,null,null,null,42000,459,19278000]
[null,null,null,null,null,null,null,null,42100,460,19366000]
[null,null,null,null,null,null,null,null,42200,461,19454200]
[null,null,null,null,null,null,null,null,42300,462,19542600]
[null,null,null,null,null,null,null,null,42400,463,19631200]
[null,null,null,null,null,null,null,null,42500,464,19720000]
[null,null,null,null,null,null,null,null,42600,465,19809000]
[null,null,null,null,null,null,null,null,42700,466,19898200]
[null,null,null,null,null,null,null,null,42800,467,19987600]
[null,null,null,null,null,null,null,null,42900,468,20077200]
[null,null,null,null,null,null,null,null,43000,469,20167000]
[null,null,null,null,null,null,null,null,43100,470,20257000]
[null,null,null,null,null,null,null,null,43200,471,20347200]
[null,null,null,null,null,null,null,null,43300,472,20437600]
[null,null,null,null,null,null,null,null,43400,473,20528200]
[null,null,null,null,null,null,null,null,43500,474,20619000]
[null,null,null,null,null,null,null,null,43600,475,20710000]
[null,null,null,null,null,null,null,null,43700,476,20801200]
[null,null,null,null,null,null,null,null,43800,477,20892600]
[null,null,null,null,null,null,null,null,43900,478,20984200]
[null,null,null,null,null,null,null,null,44000,479,21076000]
[null,null,null,null,null,null,null,null,44100,480,21168000]
[null,null,null,null,null,null,null,null,44200,481,21260200]
[null,null,null,null,null,null,null,null,44300,482,21352600]
[null,null,null,null,null,null,null,null,44400,483,21445200]
[null,null,null,null,null,null,null,null,44500,484,21538000]
[null,null,null,null,null,null,null,null,44600,485,21631000]
[null,null,null,null,null,null,null,null,44700,486,21724200]
[null,null,null,null,null,null,null,null,44800,487,21817600]
[null,null,null,null,null,null,null,null,{"$f":"+I2391+100","v":44900},488,21911200]
[null,null,null,null,null,null,null,null,{"$f":"+I2392+100","v":45000},489,22005000]
[null,null,null,null,null,null,null,null,{"$f":"+I2393+100","v":45100},490,22099000]

{"sheet":"REGISTROS","index":3,"n_rows":10,"n_cols":241,"rows_kept":10,"cut":false,"hidden":true,"merged":[]}
["COTIZACION","FECHA",null,"PROPIETARIO:",null,"UBICACIÓN DE LA OBRA:",null,"TRABAJOS A REALIZAR",null,null,null,"SUPERFICIE DEL TERRENO  EN M2",null,"DENSIDAD HABITACIONAL",null,null,"FORMA TERRENO",null,"TOPOGRAFIA PLANA O CON PENDIENTE",null,"PROXIMIDAD URBANA",null,"SUPERFICIE CONSTRUIDA EN M2",null,"BARDEO   ANOTAR METROS LINEALES Y ALTURA",null,"SUPERFICIE A CONSTRUIR EN M2","CLASIFICACION DE LA OBRA POR GENERO",null,"SALARIO MINIMO DIARIO DE LA REGION","COSTO BASE POR METRO CUADRADO DE CONSTRUCCION","FACTOR REGIONAL",null,"NUMERO DE SEMANAS DE EJECUCION DE OBRA",null,"NUMERO DE VISITAS SEMANAL A LA OBRA",null,"COSTO APROXIMADO TOTAL DE OBRA",null,"AJUSTE",null,"HONORARIOS POR DISEÑO ARQUITECTONICO ","LEVANTAMIENTO TOPOGRAFICO TERRENO (PLANIMETRIA)","LEVANTAMIENTO TOPOGRAFICO TERRENO (CURVAS DE NIVEL)","LEVANTAMIENTO GEOREFERENCIADO","LEVANTAMIENTO TOPOGRAFICO CONSTRUCCION","LEVANTAMIENTO TOPOGRAFICO INSTALACIONES","TRAMITE DE CLAVE CATASTRAL","TRAMITE DE NUMERO OFICIAL","TRAMITE DE ALINEAMIENTO","FACTIBILIDAD DE USO DE SUELO","TRAMITE BOMBEROS REVISION PROYECTO","TRAMITE PROTECCION CIVIL ","TRAMITE DE AUTORIZACION MUNICIPAL DE IMPACTO AMBIENTAL","TRAMITE  DE MANIFESTACION DE  IMPACTO AMBIENTAL","USO : ","MODALIDAD : ","UBICACIÓN  :  ","TRAMITE DE  POLICIA VIAL (MOVILIDAD, IMPACTO VIAL)","FACTIBILIDAD CFE","FACTIBILIDAD JAPAMI","TRAMITE USO DE SUELO","REGULARIZACION (ANTES INCORPORACION URBANISTICA)",null,"PROYECTO DE DIVISION O FUSION  INDICAR No. DE FRACCIONES","PROYECTO DE DIVISION O FUSION EN FRACCIONAMIENTOS O REPETITIVOS","TRAMITE PERMISO BARDEO","HONORARIOS POR DISEÑO URBANO","PERITO ESPECIALIZADO EN ESTRUCTURAS DE ACERO","PERITO ESPECIALIZADO EN ESTRUCTURAS DE CONCRETO","PERITO ESPECIALIZADO EN DISEÑO URBANO","PERITO ESPECIALIZADO ","PERITO ESPECIALIZADO","HONORARIOS POR CONSULTORIA Y RESPONSIVA",null,null,null,null,null,"HONORARIOS POR DISEÑO ARQUITECTONICO ","LEVANTAMIENTO TOPOGRAFICO TERRENO (PLANIMETRIA)","LEVANTAMIENTO TOPOGRAFICO TERRENO (CURVAS DE NIVEL)","LEVANTAMIENTO GEOREFERENCIADO","LEVANTAMIENTO TOPOGRAFICO CONSTRUCCION","LEVANTAMIENTO TOPOGRAFICO INSTALACIONES","TRAMITE DE CLAVE CATASTRAL","TRAMITE DE NUMERO OFICIAL","TRAMITE DE ALINEAMIENTO","FACTIBILIDAD DE USO DE SUELO","TRAMITE BOMBEROS REVISION PROYECTO","TRAMITE PROTECCION CIVIL ","TRAMITE DE AUTORIZACION MUNICIPAL DE IMPACTO AMBIENTAL","TRAMITE  DE MANIFESTACION DE  IMPACTO AMBIENTAL","USO : ","MODALIDAD : ","UBICACIÓN  :  ","TRAMITE DE  POLICIA VIAL (MOVILIDAD, IMPACTO VIAL)","FACTIBILIDAD CFE","FACTIBILIDAD JAPAMI","TRAMITE USO DE SUELO","REGULARIZACION (ANTES INCORPORACION URBANISTICA)","DICTAMEN ESTRUCTURAL","PROYECTO DE DIVISION O FUSION  INDICAR No. DE FRACCIONES","PROYECTO DE DIVISION O FUSION EN FRACCIONAMIENTOS O REPETITIVOS","TRAMITE PERMISO BARDEO","HONORARIOS POR DISEÑO URBANO","PERITO ESPECIALIZADO EN ESTRUCTURAS DE ACERO","PERITO ESPECIALIZADO EN ESTRUCTURAS DE CONCRETO","PERITO ESPECIALIZADO EN DISEÑO URBANO","PERITO ESPECIALIZADO ","PERITO ESPECIALIZADO","HONORARIOS POR CONSULTORIA Y RESPONSIVA",null,"TOTAL HONORARIOS",null,null,"IVA",null,null,"GRAN TOTAL HONORARIOS",null,{"$f":"+IF([1]CONSULTARCOTIZACION!F2=\"\",\" \",[1]CONSULTARCOTIZACION!$F$2)","v":" "},"FECHA",null,"PROPIETARIO:",null,"UBICACIÓN DE LA OBRA:",null,"TRABAJOS A REALIZAR",null,null,null,"SUPERFICIE DEL TERRENO  EN M2",null,"DENSIDAD HABITACIONAL",null,null,"FORMA TERRENO",null,"TOPOGRAFIA PLANA O CON PENDIENTE",null,"PROXIMIDAD URBANA",null,"SUPERFICIE CONSTRUIDA EN M2",null,"BARDEO   ANOTAR METROS LINEALES Y ALTURA",null,"SUPERFICIE A CONSTRUIR EN M2","CLASIFICACION DE LA OBRA POR GENERO",null,"SALARIO MINIMO DIARIO DE LA REGION","COSTO BASE POR METRO CUADRADO DE CONSTRUCCION","FACTOR REGIONAL",null,"NUMERO DE SEMANAS DE EJECUCION DE OBRA",null,"NUMERO DE VISITAS SEMANAL A LA OBRA",null,"COSTO APROXIMADO TOTAL DE OBRA",null,"AJUSTE",null,"HONORARIOS POR DISEÑO ARQUITECTONICO ","LEVANTAMIENTO TOPOGRAFICO TERRENO (PLANIMETRIA)","LEVANTAMIENTO TOPOGRAFICO TERRENO (CURVAS DE NIVEL)","LEVANTAMIENTO GEOREFERENCIADO","LEVANTAMIENTO TOPOGRAFICO CONSTRUCCION","LEVANTAMIENTO TOPOGRAFICO INSTALACIONES","TRAMITE DE CLAVE CATASTRAL","TRAMITE DE NUMERO OFICIAL","TRAMITE DE ALINEAMIENTO","FACTIBILIDAD DE USO DE SUELO","TRAMITE BOMBEROS REVISION PROYECTO","TRAMITE PROTECCION CIVIL ","TRAMITE DE AUTORIZACION MUNICIPAL DE IMPACTO AMBIENTAL","TRAMITE  DE MANIFESTACION DE  IMPACTO AMBIENTAL","USO : ","MODALIDAD : ","UBICACIÓN  :  ","TRAMITE DE  POLICIA VIAL (MOVILIDAD, IMPACTO VIAL)","FACTIBILIDAD CFE","FACTIBILIDAD JAPAMI","TRAMITE USO DE SUELO","REGULARIZACION (ANTES INCORPORACION URBANISTICA)",null,"PROYECTO DE DIVISION O FUSION  INDICAR No. DE FRACCIONES","PROYECTO DE DIVISION O FUSION EN FRACCIONAMIENTOS O REPETITIVOS","TRAMITE PERMISO BARDEO","HONORARIOS POR DISEÑO URBANO","PERITO ESPECIALIZADO EN ESTRUCTURAS DE ACERO","PERITO ESPECIALIZADO EN ESTRUCTURAS DE CONCRETO","PERITO ESPECIALIZADO EN DISEÑO URBANO","PERITO ESPECIALIZADO ","PERITO ESPECIALIZADO","HONORARIOS POR CONSULTORIA Y RESPONSIVA",null,null,null,null,null,"HONORARIOS POR DISEÑO ARQUITECTONICO ","LEVANTAMIENTO TOPOGRAFICO TERRENO (PLANIMETRIA)","LEVANTAMIENTO TOPOGRAFICO TERRENO (CURVAS DE NIVEL)","LEVANTAMIENTO GEOREFERENCIADO","LEVANTAMIENTO TOPOGRAFICO CONSTRUCCION","LEVANTAMIENTO TOPOGRAFICO INSTALACIONES","TRAMITE DE CLAVE CATASTRAL","TRAMITE DE NUMERO OFICIAL","TRAMITE DE ALINEAMIENTO","FACTIBILIDAD DE USO DE SUELO","TRAMITE BOMBEROS REVISION PROYECTO","TRAMITE PROTECCION CIVIL ","TRAMITE DE AUTORIZACION MUNICIPAL DE IMPACTO AMBIENTAL","TRAMITE  DE MANIFESTACION DE  IMPACTO AMBIENTAL","USO : ","MODALIDAD : ","UBICACIÓN  :  ","TRAMITE DE  POLICIA VIAL (MOVILIDAD, IMPACTO VIAL)","FACTIBILIDAD CFE","FACTIBILIDAD JAPAMI","TRAMITE USO DE SUELO","REGULARIZACION (ANTES INCORPORACION URBANISTICA)","DICTAMEN ESTRUCTURAL","PROYECTO DE DIVISION O FUSION  INDICAR No. DE FRACCIONES","PROYECTO DE DIVISION O FUSION EN FRACCIONAMIENTOS O REPETITIVOS","TRAMITE PERMISO BARDEO","HONORARIOS POR DISEÑO URBANO","PERITO ESPECIALIZADO EN ESTRUCTURAS DE ACERO","PERITO ESPECIALIZADO EN ESTRUCTURAS DE CONCRETO","PERITO ESPECIALIZADO EN DISEÑO URBANO","PERITO ESPECIALIZADO ","PERITO ESPECIALIZADO","HONORARIOS POR CONSULTORIA Y RESPONSIVA",null,"TOTAL HONORARIOS",null,null,"IVA",null,null,"GRAN TOTAL HONORARIOS"]
[1,"2018-03-19",null,null,null,null,null,null,null,null,null,null,null,null,null,null,null,null,null,null,null,null,null,null,null,null,null,null,null,88.36,5990,0.88500000000000001,null," ",null,null,null," ",null,0,null,null,null,null,null,null,null," "," "," "," ",null,null,null,"MANIFESTACION DE IMPACTO AMBIENTAL"," "," "," "," ",null,null,null,"RESPONSIVA TECNICA","DICTAMEN ESTRUCTURAL",0,0," ",null,null,null,null,null,null,null,null,null,null,null,null," "," "," "," "," "," "," "," "," "," "," "," "," "," ",null,null,null," "," "," "," "," "," "," "," "," "," ",0,0,0,0,0," ",null,0,null,null,0,null,null,0,null,{"$f":"VLOOKUP($DR$1,$A:$DP,1,FALSE)","v":{"$error":"#N/A"}},{"$f":"VLOOKUP($DR$1,$A:$DP,2,FALSE)","v":{"$error":"#N/A"}},{"$f":"VLOOKUP($DR$1,$A:$DP,3,FALSE)","v":{"$error":"#N/A"}},{"$f":"VLOOKUP($DR$1,$A:$DP,4,FALSE)","v":{"$error":"#N/A"}},{"$f":"VLOOKUP($DR$1,$A:$DP,5,FALSE)","v":{"$error":"#N/A"}},{"$f":"VLOOKUP($DR$1,$A:$DP,6,FALSE)","v":{"$error":"#N/A"}},{"$f":"VLOOKUP($DR$1,$A:$DP,7,FALSE)","v":{"$error":"#N/A"}},{"$f":"VLOOKUP($DR$1,$A:$DP,8,FALSE)","v":{"$error":"#N/A"}},{"$f":"VLOOKUP($DR$1,$A:$DP,9,FALSE)","v":{"$error":"#N/A"}},{"$f":"VLOOKUP($DR$1,$A:$DP,10,FALSE)","v":{"$error":"#N/A"}},{"$f":"VLOOKUP($DR$1,$A:$DP,11,FALSE)","v":{"$error":"#N/A"}},{"$f":"VLOOKUP($DR$1,$A:$DP,12,FALSE)","v":{"$error":"#N/A"}},{"$f":"VLOOKUP($DR$1,$A:$DP,13,FALSE)","v":{"$error":"#N/A"}},{"$f":"VLOOKUP($DR$1,$A:$DP,14,FALSE)","v":{"$error":"#N/A"}},{"$f":"VLOOKUP($DR$1,$A:$DP,15,FALSE)","v":{"$error":"#N/A"}},{"$f":"VLOOKUP($DR$1,$A:$DP,16,FALSE)","v":{"$error":"#N/A"}},{"$f":"VLOOKUP($DR$1,$A:$DP,17,FALSE)","v":{"$error":"#N/A"}},{"$f":"VLOOKUP($DR$1,$A:$DP,18,FALSE)","v":{"$error":"#N/A"}},{"$f":"VLOOKUP($DR$1,$A:$DP,19,FALSE)","v":{"$error":"#N/A"}},{"$f":"VLOOKUP($DR$1,$A:$DP,20,FALSE)","v":{"$error":"#N/A"}},{"$f":"VLOOKUP($DR$1,$A:$DP,21,FALSE)","v":{"$error":"#N/A"}},{"$f":"VLOOKUP($DR$1,$A:$DP,22,FALSE)","v":{"$error":"#N/A"}},{"$f":"VLOOKUP($DR$1,$A:$DP,23,FALSE)","v":{"$error":"#N/A"}},{"$f":"VLOOKUP($DR$1,$A:$DP,24,FALSE)","v":{"$error":"#N/A"}},{"$f":"VLOOKUP($DR$1,$A:$DP,25,FALSE)","v":{"$error":"#N/A"}},{"$f":"VLOOKUP($DR$1,$A:$DP,26,FALSE)","v":{"$error":"#N/A"}},{"$f":"VLOOKUP($DR$1,$A:$DP,27,FALSE)","v":{"$error":"#N/A"}},{"$f":"VLOOKUP($DR$1,$A:$DP,28,FALSE)","v":{"$error":"#N/A"}},{"$f":"VLOOKUP($DR$1,$A:$DP,29,FALSE)","v":{"$error":"#N/A"}},{"$f":"VLOOKUP($DR$1,$A:$DP,30,FALSE)","v":{"$error":"#N/A"}},{"$f":"VLOOKUP($DR$1,$A:$DP,31,FALSE)","v":{"$error":"#N/A"}},{"$f":"VLOOKUP($DR$1,$A:$DP,32,FALSE)","v":{"$error":"#N/A"}},{"$f":"VLOOKUP($DR$1,$A:$DP,33,FALSE)","v":{"$error":"#N/A"}},{"$f":"VLOOKUP($DR$1,$A:$DP,34,FALSE)","v":{"$error":"#N/A"}},{"$f":"VLOOKUP($DR$1,$A:$DP,35,FALSE)","v":{"$error":"#N/A"}},{"$f":"VLOOKUP($DR$1,$A:$DP,36,FALSE)","v":{"$error":"#N/A"}},{"$f":"VLOOKUP($DR$1,$A:$DP,37,FALSE)","v":{"$error":"#N/A"}},{"$f":"VLOOKUP($DR$1,$A:$DP,38,FALSE)","v":{"$error":"#N/A"}},{"$f":"VLOOKUP($DR$1,$A:$DP,39,FALSE)","v":{"$error":"#N/A"}},{"$f":"VLOOKUP($DR$1,$A:$DP,40,FALSE)","v":{"$error":"#N/A"}},{"$f":"VLOOKUP($DR$1,$A:$DP,41,FALSE)","v":{"$error":"#N/A"}},{"$f":"VLOOKUP($DR$1,$A:$DP,42,FALSE)","v":{"$error":"#N/A"}},{"$f":"VLOOKUP($DR$1,$A:$DP,43,FALSE)","v":{"$error":"#N/A"}},{"$f":"VLOOKUP($DR$1,$A:$DP,44,FALSE)","v":{"$error":"#N/A"}},{"$f":"VLOOKUP($DR$1,$A:$DP,45,FALSE)","v":{"$error":"#N/A"}},{"$f":"VLOOKUP($DR$1,$A:$DP,46,FALSE)","v":{"$error":"#N/A"}},{"$f":"VLOOKUP($DR$1,$A:$DP,47,FALSE)","v":{"$error":"#N/A"}},{"$f":"VLOOKUP($DR$1,$A:$DP,48,FALSE)","v":{"$error":"#N/A"}},{"$f":"VLOOKUP($DR$1,$A:$DP,49,FALSE)","v":{"$error":"#N/A"}},{"$f":"VLOOKUP($DR$1,$A:$DP,50,FALSE)","v":{"$error":"#N/A"}},{"$f":"VLOOKUP($DR$1,$A:$DP,51,FALSE)","v":{"$error":"#N/A"}},{"$f":"VLOOKUP($DR$1,$A:$DP,52,FALSE)","v":{"$error":"#N/A"}},{"$f":"VLOOKUP($DR$1,$A:$DP,53,FALSE)","v":{"$error":"#N/A"}},{"$f":"VLOOKUP($DR$1,$A:$DP,54,FALSE)","v":{"$error":"#N/A"}},{"$f":"VLOOKUP($DR$1,$A:$DP,55,FALSE)","v":{"$error":"#N/A"}},{"$f":"VLOOKUP($DR$1,$A:$DP,56,FALSE)","v":{"$error":"#N/A"}},{"$f":"VLOOKUP($DR$1,$A:$DP,57,FALSE)","v":{"$error":"#N/A"}},{"$f":"VLOOKUP($DR$1,$A:$DP,58,FALSE)","v":{"$error":"#N/A"}},{"$f":"VLOOKUP($DR$1,$A:$DP,59,FALSE)","v":{"$error":"#N/A"}},{"$f":"VLOOKUP($DR$1,$A:$DP,60,FALSE)","v":{"$error":"#N/A"}},{"$f":"VLOOKUP($DR$1,$A:$DP,61,FALSE)","v":{"$error":"#N/A"}},{"$f":"VLOOKUP($DR$1,$A:$DP,62,FALSE)","v":{"$error":"#N/A"}},{"$f":"VLOOKUP($DR$1,$A:$DP,63,FALSE)","v":{"$error":"#N/A"}},{"$f":"VLOOKUP($DR$1,$A:$DP,64,FALSE)","v":{"$error":"#N/A"}},{"$f":"VLOOKUP($DR$1,$A:$DP,65,FALSE)","v":{"$error":"#N/A"}},{"$f":"VLOOKUP($DR$1,$A:$DP,66,FALSE)","v":{"$error":"#N/A"}},{"$f":"VLOOKUP($DR$1,$A:$DP,67,FALSE)","v":{"$error":"#N/A"}},{"$f":"VLOOKUP($DR$1,$A:$DP,68,FALSE)","v":{"$error":"#N/A"}},{"$f":"VLOOKUP($DR$1,$A:$DP,69,FALSE)","v":{"$error":"#N/A"}},{"$f":"VLOOKUP($DR$1,$A:$DP,70,FALSE)","v":{"$error":"#N/A"}},{"$f":"VLOOKUP($DR$1,$A:$DP,71,FALSE)","v":{"$error":"#N/A"}},{"$f":"VLOOKUP($DR$1,$A:$DP,72,FALSE)","v":{"$error":"#N/A"}},{"$f":"VLOOKUP($DR$1,$A:$DP,73,FALSE)","v":{"$error":"#N/A"}},{"$f":"VLOOKUP($DR$1,$A:$DP,74,FALSE)","v":{"$error":"#N/A"}},{"$f":"VLOOKUP($DR$1,$A:$DP,75,FALSE)","v":{"$error":"#N/A"}},{"$f":"VLOOKUP($DR$1,$A:$DP,76,FALSE)","v":{"$error":"#N/A"}},{"$f":"VLOOKUP($DR$1,$A:$DP,77,FALSE)","v":{"$error":"#N/A"}},{"$f":"VLOOKUP($DR$1,$A:$DP,78,FALSE)","v":{"$error":"#N/A"}},{"$f":"VLOOKUP($DR$1,$A:$DP,79,FALSE)","v":{"$error":"#N/A"}},{"$f":"VLOOKUP($DR$1,$A:$DP,80,FALSE)","v":{"$error":"#N/A"}},{"$f":"VLOOKUP($DR$1,$A:$DP,81,FALSE)","v":{"$error":"#N/A"}},{"$f":"VLOOKUP($DR$1,$A:$DP,82,FALSE)","v":{"$error":"#N/A"}},{"$f":"VLOOKUP($DR$1,$A:$DP,83,FALSE)","v":{"$error":"#N/A"}},{"$f":"VLOOKUP($DR$1,$A:$DP,84,FALSE)","v":{"$error":"#N/A"}},{"$f":"VLOOKUP($DR$1,$A:$DP,85,FALSE)","v":{"$error":"#N/A"}},{"$f":"VLOOKUP($DR$1,$A:$DP,86,FALSE)","v":{"$error":"#N/A"}},{"$f":"VLOOKUP($DR$1,$A:$DP,87,FALSE)","v":{"$error":"#N/A"}},{"$f":"VLOOKUP($DR$1,$A:$DP,88,FALSE)","v":{"$error":"#N/A"}},{"$f":"VLOOKUP($DR$1,$A:$DP,89,FALSE)","v":{"$error":"#N/A"}},{"$f":"VLOOKUP($DR$1,$A:$DP,90,FALSE)","v":{"$error":"#N/A"}},{"$f":"VLOOKUP($DR$1,$A:$DP,91,FALSE)","v":{"$error":"#N/A"}},{"$f":"VLOOKUP($DR$1,$A:$DP,92,FALSE)","v":{"$error":"#N/A"}},{"$f":"VLOOKUP($DR$1,$A:$DP,93,FALSE)","v":{"$error":"#N/A"}},{"$f":"VLOOKUP($DR$1,$A:$DP,94,FALSE)","v":{"$error":"#N/A"}},{"$f":"VLOOKUP($DR$1,$A:$DP,95,FALSE)","v":{"$error":"#N/A"}},{"$f":"VLOOKUP($DR$1,$A:$DP,96,FALSE)","v":{"$error":"#N/A"}},{"$f":"VLOOKUP($DR$1,$A:$DP,97,FALSE)","v":{"$error":"#N/A"}},{"$f":"VLOOKUP($DR$1,$A:$DP,98,FALSE)","v":{"$error":"#N/A"}},{"$f":"VLOOKUP($DR$1,$A:$DP,99,FALSE)","v":{"$error":"#N/A"}},{"$f":"VLOOKUP($DR$1,$A:$DP,100,FALSE)","v":{"$error":"#N/A"}},{"$f":"VLOOKUP($DR$1,$A:$DP,101,FALSE)","v":{"$error":"#N/A"}},{"$f":"VLOOKUP($DR$1,$A:$DP,102,FALSE)","v":{"$error":"#N/A"}},{"$f":"VLOOKUP($DR$1,$A:$DP,103,FALSE)","v":{"$error":"#N/A"}},{"$f":"VLOOKUP($DR$1,$A:$DP,104,FALSE)","v":{"$error":"#N/A"}},{"$f":"VLOOKUP($DR$1,$A:$DP,105,FALSE)","v":{"$error":"#N/A"}},{"$f":"VLOOKUP($DR$1,$A:$DP,106,FALSE)","v":{"$error":"#N/A"}},{"$f":"VLOOKUP($DR$1,$A:$DP,107,FALSE)","v":{"$error":"#N/A"}},{"$f":"VLOOKUP($DR$1,$A:$DP,108,FALSE)","v":{"$error":"#N/A"}},{"$f":"VLOOKUP($DR$1,$A:$DP,109,FALSE)","v":{"$error":"#N/A"}},{"$f":"VLOOKUP($DR$1,$A:$DP,110,FALSE)","v":{"$error":"#N/A"}},{"$f":"VLOOKUP($DR$1,$A:$DP,111,FALSE)","v":{"$error":"#N/A"}},{"$f":"VLOOKUP($DR$1,$A:$DP,112,FALSE)","v":{"$error":"#N/A"}},{"$f":"VLOOKUP($DR$1,$A:$DP,113,FALSE)","v":{"$error":"#N/A"}},{"$f":"VLOOKUP($DR$1,$A:$DP,114,FALSE)","v":{"$error":"#N/A"}},{"$f":"VLOOKUP($DR$1,$A:$DP,115,FALSE)","v":{"$error":"#N/A"}},{"$f":"VLOOKUP($DR$1,$A:$DP,116,FALSE)","v":{"$error":"#N/A"}},{"$f":"VLOOKUP($DR$1,$A:$DP,117,FALSE)","v":{"$error":"#N/A"}},{"$f":"VLOOKUP($DR$1,$A:$DP,118,FALSE)","v":{"$error":"#N/A"}},{"$f":"VLOOKUP($DR$1,$A:$DP,119,FALSE)","v":{"$error":"#N/A"}},{"$f":"VLOOKUP($DR$1,$A:$DP,120,FALSE)","v":{"$error":"#N/A"}}]
[]
[]
[]
[]
[]
[]
[null,"EL CURSOR DEBERA ESTAR EN LA CELDA A2"]
[null,"EN LA HOJA DE CONSULTARCOTIZACION SE LLEVA A CABO LA BUSQUEDA DESDE ESTA PAGINA"]